Payment Date,Transaction Number,Net Amount,Supplier (Beneficiary) Name,Local Supplier Internal Reference,Directorate / Service Where Expenditure Incurred,Service Category Label,Service Category URI,SeRCOP Expenditure Category,SeRCOP Expenditure Code,Purpose of Spend,SeRCOP Detailed Expenditure Code,Capital/Revenue,Procurement Classification
24-Jul-2017,223,-479.98,PALGRAVE IMPORTERS & D,395053,"Environment, Housing & Leisure",Cultural & Related Services,104,Supplies and Services,504,Equipment,5023,Revenue,16.EVENTS & PROMOTIONS
24-Jul-2017,224,-222.22,CREDIT ADJUSTMENT,382385,"Environment, Housing & Leisure",Cultural & Related Services,104,Supplies and Services,504,"Printing, Stationery and General Office Expenses",5026,Revenue,00.NON INFLUENCIBLE
24-Jul-2017,7003664,270.00,WARD AND COMPANY (LETTERS) LIMITED,387866,Law & Governance,Central Services,102,Supplies and Services,504,Expenses,5030,Revenue,ENVIRO SERVICES
24-Jul-2017,7003665,79.17,PROMENADE APARTMENTS,395267,"Environment, Housing & Leisure",Housing Services,108,Third Party Payments,505,Private Contractors,5042,Revenue,HR ACCOMM
24-Jul-2017,7003666,30.00,LIVERPOOL CITY COUNCIL,031219,"Health, Education, Care and Safeguarding",Children's & Education Services,103,Supplies and Services,504,Miscellaneous Expenses,5034,Revenue,00.PUBLIC SECTOR
24-Jul-2017,7003667,166.67,STEVEART GALLERY,390371,"Health, Education, Care and Safeguarding",Children's & Education Services,103,Supplies and Services,504,Equipment,5023,Revenue,16.EVENTS & PROMOTIONS
24-Jul-2017,7003668,49.95,VIMEO PLUS,395248,"Health, Education, Care and Safeguarding",Children's & Education Services,103,Supplies and Services,504,Communications & Computing,5028,Revenue,15.SOFTWARE
24-Jul-2017,7003669,37.58,MR J R LOCKHART T AS C,395247,"Health, Education, Care and Safeguarding",Children's & Education Services,103,Premises-Related Expenditure,502,"Repairs, alterations and maintenance of buildings",5005,Revenue,13.EQUIPMENT
24-Jul-2017,7003670,134.50,STAGECOACH SERVICES LIMITED,382363,"Health, Education, Care and Safeguarding",Children's & Education Services,103,Supplies and Services,504,Expenses,5030,Revenue,18.TRAVEL
24-Jul-2017,7003670,54.50,STAGECOACH SERVICES LIMITED,382363,"Health, Education, Care and Safeguarding",Children's & Education Services,103,Supplies and Services,504,Expenses,5030,Revenue,18.TRAVEL
24-Jul-2017,7003671,47.21,ATG TICKET WEB,395229,"Health, Education, Care and Safeguarding",Children's & Education Services,103,Supplies and Services,504,Miscellaneous Expenses,5034,Revenue,16.EVENTS & PROMOTIONS
24-Jul-2017,7003672,20.83,THE BLOOMING GARDEN,395228,Law & Governance,Central Services,102,Supplies and Services,504,Expenses,5030,Revenue,HORT SEEDS
24-Jul-2017,7003673,395.00,FURNITURE 4U,395227,"Health, Education, Care and Safeguarding",Children's & Education Services,103,Third Party Payments,505,Other Establishments,5041,Revenue,10.HOUSEHOLD
24-Jul-2017,7003674,100.00,BERWICK GARDEN CENTRE,395171,"Environment, Housing & Leisure",Environmental & Regulatory Services,105,Supplies and Services,504,Equipment,5023,Revenue,HORT TREES
24-Jul-2017,7003674,55.84,BERWICK GARDEN CENTRE,395171,"Environment, Housing & Leisure",Environmental & Regulatory Services,105,Supplies and Services,504,Equipment,5023,Revenue,HORT TREES
24-Jul-2017,7003675,290.13,PARKDEAN HOLIDAY PARK,395145,"Health, Education, Care and Safeguarding",Children's & Education Services,103,Supplies and Services,504,Miscellaneous Expenses,5034,Revenue,HR ACCOMM
24-Jul-2017,7003675,415.83,PARKDEAN HOLIDAY PARK,395145,"Health, Education, Care and Safeguarding",Children's & Education Services,103,Supplies and Services,504,Miscellaneous Expenses,5034,Revenue,HR ACCOMM
24-Jul-2017,7003675,168.32,PARKDEAN HOLIDAY PARK,395145,"Health, Education, Care and Safeguarding",Children's & Education Services,103,Supplies and Services,504,Miscellaneous Expenses,5034,Revenue,HR ACCOMM
24-Jul-2017,7003675,338.33,PARKDEAN HOLIDAY PARK,395145,"Health, Education, Care and Safeguarding",Children's & Education Services,103,Supplies and Services,504,Miscellaneous Expenses,5034,Revenue,HR ACCOMM
24-Jul-2017,7003676,10.79,UNLIMITED WEBHOSTING,394828,"Health, Education, Care and Safeguarding",Children's & Education Services,103,Supplies and Services,504,Communications & Computing,5028,Revenue,ICT WEB
24-Jul-2017,7003677,4.94,UK HOSTING,394827,Corporate Strategy,Central Services,102,Supplies and Services,504,"Printing, Stationery and General Office Expenses",5026,Revenue,ICT WEB
24-Jul-2017,7003678,164.52,TAYLOR FOODS,394743,Commissioning & Investment,Children's & Education Services,103,Supplies and Services,504,Equipment,5023,Revenue,03.GROCERIES & PROVISIONS
24-Jul-2017,7003678,40.00,TAYLOR FOODS,394743,Commissioning & Investment,Children's & Education Services,103,Supplies and Services,504,Equipment,5023,Revenue,03.GROCERIES & PROVISIONS
24-Jul-2017,7003678,92.96,TAYLOR FOODS,394743,Commissioning & Investment,Children's & Education Services,103,Supplies and Services,504,Equipment,5023,Revenue,03.GROCERIES & PROVISIONS
24-Jul-2017,7003678,263.60,TAYLOR FOODS,394743,Commissioning & Investment,Children's & Education Services,103,Supplies and Services,504,Equipment,5023,Revenue,03.GROCERIES & PROVISIONS
24-Jul-2017,7003678,54.00,TAYLOR FOODS,394743,Commissioning & Investment,Children's & Education Services,103,Supplies and Services,504,Equipment,5023,Revenue,03.GROCERIES & PROVISIONS
24-Jul-2017,7003678,67.93,TAYLOR FOODS,394743,"Environment, Housing & Leisure",Adult Social Care,101,Supplies and Services,504,Equipment,5023,Revenue,03.GROCERIES & PROVISIONS
24-Jul-2017,7003679,8.33,TRAVEL.CLOUD,394406,Commissioning & Investment,Children's & Education Services,103,Supplies and Services,504,Expenses,5030,Revenue,18.TRAVEL
24-Jul-2017,7003679,138.21,TRAVEL.CLOUD,394406,"Health, Education, Care and Safeguarding",Children's & Education Services,103,Supplies and Services,504,Expenses,5030,Revenue,18.TRAVEL
24-Jul-2017,7003679,207.27,TRAVEL.CLOUD,394406,"Health, Education, Care and Safeguarding",Children's & Education Services,103,Supplies and Services,504,Expenses,5030,Revenue,18.TRAVEL
24-Jul-2017,7003679,212.20,TRAVEL.CLOUD,394406,Commissioning & Investment,Children's & Education Services,103,Supplies and Services,504,Expenses,5030,Revenue,18.TRAVEL
24-Jul-2017,7003679,115.17,TRAVEL.CLOUD,394406,Commissioning & Investment,Children's & Education Services,103,Supplies and Services,504,Expenses,5030,Revenue,18.TRAVEL
24-Jul-2017,7003679,55.55,TRAVEL.CLOUD,394406,Commissioning & Investment,Children's & Education Services,103,Supplies and Services,504,Expenses,5030,Revenue,18.TRAVEL
24-Jul-2017,7003679,126.28,TRAVEL.CLOUD,394406,Commissioning & Investment,Children's & Education Services,103,Supplies and Services,504,Expenses,5030,Revenue,18.TRAVEL
24-Jul-2017,7003679,96.78,TRAVEL.CLOUD,394406,Commissioning & Investment,Children's & Education Services,103,Supplies and Services,504,Expenses,5030,Revenue,18.TRAVEL
24-Jul-2017,7003679,31.20,TRAVEL.CLOUD,394406,"Health, Education, Care and Safeguarding",Children's & Education Services,103,Supplies and Services,504,Expenses,5030,Revenue,18.TRAVEL
24-Jul-2017,7003679,19.79,TRAVEL.CLOUD,394406,"Health, Education, Care and Safeguarding",Children's & Education Services,103,Supplies and Services,504,Expenses,5030,Revenue,18.TRAVEL
24-Jul-2017,7003679,146.02,TRAVEL.CLOUD,394406,"Health, Education, Care and Safeguarding",Children's & Education Services,103,Supplies and Services,504,Expenses,5030,Revenue,18.TRAVEL
24-Jul-2017,7003679,67.70,TRAVEL.CLOUD,394406,"Health, Education, Care and Safeguarding",Children's & Education Services,103,Supplies and Services,504,Expenses,5030,Revenue,18.TRAVEL
24-Jul-2017,7003679,232.28,TRAVEL.CLOUD,394406,"Health, Education, Care and Safeguarding",Children's & Education Services,103,Supplies and Services,504,Expenses,5030,Revenue,18.TRAVEL
24-Jul-2017,7003679,124.98,TRAVEL.CLOUD,394406,Commissioning & Investment,Children's & Education Services,103,Supplies and Services,504,Expenses,5030,Revenue,18.TRAVEL
24-Jul-2017,7003679,138.21,TRAVEL.CLOUD,394406,"Health, Education, Care and Safeguarding",Children's & Education Services,103,Supplies and Services,504,Expenses,5030,Revenue,18.TRAVEL
24-Jul-2017,7003680,93.01,MOJO HELPDESK,394317,"Health, Education, Care and Safeguarding",Children's & Education Services,103,Supplies and Services,504,Communications & Computing,5028,Revenue,15.SOFTWARE
24-Jul-2017,7003681,13.00,E H BOOTH & CO,394256,"Health, Education, Care and Safeguarding",Children's & Education Services,103,Supplies and Services,504,Equipment,5023,Revenue,HORT SEEDS
24-Jul-2017,7003681,3.92,E H BOOTH & CO,394256,"Health, Education, Care and Safeguarding",Children's & Education Services,103,Supplies and Services,504,Equipment,5023,Revenue,HORT SEEDS
24-Jul-2017,7003682,54.66,MEDISAVE UK LTD,373457,"Health, Education, Care and Safeguarding",Children's & Education Services,103,Supplies and Services,504,Equipment,5023,Revenue,11.CRIME & DISORDER
24-Jul-2017,7003683,32.19,TWITONOMY.COM,393892,"Environment, Housing & Leisure",Cultural & Related Services,104,Supplies and Services,504,"Printing, Stationery and General Office Expenses",5026,Revenue,18.SUBSCRIPTIONS
24-Jul-2017,7003683,32.19,TWITONOMY.COM,393892,"Environment, Housing & Leisure",Cultural & Related Services,104,Supplies and Services,504,"Printing, Stationery and General Office Expenses",5026,Revenue,18.SUBSCRIPTIONS
24-Jul-2017,7003683,32.17,TWITONOMY.COM,393892,"Environment, Housing & Leisure",Cultural & Related Services,104,Supplies and Services,504,"Printing, Stationery and General Office Expenses",5026,Revenue,18.SUBSCRIPTIONS
24-Jul-2017,7003683,32.19,TWITONOMY.COM,393892,"Environment, Housing & Leisure",Cultural & Related Services,104,Supplies and Services,504,"Printing, Stationery and General Office Expenses",5026,Revenue,18.SUBSCRIPTIONS
24-Jul-2017,7003683,160.93,TWITONOMY.COM,393892,"Environment, Housing & Leisure",Cultural & Related Services,104,Supplies and Services,504,"Printing, Stationery and General Office Expenses",5026,Revenue,18.SUBSCRIPTIONS
24-Jul-2017,7003683,32.19,TWITONOMY.COM,393892,"Environment, Housing & Leisure",Cultural & Related Services,104,Supplies and Services,504,"Printing, Stationery and General Office Expenses",5026,Revenue,18.SUBSCRIPTIONS
24-Jul-2017,7003684,89.99,IDC LIMITED,393876,"Environment, Housing & Leisure",Cultural & Related Services,104,Third Party Payments,505,Private Contractors,5042,Revenue,16.EVENTS & PROMOTIONS
24-Jul-2017,7003684,-89.99,IDC LIMITED,393876,"Environment, Housing & Leisure",Cultural & Related Services,104,Third Party Payments,505,Private Contractors,5042,Revenue,16.EVENTS & PROMOTIONS
24-Jul-2017,7003684,140.00,IDC LIMITED,393876,"Environment, Housing & Leisure",Cultural & Related Services,104,Third Party Payments,505,Private Contractors,5042,Revenue,16.EVENTS & PROMOTIONS
24-Jul-2017,7003685,215.00,DELAVAL ICES,384755,Commissioning & Investment,Children's & Education Services,103,Supplies and Services,504,Equipment,5023,Revenue,00.GRANT
24-Jul-2017,7003685,255.00,DELAVAL ICES,384755,Commissioning & Investment,Children's & Education Services,103,Supplies and Services,504,Equipment,5023,Revenue,00.GRANT
24-Jul-2017,7003686,28.32,RECORD POWER LTD,354000,"Health, Education, Care and Safeguarding",Children's & Education Services,103,Premises-Related Expenditure,502,"Repairs, alterations and maintenance of buildings",5005,Revenue,BUILD MACH TOOLS
24-Jul-2017,7003687,47.77,TOOLSTATION LTD,393689,"Environment, Housing & Leisure",Environmental & Regulatory Services,105,Supplies and Services,504,Equipment,5023,Revenue,13.EQUIPMENT
24-Jul-2017,7003687,7.99,TOOLSTATION LTD,393689,"Environment, Housing & Leisure",Cultural & Related Services,104,Supplies and Services,504,Equipment,5023,Revenue,13.EQUIPMENT
24-Jul-2017,7003688,248.42,PALGRAVE LTD,393477,"Environment, Housing & Leisure",Cultural & Related Services,104,Supplies and Services,504,Equipment,5023,Revenue,06.ART & CRAFT
24-Jul-2017,7003689,181.67,IMPERIAL LONDON HOTELS,329607,"Health, Education, Care and Safeguarding",Children's & Education Services,103,Supplies and Services,504,Expenses,5030,Revenue,HR ACCOMM
24-Jul-2017,7003690,53.27,FACEBOOK,393228,"Environment, Housing & Leisure",Cultural & Related Services,104,Third Party Payments,505,Private Contractors,5042,Revenue,16.ADVERTISING
24-Jul-2017,7003690,0.98,FACEBOOK,393228,"Health, Education, Care and Safeguarding",Children's & Education Services,103,Supplies and Services,504,Miscellaneous Expenses,5034,Revenue,16.ADVERTISING
24-Jul-2017,7003690,1.56,FACEBOOK,393228,"Health, Education, Care and Safeguarding",Children's & Education Services,103,Supplies and Services,504,Miscellaneous Expenses,5034,Revenue,16.ADVERTISING
24-Jul-2017,7003691,203.41,AMOMA.COM HOTELS,393227,Chief Executive Office,Central Services,102,Supplies and Services,504,Miscellaneous Expenses,5034,Revenue,HR ACCOMM
24-Jul-2017,7003692,100.00,LOVE2SHOP.,392930,Corporate Strategy,Children's & Education Services,103,Third Party Payments,505,Private Contractors,5042,Revenue,SOCIAL LEAVING CARE
24-Jul-2017,7003693,15.60,CLACKMANNANSHIRE COUNCIL,392684,"Health, Education, Care and Safeguarding",Children's & Education Services,103,Supplies and Services,504,Miscellaneous Expenses,5034,Revenue,00.PUBLIC SECTOR
24-Jul-2017,7003694,113.33,MAG SUBCRIPTIONS,392679,Commissioning & Investment,Children's & Education Services,103,Supplies and Services,504,"Printing, Stationery and General Office Expenses",5026,Revenue,18.BOOKS & PUBLICATIONS
24-Jul-2017,7003695,10.00,.GOV.UK,392443,"Health, Education, Care and Safeguarding",Adult Social Care,101,Supplies and Services,504,Miscellaneous Expenses,5034,Revenue,LEGAL SUPP
24-Jul-2017,7003696,124.92,RSPB SALES TRADING,392441,"Environment, Housing & Leisure",Cultural & Related Services,104,Third Party Payments,505,Private Contractors,5042,Revenue,16.EVENTS & PROMOTIONS
24-Jul-2017,7003697,229.15,AO RETAIL LIMITED,392123,"Health, Education, Care and Safeguarding",Children's & Education Services,103,Transfer Payments,506,School Children and Students,5046,Revenue,03.CROCKERY
24-Jul-2017,7003698,416.91,ON A ROLL SANDWICH COMPANY,391893,Commissioning & Investment,Children's & Education Services,103,Supplies and Services,504,Equipment,5023,Revenue,03.GROCERIES & PROVISIONS
24-Jul-2017,7003698,40.93,ON A ROLL SANDWICH COMPANY,391893,Commissioning & Investment,Children's & Education Services,103,Supplies and Services,504,Equipment,5023,Revenue,03.GROCERIES & PROVISIONS
24-Jul-2017,7003698,399.58,ON A ROLL SANDWICH COMPANY,391893,Commissioning & Investment,Children's & Education Services,103,Supplies and Services,504,Equipment,5023,Revenue,03.GROCERIES & PROVISIONS
24-Jul-2017,7003698,390.06,ON A ROLL SANDWICH COMPANY,391893,Commissioning & Investment,Children's & Education Services,103,Supplies and Services,504,Equipment,5023,Revenue,03.GROCERIES & PROVISIONS
24-Jul-2017,7003698,884.73,ON A ROLL SANDWICH COMPANY,391893,Commissioning & Investment,Children's & Education Services,103,Supplies and Services,504,Equipment,5023,Revenue,03.GROCERIES & PROVISIONS
24-Jul-2017,7003698,211.20,ON A ROLL SANDWICH COMPANY,391893,Commissioning & Investment,Children's & Education Services,103,Supplies and Services,504,Equipment,5023,Revenue,03.GROCERIES & PROVISIONS
24-Jul-2017,7003698,393.83,ON A ROLL SANDWICH COMPANY,391893,Commissioning & Investment,Children's & Education Services,103,Supplies and Services,504,Equipment,5023,Revenue,03.GROCERIES & PROVISIONS
24-Jul-2017,7003698,836.78,ON A ROLL SANDWICH COMPANY,391893,Commissioning & Investment,Children's & Education Services,103,Supplies and Services,504,Equipment,5023,Revenue,03.GROCERIES & PROVISIONS
24-Jul-2017,7003698,81.86,ON A ROLL SANDWICH COMPANY,391893,Commissioning & Investment,Children's & Education Services,103,Supplies and Services,504,Equipment,5023,Revenue,03.GROCERIES & PROVISIONS
24-Jul-2017,7003698,95.53,ON A ROLL SANDWICH COMPANY,391893,Commissioning & Investment,Children's & Education Services,103,Supplies and Services,504,Equipment,5023,Revenue,03.GROCERIES & PROVISIONS
24-Jul-2017,7003698,81.86,ON A ROLL SANDWICH COMPANY,391893,Commissioning & Investment,Children's & Education Services,103,Supplies and Services,504,Equipment,5023,Revenue,03.GROCERIES & PROVISIONS
24-Jul-2017,7003698,390.06,ON A ROLL SANDWICH COMPANY,391893,Commissioning & Investment,Children's & Education Services,103,Supplies and Services,504,Equipment,5023,Revenue,03.GROCERIES & PROVISIONS
24-Jul-2017,7003698,277.10,ON A ROLL SANDWICH COMPANY,391893,Commissioning & Investment,Children's & Education Services,103,Supplies and Services,504,Equipment,5023,Revenue,03.GROCERIES & PROVISIONS
24-Jul-2017,7003698,418.75,ON A ROLL SANDWICH COMPANY,391893,Commissioning & Investment,Children's & Education Services,103,Supplies and Services,504,Equipment,5023,Revenue,03.GROCERIES & PROVISIONS
24-Jul-2017,7003698,545.85,ON A ROLL SANDWICH COMPANY,391893,Commissioning & Investment,Children's & Education Services,103,Supplies and Services,504,Equipment,5023,Revenue,03.GROCERIES & PROVISIONS
24-Jul-2017,7003698,535.35,ON A ROLL SANDWICH COMPANY,391893,Commissioning & Investment,Children's & Education Services,103,Supplies and Services,504,Equipment,5023,Revenue,03.GROCERIES & PROVISIONS
24-Jul-2017,7003698,295.78,ON A ROLL SANDWICH COMPANY,391893,Commissioning & Investment,Children's & Education Services,103,Supplies and Services,504,Equipment,5023,Revenue,03.GROCERIES & PROVISIONS
24-Jul-2017,7003698,645.49,ON A ROLL SANDWICH COMPANY,391893,Commissioning & Investment,Children's & Education Services,103,Supplies and Services,504,Equipment,5023,Revenue,03.GROCERIES & PROVISIONS
24-Jul-2017,7003698,81.06,ON A ROLL SANDWICH COMPANY,391893,Commissioning & Investment,Children's & Education Services,103,Supplies and Services,504,Equipment,5023,Revenue,03.GROCERIES & PROVISIONS
24-Jul-2017,7003698,395.38,ON A ROLL SANDWICH COMPANY,391893,Commissioning & Investment,Children's & Education Services,103,Supplies and Services,504,Equipment,5023,Revenue,03.GROCERIES & PROVISIONS
24-Jul-2017,7003698,87.28,ON A ROLL SANDWICH COMPANY,391893,Commissioning & Investment,Children's & Education Services,103,Supplies and Services,504,Equipment,5023,Revenue,03.GROCERIES & PROVISIONS
24-Jul-2017,7003698,437.04,ON A ROLL SANDWICH COMPANY,391893,Commissioning & Investment,Children's & Education Services,103,Supplies and Services,504,Equipment,5023,Revenue,03.GROCERIES & PROVISIONS
24-Jul-2017,7003698,524.89,ON A ROLL SANDWICH COMPANY,391893,Commissioning & Investment,Children's & Education Services,103,Supplies and Services,504,Equipment,5023,Revenue,03.GROCERIES & PROVISIONS
24-Jul-2017,7003698,276.53,ON A ROLL SANDWICH COMPANY,391893,Commissioning & Investment,Children's & Education Services,103,Supplies and Services,504,Equipment,5023,Revenue,03.GROCERIES & PROVISIONS
24-Jul-2017,7003698,211.20,ON A ROLL SANDWICH COMPANY,391893,Commissioning & Investment,Children's & Education Services,103,Supplies and Services,504,Equipment,5023,Revenue,03.GROCERIES & PROVISIONS
24-Jul-2017,7003698,645.88,ON A ROLL SANDWICH COMPANY,391893,Commissioning & Investment,Children's & Education Services,103,Supplies and Services,504,Equipment,5023,Revenue,03.GROCERIES & PROVISIONS
24-Jul-2017,7003698,81.06,ON A ROLL SANDWICH COMPANY,391893,Commissioning & Investment,Children's & Education Services,103,Supplies and Services,504,Equipment,5023,Revenue,03.GROCERIES & PROVISIONS
24-Jul-2017,7003698,277.93,ON A ROLL SANDWICH COMPANY,391893,Commissioning & Investment,Children's & Education Services,103,Supplies and Services,504,Equipment,5023,Revenue,03.GROCERIES & PROVISIONS
24-Jul-2017,7003698,115.01,ON A ROLL SANDWICH COMPANY,391893,Commissioning & Investment,Children's & Education Services,103,Supplies and Services,504,Equipment,5023,Revenue,03.GROCERIES & PROVISIONS
24-Jul-2017,7003698,211.20,ON A ROLL SANDWICH COMPANY,391893,Commissioning & Investment,Children's & Education Services,103,Supplies and Services,504,Equipment,5023,Revenue,03.GROCERIES & PROVISIONS
24-Jul-2017,7003699,5.42,PRODUCT SUPPORT AG,391921,"Health, Education, Care and Safeguarding",Children's & Education Services,103,Supplies and Services,504,Equipment,5023,Revenue,14.MAINT OF COMPUTER EQU
24-Jul-2017,7003700,25.00,SACK TRUCKS DIRECT,391731,"Health, Education, Care and Safeguarding",Children's & Education Services,103,Supplies and Services,504,Miscellaneous Expenses,5034,Revenue,01.HEAVY PLANT
24-Jul-2017,7003701,57.20,DUNELM LTD,391723,"Health, Education, Care and Safeguarding",Children's & Education Services,103,Supplies and Services,504,Equipment,5023,Revenue,10.BLINDS CARPETS CURTAIN
24-Jul-2017,7003702,-0.72,ASDA HOME SHOPPING CAR,391718,"Health, Education, Care and Safeguarding",Children's & Education Services,103,Supplies and Services,504,Catering,5024,Revenue,03.GROCERIES & PROVISIONS
24-Jul-2017,7003702,39.19,ASDA HOME SHOPPING CAR,391718,"Health, Education, Care and Safeguarding",Children's & Education Services,103,Supplies and Services,504,Catering,5024,Revenue,03.GROCERIES & PROVISIONS
24-Jul-2017,7003703,188.65,365 Global Tickets,391715,"Health, Education, Care and Safeguarding",Children's & Education Services,103,Supplies and Services,504,Miscellaneous Expenses,5034,Revenue,18.TRAVEL
24-Jul-2017,7003704,61.32,TELEPHONE PAYMENT,391672,"Health, Education, Care and Safeguarding",Children's & Education Services,103,Supplies and Services,504,Communications & Computing,5028,Revenue,09.FINANCIAL SERVICES
24-Jul-2017,7003705,18.33,ANNE THOMAS WORKWEAR LID,391598,"Environment, Housing & Leisure",Environmental & Regulatory Services,105,Supplies and Services,504,Equipment,5023,Revenue,11.WORKWEAR
24-Jul-2017,7003706,93.80,BOOKERECOMM,391464,"Environment, Housing & Leisure",Cultural & Related Services,104,Supplies and Services,504,Catering,5024,Revenue,00.NON INFLUENCIBLE
24-Jul-2017,7003706,120.44,BOOKERECOMM,391464,"Environment, Housing & Leisure",Cultural & Related Services,104,Supplies and Services,504,Catering,5024,Revenue,00.NON INFLUENCIBLE
24-Jul-2017,7003706,151.67,BOOKERECOMM,391464,"Environment, Housing & Leisure",Cultural & Related Services,104,Supplies and Services,504,Catering,5024,Revenue,00.NON INFLUENCIBLE
24-Jul-2017,7003706,196.95,BOOKERECOMM,391464,"Environment, Housing & Leisure",Cultural & Related Services,104,Supplies and Services,504,Catering,5024,Revenue,00.NON INFLUENCIBLE
24-Jul-2017,7003706,145.77,BOOKERECOMM,391464,"Environment, Housing & Leisure",Cultural & Related Services,104,Supplies and Services,504,Catering,5024,Revenue,00.NON INFLUENCIBLE
24-Jul-2017,7003706,-0.01,BOOKERECOMM,391464,"Environment, Housing & Leisure",Cultural & Related Services,104,Supplies and Services,504,Catering,5024,Revenue,00.NON INFLUENCIBLE
24-Jul-2017,7003707,201.24,PROGREEN WEED CONTROL SOLUTIONS LTD,391277,"Environment, Housing & Leisure",Environmental & Regulatory Services,105,Supplies and Services,504,Equipment,5023,Revenue,HORT WEED
24-Jul-2017,7003708,47.22,SMORE.COM,391256,"Health, Education, Care and Safeguarding",Children's & Education Services,103,Supplies and Services,504,Communications & Computing,5028,Revenue,15.SOFTWARE
24-Jul-2017,7003709,20.42,ROADCHEF,391254,"Health, Education, Care and Safeguarding",Children's & Education Services,103,Supplies and Services,504,Expenses,5030,Revenue,03.GROCERIES & PROVISIONS
24-Jul-2017,7003710,1.19,MICROSOFT IRELAND OPERATIONS LTD,390631,"Environment, Housing & Leisure",Cultural & Related Services,104,Supplies and Services,504,"Printing, Stationery and General Office Expenses",5026,Revenue,15.SOFTWARE
24-Jul-2017,7003711,572.40,JUDGE SAMPSON LTD,391253,"Environment, Housing & Leisure",Cultural & Related Services,104,Supplies and Services,504,Equipment,5023,Revenue,06.ART & CRAFT
24-Jul-2017,7003712,17.99,YESSS ELECTRICAL,391248,"Environment, Housing & Leisure",Environmental & Regulatory Services,105,Supplies and Services,504,Equipment,5023,Revenue,01.ELECTRICAL
24-Jul-2017,7003713,26.40,REDBRIDGE PRODUCE & FLOWERS LTD T/A TOTAL PRODUCE,390977,Commissioning & Investment,Children's & Education Services,103,Supplies and Services,504,Equipment,5023,Revenue,03.GROCERIES & PROVISIONS
24-Jul-2017,7003713,2.20,REDBRIDGE PRODUCE & FLOWERS LTD T/A TOTAL PRODUCE,390977,Commissioning & Investment,Children's & Education Services,103,Supplies and Services,504,Equipment,5023,Revenue,03.GROCERIES & PROVISIONS
24-Jul-2017,7003713,-0.99,REDBRIDGE PRODUCE & FLOWERS LTD T/A TOTAL PRODUCE,390977,Commissioning & Investment,Children's & Education Services,103,Supplies and Services,504,Equipment,5023,Revenue,03.GROCERIES & PROVISIONS
24-Jul-2017,7003713,2.80,REDBRIDGE PRODUCE & FLOWERS LTD T/A TOTAL PRODUCE,390977,Commissioning & Investment,Children's & Education Services,103,Supplies and Services,504,Equipment,5023,Revenue,03.GROCERIES & PROVISIONS
24-Jul-2017,7003713,6.60,REDBRIDGE PRODUCE & FLOWERS LTD T/A TOTAL PRODUCE,390977,Commissioning & Investment,Children's & Education Services,103,Supplies and Services,504,Equipment,5023,Revenue,03.GROCERIES & PROVISIONS
24-Jul-2017,7003713,1.25,REDBRIDGE PRODUCE & FLOWERS LTD T/A TOTAL PRODUCE,390977,Commissioning & Investment,Children's & Education Services,103,Supplies and Services,504,Equipment,5023,Revenue,03.GROCERIES & PROVISIONS
24-Jul-2017,7003713,1.02,REDBRIDGE PRODUCE & FLOWERS LTD T/A TOTAL PRODUCE,390977,Commissioning & Investment,Children's & Education Services,103,Supplies and Services,504,Equipment,5023,Revenue,03.GROCERIES & PROVISIONS
24-Jul-2017,7003713,2.20,REDBRIDGE PRODUCE & FLOWERS LTD T/A TOTAL PRODUCE,390977,Commissioning & Investment,Children's & Education Services,103,Supplies and Services,504,Equipment,5023,Revenue,03.GROCERIES & PROVISIONS
24-Jul-2017,7003713,52.76,REDBRIDGE PRODUCE & FLOWERS LTD T/A TOTAL PRODUCE,390977,Commissioning & Investment,Children's & Education Services,103,Supplies and Services,504,Equipment,5023,Revenue,03.GROCERIES & PROVISIONS
24-Jul-2017,7003713,-1.25,REDBRIDGE PRODUCE & FLOWERS LTD T/A TOTAL PRODUCE,390977,Commissioning & Investment,Children's & Education Services,103,Supplies and Services,504,Equipment,5023,Revenue,03.GROCERIES & PROVISIONS
24-Jul-2017,7003713,9.90,REDBRIDGE PRODUCE & FLOWERS LTD T/A TOTAL PRODUCE,390977,Commissioning & Investment,Children's & Education Services,103,Supplies and Services,504,Equipment,5023,Revenue,03.GROCERIES & PROVISIONS
24-Jul-2017,7003713,37.64,REDBRIDGE PRODUCE & FLOWERS LTD T/A TOTAL PRODUCE,390977,Commissioning & Investment,Children's & Education Services,103,Supplies and Services,504,Equipment,5023,Revenue,03.GROCERIES & PROVISIONS
24-Jul-2017,7003713,62.27,REDBRIDGE PRODUCE & FLOWERS LTD T/A TOTAL PRODUCE,390977,Commissioning & Investment,Children's & Education Services,103,Supplies and Services,504,Equipment,5023,Revenue,03.GROCERIES & PROVISIONS
24-Jul-2017,7003713,2.34,REDBRIDGE PRODUCE & FLOWERS LTD T/A TOTAL PRODUCE,390977,Commissioning & Investment,Children's & Education Services,103,Supplies and Services,504,Equipment,5023,Revenue,03.GROCERIES & PROVISIONS
24-Jul-2017,7003713,75.71,REDBRIDGE PRODUCE & FLOWERS LTD T/A TOTAL PRODUCE,390977,Commissioning & Investment,Children's & Education Services,103,Supplies and Services,504,Equipment,5023,Revenue,03.GROCERIES & PROVISIONS
24-Jul-2017,7003713,2.38,REDBRIDGE PRODUCE & FLOWERS LTD T/A TOTAL PRODUCE,390977,"Health, Education, Care and Safeguarding",Children's & Education Services,103,Supplies and Services,504,Equipment,5023,Revenue,03.GROCERIES & PROVISIONS
24-Jul-2017,7003713,53.95,REDBRIDGE PRODUCE & FLOWERS LTD T/A TOTAL PRODUCE,390977,Commissioning & Investment,Children's & Education Services,103,Supplies and Services,504,Equipment,5023,Revenue,03.GROCERIES & PROVISIONS
24-Jul-2017,7003713,42.67,REDBRIDGE PRODUCE & FLOWERS LTD T/A TOTAL PRODUCE,390977,Commissioning & Investment,Children's & Education Services,103,Supplies and Services,504,Equipment,5023,Revenue,03.GROCERIES & PROVISIONS
24-Jul-2017,7003713,4.48,REDBRIDGE PRODUCE & FLOWERS LTD T/A TOTAL PRODUCE,390977,Commissioning & Investment,Children's & Education Services,103,Supplies and Services,504,Equipment,5023,Revenue,03.GROCERIES & PROVISIONS
24-Jul-2017,7003713,3.20,REDBRIDGE PRODUCE & FLOWERS LTD T/A TOTAL PRODUCE,390977,Commissioning & Investment,Children's & Education Services,103,Supplies and Services,504,Equipment,5023,Revenue,03.GROCERIES & PROVISIONS
24-Jul-2017,7003713,1.15,REDBRIDGE PRODUCE & FLOWERS LTD T/A TOTAL PRODUCE,390977,Commissioning & Investment,Children's & Education Services,103,Supplies and Services,504,Equipment,5023,Revenue,03.GROCERIES & PROVISIONS
24-Jul-2017,7003713,1.53,REDBRIDGE PRODUCE & FLOWERS LTD T/A TOTAL PRODUCE,390977,Commissioning & Investment,Children's & Education Services,103,Supplies and Services,504,Equipment,5023,Revenue,03.GROCERIES & PROVISIONS
24-Jul-2017,7003713,1.22,REDBRIDGE PRODUCE & FLOWERS LTD T/A TOTAL PRODUCE,390977,Commissioning & Investment,Children's & Education Services,103,Supplies and Services,504,Equipment,5023,Revenue,03.GROCERIES & PROVISIONS
24-Jul-2017,7003713,-1.25,REDBRIDGE PRODUCE & FLOWERS LTD T/A TOTAL PRODUCE,390977,Commissioning & Investment,Children's & Education Services,103,Supplies and Services,504,Equipment,5023,Revenue,03.GROCERIES & PROVISIONS
24-Jul-2017,7003713,32.19,REDBRIDGE PRODUCE & FLOWERS LTD T/A TOTAL PRODUCE,390977,Commissioning & Investment,Children's & Education Services,103,Supplies and Services,504,Equipment,5023,Revenue,03.GROCERIES & PROVISIONS
24-Jul-2017,7003713,62.50,REDBRIDGE PRODUCE & FLOWERS LTD T/A TOTAL PRODUCE,390977,Commissioning & Investment,Children's & Education Services,103,Supplies and Services,504,Equipment,5023,Revenue,03.GROCERIES & PROVISIONS
24-Jul-2017,7003713,26.91,REDBRIDGE PRODUCE & FLOWERS LTD T/A TOTAL PRODUCE,390977,Commissioning & Investment,Children's & Education Services,103,Supplies and Services,504,Equipment,5023,Revenue,03.GROCERIES & PROVISIONS
24-Jul-2017,7003713,70.51,REDBRIDGE PRODUCE & FLOWERS LTD T/A TOTAL PRODUCE,390977,Commissioning & Investment,Children's & Education Services,103,Supplies and Services,504,Equipment,5023,Revenue,03.GROCERIES & PROVISIONS
24-Jul-2017,7003713,4.08,REDBRIDGE PRODUCE & FLOWERS LTD T/A TOTAL PRODUCE,390977,Commissioning & Investment,Children's & Education Services,103,Supplies and Services,504,Equipment,5023,Revenue,03.GROCERIES & PROVISIONS
24-Jul-2017,7003713,1.15,REDBRIDGE PRODUCE & FLOWERS LTD T/A TOTAL PRODUCE,390977,Commissioning & Investment,Children's & Education Services,103,Supplies and Services,504,Equipment,5023,Revenue,03.GROCERIES & PROVISIONS
24-Jul-2017,7003713,3.56,REDBRIDGE PRODUCE & FLOWERS LTD T/A TOTAL PRODUCE,390977,Commissioning & Investment,Children's & Education Services,103,Supplies and Services,504,Equipment,5023,Revenue,03.GROCERIES & PROVISIONS
24-Jul-2017,7003713,1.59,REDBRIDGE PRODUCE & FLOWERS LTD T/A TOTAL PRODUCE,390977,Commissioning & Investment,Children's & Education Services,103,Supplies and Services,504,Equipment,5023,Revenue,03.GROCERIES & PROVISIONS
24-Jul-2017,7003713,2.20,REDBRIDGE PRODUCE & FLOWERS LTD T/A TOTAL PRODUCE,390977,Commissioning & Investment,Children's & Education Services,103,Supplies and Services,504,Equipment,5023,Revenue,03.GROCERIES & PROVISIONS
24-Jul-2017,7003713,1.46,REDBRIDGE PRODUCE & FLOWERS LTD T/A TOTAL PRODUCE,390977,Commissioning & Investment,Children's & Education Services,103,Supplies and Services,504,Equipment,5023,Revenue,03.GROCERIES & PROVISIONS
24-Jul-2017,7003713,1.56,REDBRIDGE PRODUCE & FLOWERS LTD T/A TOTAL PRODUCE,390977,Commissioning & Investment,Children's & Education Services,103,Supplies and Services,504,Equipment,5023,Revenue,03.GROCERIES & PROVISIONS
24-Jul-2017,7003713,-0.96,REDBRIDGE PRODUCE & FLOWERS LTD T/A TOTAL PRODUCE,390977,Commissioning & Investment,Children's & Education Services,103,Supplies and Services,504,Equipment,5023,Revenue,03.GROCERIES & PROVISIONS
24-Jul-2017,7003713,4.40,REDBRIDGE PRODUCE & FLOWERS LTD T/A TOTAL PRODUCE,390977,Commissioning & Investment,Children's & Education Services,103,Supplies and Services,504,Equipment,5023,Revenue,03.GROCERIES & PROVISIONS
24-Jul-2017,7003713,1.98,REDBRIDGE PRODUCE & FLOWERS LTD T/A TOTAL PRODUCE,390977,"Health, Education, Care and Safeguarding",Children's & Education Services,103,Supplies and Services,504,Equipment,5023,Revenue,03.GROCERIES & PROVISIONS
24-Jul-2017,7003713,15.93,REDBRIDGE PRODUCE & FLOWERS LTD T/A TOTAL PRODUCE,390977,Commissioning & Investment,Children's & Education Services,103,Supplies and Services,504,Equipment,5023,Revenue,03.GROCERIES & PROVISIONS
24-Jul-2017,7003713,9.22,REDBRIDGE PRODUCE & FLOWERS LTD T/A TOTAL PRODUCE,390977,Commissioning & Investment,Children's & Education Services,103,Supplies and Services,504,Equipment,5023,Revenue,03.GROCERIES & PROVISIONS
24-Jul-2017,7003713,0.89,REDBRIDGE PRODUCE & FLOWERS LTD T/A TOTAL PRODUCE,390977,Commissioning & Investment,Children's & Education Services,103,Supplies and Services,504,Equipment,5023,Revenue,03.GROCERIES & PROVISIONS
24-Jul-2017,7003713,9.18,REDBRIDGE PRODUCE & FLOWERS LTD T/A TOTAL PRODUCE,390977,Commissioning & Investment,Children's & Education Services,103,Supplies and Services,504,Equipment,5023,Revenue,03.GROCERIES & PROVISIONS
24-Jul-2017,7003713,2.20,REDBRIDGE PRODUCE & FLOWERS LTD T/A TOTAL PRODUCE,390977,Commissioning & Investment,Children's & Education Services,103,Supplies and Services,504,Equipment,5023,Revenue,03.GROCERIES & PROVISIONS
24-Jul-2017,7003713,42.62,REDBRIDGE PRODUCE & FLOWERS LTD T/A TOTAL PRODUCE,390977,Commissioning & Investment,Children's & Education Services,103,Supplies and Services,504,Equipment,5023,Revenue,03.GROCERIES & PROVISIONS
24-Jul-2017,7003713,82.16,REDBRIDGE PRODUCE & FLOWERS LTD T/A TOTAL PRODUCE,390977,Commissioning & Investment,Children's & Education Services,103,Supplies and Services,504,Equipment,5023,Revenue,03.GROCERIES & PROVISIONS
24-Jul-2017,7003713,2.44,REDBRIDGE PRODUCE & FLOWERS LTD T/A TOTAL PRODUCE,390977,Commissioning & Investment,Children's & Education Services,103,Supplies and Services,504,Equipment,5023,Revenue,03.GROCERIES & PROVISIONS
24-Jul-2017,7003713,1.78,REDBRIDGE PRODUCE & FLOWERS LTD T/A TOTAL PRODUCE,390977,Commissioning & Investment,Children's & Education Services,103,Supplies and Services,504,Equipment,5023,Revenue,03.GROCERIES & PROVISIONS
24-Jul-2017,7003713,7.32,REDBRIDGE PRODUCE & FLOWERS LTD T/A TOTAL PRODUCE,390977,Commissioning & Investment,Children's & Education Services,103,Supplies and Services,504,Equipment,5023,Revenue,03.GROCERIES & PROVISIONS
24-Jul-2017,7003713,28.29,REDBRIDGE PRODUCE & FLOWERS LTD T/A TOTAL PRODUCE,390977,Commissioning & Investment,Children's & Education Services,103,Supplies and Services,504,Equipment,5023,Revenue,03.GROCERIES & PROVISIONS
24-Jul-2017,7003713,1.02,REDBRIDGE PRODUCE & FLOWERS LTD T/A TOTAL PRODUCE,390977,Commissioning & Investment,Children's & Education Services,103,Supplies and Services,504,Equipment,5023,Revenue,03.GROCERIES & PROVISIONS
24-Jul-2017,7003713,68.43,REDBRIDGE PRODUCE & FLOWERS LTD T/A TOTAL PRODUCE,390977,Commissioning & Investment,Children's & Education Services,103,Supplies and Services,504,Equipment,5023,Revenue,03.GROCERIES & PROVISIONS
24-Jul-2017,7003713,13.47,REDBRIDGE PRODUCE & FLOWERS LTD T/A TOTAL PRODUCE,390977,Commissioning & Investment,Children's & Education Services,103,Supplies and Services,504,Equipment,5023,Revenue,03.GROCERIES & PROVISIONS
24-Jul-2017,7003713,9.71,REDBRIDGE PRODUCE & FLOWERS LTD T/A TOTAL PRODUCE,390977,Commissioning & Investment,Children's & Education Services,103,Supplies and Services,504,Equipment,5023,Revenue,03.GROCERIES & PROVISIONS
24-Jul-2017,7003713,5.32,REDBRIDGE PRODUCE & FLOWERS LTD T/A TOTAL PRODUCE,390977,"Health, Education, Care and Safeguarding",Children's & Education Services,103,Supplies and Services,504,Equipment,5023,Revenue,03.GROCERIES & PROVISIONS
24-Jul-2017,7003713,9.54,REDBRIDGE PRODUCE & FLOWERS LTD T/A TOTAL PRODUCE,390977,Commissioning & Investment,Children's & Education Services,103,Supplies and Services,504,Equipment,5023,Revenue,03.GROCERIES & PROVISIONS
24-Jul-2017,7003713,1.60,REDBRIDGE PRODUCE & FLOWERS LTD T/A TOTAL PRODUCE,390977,"Health, Education, Care and Safeguarding",Children's & Education Services,103,Supplies and Services,504,Equipment,5023,Revenue,03.GROCERIES & PROVISIONS
24-Jul-2017,7003713,7.74,REDBRIDGE PRODUCE & FLOWERS LTD T/A TOTAL PRODUCE,390977,"Environment, Housing & Leisure",Adult Social Care,101,Supplies and Services,504,Equipment,5023,Revenue,03.GROCERIES & PROVISIONS
24-Jul-2017,7003713,10.12,REDBRIDGE PRODUCE & FLOWERS LTD T/A TOTAL PRODUCE,390977,Commissioning & Investment,Children's & Education Services,103,Supplies and Services,504,Equipment,5023,Revenue,03.GROCERIES & PROVISIONS
24-Jul-2017,7003713,46.50,REDBRIDGE PRODUCE & FLOWERS LTD T/A TOTAL PRODUCE,390977,Commissioning & Investment,Children's & Education Services,103,Supplies and Services,504,Equipment,5023,Revenue,03.GROCERIES & PROVISIONS
24-Jul-2017,7003713,112.49,REDBRIDGE PRODUCE & FLOWERS LTD T/A TOTAL PRODUCE,390977,Commissioning & Investment,Children's & Education Services,103,Supplies and Services,504,Equipment,5023,Revenue,03.GROCERIES & PROVISIONS
24-Jul-2017,7003713,69.85,REDBRIDGE PRODUCE & FLOWERS LTD T/A TOTAL PRODUCE,390977,Commissioning & Investment,Children's & Education Services,103,Supplies and Services,504,Equipment,5023,Revenue,03.GROCERIES & PROVISIONS
24-Jul-2017,7003713,34.55,REDBRIDGE PRODUCE & FLOWERS LTD T/A TOTAL PRODUCE,390977,Commissioning & Investment,Children's & Education Services,103,Supplies and Services,504,Equipment,5023,Revenue,03.GROCERIES & PROVISIONS
24-Jul-2017,7003713,18.46,REDBRIDGE PRODUCE & FLOWERS LTD T/A TOTAL PRODUCE,390977,Commissioning & Investment,Children's & Education Services,103,Supplies and Services,504,Equipment,5023,Revenue,03.GROCERIES & PROVISIONS
24-Jul-2017,7003713,-9.72,REDBRIDGE PRODUCE & FLOWERS LTD T/A TOTAL PRODUCE,390977,Commissioning & Investment,Children's & Education Services,103,Supplies and Services,504,Equipment,5023,Revenue,03.GROCERIES & PROVISIONS
24-Jul-2017,7003713,5.50,REDBRIDGE PRODUCE & FLOWERS LTD T/A TOTAL PRODUCE,390977,Commissioning & Investment,Children's & Education Services,103,Supplies and Services,504,Equipment,5023,Revenue,03.GROCERIES & PROVISIONS
24-Jul-2017,7003713,61.38,REDBRIDGE PRODUCE & FLOWERS LTD T/A TOTAL PRODUCE,390977,Commissioning & Investment,Children's & Education Services,103,Supplies and Services,504,Equipment,5023,Revenue,03.GROCERIES & PROVISIONS
24-Jul-2017,7003713,9.16,REDBRIDGE PRODUCE & FLOWERS LTD T/A TOTAL PRODUCE,390977,Commissioning & Investment,Children's & Education Services,103,Supplies and Services,504,Equipment,5023,Revenue,03.GROCERIES & PROVISIONS
24-Jul-2017,7003713,1.92,REDBRIDGE PRODUCE & FLOWERS LTD T/A TOTAL PRODUCE,390977,Commissioning & Investment,Children's & Education Services,103,Supplies and Services,504,Equipment,5023,Revenue,03.GROCERIES & PROVISIONS
24-Jul-2017,7003713,4.40,REDBRIDGE PRODUCE & FLOWERS LTD T/A TOTAL PRODUCE,390977,Commissioning & Investment,Children's & Education Services,103,Supplies and Services,504,Equipment,5023,Revenue,03.GROCERIES & PROVISIONS
24-Jul-2017,7003713,5.50,REDBRIDGE PRODUCE & FLOWERS LTD T/A TOTAL PRODUCE,390977,Commissioning & Investment,Children's & Education Services,103,Supplies and Services,504,Equipment,5023,Revenue,03.GROCERIES & PROVISIONS
24-Jul-2017,7003713,1.29,REDBRIDGE PRODUCE & FLOWERS LTD T/A TOTAL PRODUCE,390977,Commissioning & Investment,Children's & Education Services,103,Supplies and Services,504,Equipment,5023,Revenue,03.GROCERIES & PROVISIONS
24-Jul-2017,7003713,17.15,REDBRIDGE PRODUCE & FLOWERS LTD T/A TOTAL PRODUCE,390977,Commissioning & Investment,Children's & Education Services,103,Supplies and Services,504,Equipment,5023,Revenue,03.GROCERIES & PROVISIONS
24-Jul-2017,7003713,2.32,REDBRIDGE PRODUCE & FLOWERS LTD T/A TOTAL PRODUCE,390977,Commissioning & Investment,Children's & Education Services,103,Supplies and Services,504,Equipment,5023,Revenue,03.GROCERIES & PROVISIONS
24-Jul-2017,7003713,11.00,REDBRIDGE PRODUCE & FLOWERS LTD T/A TOTAL PRODUCE,390977,Commissioning & Investment,Children's & Education Services,103,Supplies and Services,504,Equipment,5023,Revenue,03.GROCERIES & PROVISIONS
24-Jul-2017,7003713,203.05,REDBRIDGE PRODUCE & FLOWERS LTD T/A TOTAL PRODUCE,390977,Commissioning & Investment,Children's & Education Services,103,Supplies and Services,504,Equipment,5023,Revenue,03.GROCERIES & PROVISIONS
24-Jul-2017,7003713,5.08,REDBRIDGE PRODUCE & FLOWERS LTD T/A TOTAL PRODUCE,390977,"Environment, Housing & Leisure",Adult Social Care,101,Supplies and Services,504,Equipment,5023,Revenue,03.GROCERIES & PROVISIONS
24-Jul-2017,7003713,107.30,REDBRIDGE PRODUCE & FLOWERS LTD T/A TOTAL PRODUCE,390977,Commissioning & Investment,Children's & Education Services,103,Supplies and Services,504,Equipment,5023,Revenue,03.GROCERIES & PROVISIONS
24-Jul-2017,7003713,0.89,REDBRIDGE PRODUCE & FLOWERS LTD T/A TOTAL PRODUCE,390977,Commissioning & Investment,Children's & Education Services,103,Supplies and Services,504,Equipment,5023,Revenue,03.GROCERIES & PROVISIONS
24-Jul-2017,7003713,0.39,REDBRIDGE PRODUCE & FLOWERS LTD T/A TOTAL PRODUCE,390977,Commissioning & Investment,Children's & Education Services,103,Supplies and Services,504,Equipment,5023,Revenue,03.GROCERIES & PROVISIONS
24-Jul-2017,7003713,81.50,REDBRIDGE PRODUCE & FLOWERS LTD T/A TOTAL PRODUCE,390977,Commissioning & Investment,Children's & Education Services,103,Supplies and Services,504,Equipment,5023,Revenue,03.GROCERIES & PROVISIONS
24-Jul-2017,7003713,1.92,REDBRIDGE PRODUCE & FLOWERS LTD T/A TOTAL PRODUCE,390977,Commissioning & Investment,Children's & Education Services,103,Supplies and Services,504,Equipment,5023,Revenue,03.GROCERIES & PROVISIONS
24-Jul-2017,7003713,20.79,REDBRIDGE PRODUCE & FLOWERS LTD T/A TOTAL PRODUCE,390977,Commissioning & Investment,Children's & Education Services,103,Supplies and Services,504,Equipment,5023,Revenue,03.GROCERIES & PROVISIONS
24-Jul-2017,7003713,68.96,REDBRIDGE PRODUCE & FLOWERS LTD T/A TOTAL PRODUCE,390977,Commissioning & Investment,Children's & Education Services,103,Supplies and Services,504,Equipment,5023,Revenue,03.GROCERIES & PROVISIONS
24-Jul-2017,7003713,4.08,REDBRIDGE PRODUCE & FLOWERS LTD T/A TOTAL PRODUCE,390977,Commissioning & Investment,Children's & Education Services,103,Supplies and Services,504,Equipment,5023,Revenue,03.GROCERIES & PROVISIONS
24-Jul-2017,7003713,1.56,REDBRIDGE PRODUCE & FLOWERS LTD T/A TOTAL PRODUCE,390977,Commissioning & Investment,Children's & Education Services,103,Supplies and Services,504,Equipment,5023,Revenue,03.GROCERIES & PROVISIONS
24-Jul-2017,7003713,11.12,REDBRIDGE PRODUCE & FLOWERS LTD T/A TOTAL PRODUCE,390977,Commissioning & Investment,Children's & Education Services,103,Supplies and Services,504,Equipment,5023,Revenue,03.GROCERIES & PROVISIONS
24-Jul-2017,7003713,4.40,REDBRIDGE PRODUCE & FLOWERS LTD T/A TOTAL PRODUCE,390977,Commissioning & Investment,Children's & Education Services,103,Supplies and Services,504,Equipment,5023,Revenue,03.GROCERIES & PROVISIONS
24-Jul-2017,7003713,4.88,REDBRIDGE PRODUCE & FLOWERS LTD T/A TOTAL PRODUCE,390977,Commissioning & Investment,Children's & Education Services,103,Supplies and Services,504,Equipment,5023,Revenue,03.GROCERIES & PROVISIONS
24-Jul-2017,7003713,0.73,REDBRIDGE PRODUCE & FLOWERS LTD T/A TOTAL PRODUCE,390977,Commissioning & Investment,Children's & Education Services,103,Supplies and Services,504,Equipment,5023,Revenue,03.GROCERIES & PROVISIONS
24-Jul-2017,7003713,6.60,REDBRIDGE PRODUCE & FLOWERS LTD T/A TOTAL PRODUCE,390977,Commissioning & Investment,Children's & Education Services,103,Supplies and Services,504,Equipment,5023,Revenue,03.GROCERIES & PROVISIONS
24-Jul-2017,7003713,9.28,REDBRIDGE PRODUCE & FLOWERS LTD T/A TOTAL PRODUCE,390977,Commissioning & Investment,Children's & Education Services,103,Supplies and Services,504,Equipment,5023,Revenue,03.GROCERIES & PROVISIONS
24-Jul-2017,7003713,50.35,REDBRIDGE PRODUCE & FLOWERS LTD T/A TOTAL PRODUCE,390977,Commissioning & Investment,Children's & Education Services,103,Supplies and Services,504,Equipment,5023,Revenue,03.GROCERIES & PROVISIONS
24-Jul-2017,7003713,19.08,REDBRIDGE PRODUCE & FLOWERS LTD T/A TOTAL PRODUCE,390977,Commissioning & Investment,Children's & Education Services,103,Supplies and Services,504,Equipment,5023,Revenue,03.GROCERIES & PROVISIONS
24-Jul-2017,7003713,5.60,REDBRIDGE PRODUCE & FLOWERS LTD T/A TOTAL PRODUCE,390977,Commissioning & Investment,Children's & Education Services,103,Supplies and Services,504,Equipment,5023,Revenue,03.GROCERIES & PROVISIONS
24-Jul-2017,7003713,106.81,REDBRIDGE PRODUCE & FLOWERS LTD T/A TOTAL PRODUCE,390977,Commissioning & Investment,Children's & Education Services,103,Supplies and Services,504,Equipment,5023,Revenue,03.GROCERIES & PROVISIONS
24-Jul-2017,7003713,-1.13,REDBRIDGE PRODUCE & FLOWERS LTD T/A TOTAL PRODUCE,390977,Commissioning & Investment,Children's & Education Services,103,Supplies and Services,504,Equipment,5023,Revenue,03.GROCERIES & PROVISIONS
24-Jul-2017,7003713,9.16,REDBRIDGE PRODUCE & FLOWERS LTD T/A TOTAL PRODUCE,390977,Commissioning & Investment,Children's & Education Services,103,Supplies and Services,504,Equipment,5023,Revenue,03.GROCERIES & PROVISIONS
24-Jul-2017,7003713,60.50,REDBRIDGE PRODUCE & FLOWERS LTD T/A TOTAL PRODUCE,390977,Commissioning & Investment,Children's & Education Services,103,Supplies and Services,504,Equipment,5023,Revenue,03.GROCERIES & PROVISIONS
24-Jul-2017,7003713,10.59,REDBRIDGE PRODUCE & FLOWERS LTD T/A TOTAL PRODUCE,390977,Commissioning & Investment,Children's & Education Services,103,Supplies and Services,504,Equipment,5023,Revenue,03.GROCERIES & PROVISIONS
24-Jul-2017,7003713,1.15,REDBRIDGE PRODUCE & FLOWERS LTD T/A TOTAL PRODUCE,390977,Commissioning & Investment,Children's & Education Services,103,Supplies and Services,504,Equipment,5023,Revenue,03.GROCERIES & PROVISIONS
24-Jul-2017,7003713,9.16,REDBRIDGE PRODUCE & FLOWERS LTD T/A TOTAL PRODUCE,390977,Commissioning & Investment,Children's & Education Services,103,Supplies and Services,504,Equipment,5023,Revenue,03.GROCERIES & PROVISIONS
24-Jul-2017,7003713,2.29,REDBRIDGE PRODUCE & FLOWERS LTD T/A TOTAL PRODUCE,390977,Commissioning & Investment,Children's & Education Services,103,Supplies and Services,504,Equipment,5023,Revenue,03.GROCERIES & PROVISIONS
24-Jul-2017,7003713,0.89,REDBRIDGE PRODUCE & FLOWERS LTD T/A TOTAL PRODUCE,390977,Commissioning & Investment,Children's & Education Services,103,Supplies and Services,504,Equipment,5023,Revenue,03.GROCERIES & PROVISIONS
24-Jul-2017,7003713,4.40,REDBRIDGE PRODUCE & FLOWERS LTD T/A TOTAL PRODUCE,390977,Commissioning & Investment,Children's & Education Services,103,Supplies and Services,504,Equipment,5023,Revenue,03.GROCERIES & PROVISIONS
24-Jul-2017,7003713,27.55,REDBRIDGE PRODUCE & FLOWERS LTD T/A TOTAL PRODUCE,390977,Commissioning & Investment,Children's & Education Services,103,Supplies and Services,504,Equipment,5023,Revenue,03.GROCERIES & PROVISIONS
24-Jul-2017,7003713,8.80,REDBRIDGE PRODUCE & FLOWERS LTD T/A TOTAL PRODUCE,390977,Commissioning & Investment,Children's & Education Services,103,Supplies and Services,504,Equipment,5023,Revenue,03.GROCERIES & PROVISIONS
24-Jul-2017,7003713,1.95,REDBRIDGE PRODUCE & FLOWERS LTD T/A TOTAL PRODUCE,390977,Commissioning & Investment,Children's & Education Services,103,Supplies and Services,504,Equipment,5023,Revenue,03.GROCERIES & PROVISIONS
24-Jul-2017,7003713,9.71,REDBRIDGE PRODUCE & FLOWERS LTD T/A TOTAL PRODUCE,390977,Commissioning & Investment,Children's & Education Services,103,Supplies and Services,504,Equipment,5023,Revenue,03.GROCERIES & PROVISIONS
24-Jul-2017,7003713,64.38,REDBRIDGE PRODUCE & FLOWERS LTD T/A TOTAL PRODUCE,390977,Commissioning & Investment,Children's & Education Services,103,Supplies and Services,504,Equipment,5023,Revenue,03.GROCERIES & PROVISIONS
24-Jul-2017,7003713,-6.25,REDBRIDGE PRODUCE & FLOWERS LTD T/A TOTAL PRODUCE,390977,Commissioning & Investment,Children's & Education Services,103,Supplies and Services,504,Equipment,5023,Revenue,03.GROCERIES & PROVISIONS
24-Jul-2017,7003713,84.14,REDBRIDGE PRODUCE & FLOWERS LTD T/A TOTAL PRODUCE,390977,"Environment, Housing & Leisure",Cultural & Related Services,104,Supplies and Services,504,Equipment,5023,Revenue,03.GROCERIES & PROVISIONS
24-Jul-2017,7003713,35.28,REDBRIDGE PRODUCE & FLOWERS LTD T/A TOTAL PRODUCE,390977,Commissioning & Investment,Children's & Education Services,103,Supplies and Services,504,Equipment,5023,Revenue,03.GROCERIES & PROVISIONS
24-Jul-2017,7003713,8.80,REDBRIDGE PRODUCE & FLOWERS LTD T/A TOTAL PRODUCE,390977,Commissioning & Investment,Children's & Education Services,103,Supplies and Services,504,Equipment,5023,Revenue,03.GROCERIES & PROVISIONS
24-Jul-2017,7003713,6.60,REDBRIDGE PRODUCE & FLOWERS LTD T/A TOTAL PRODUCE,390977,Commissioning & Investment,Children's & Education Services,103,Supplies and Services,504,Equipment,5023,Revenue,03.GROCERIES & PROVISIONS
24-Jul-2017,7003713,8.80,REDBRIDGE PRODUCE & FLOWERS LTD T/A TOTAL PRODUCE,390977,Commissioning & Investment,Children's & Education Services,103,Supplies and Services,504,Equipment,5023,Revenue,03.GROCERIES & PROVISIONS
24-Jul-2017,7003713,53.86,REDBRIDGE PRODUCE & FLOWERS LTD T/A TOTAL PRODUCE,390977,"Health, Education, Care and Safeguarding",Children's & Education Services,103,Supplies and Services,504,Equipment,5023,Revenue,03.GROCERIES & PROVISIONS
24-Jul-2017,7003713,30.60,REDBRIDGE PRODUCE & FLOWERS LTD T/A TOTAL PRODUCE,390977,Commissioning & Investment,Children's & Education Services,103,Supplies and Services,504,Equipment,5023,Revenue,03.GROCERIES & PROVISIONS
24-Jul-2017,7003713,-9.64,REDBRIDGE PRODUCE & FLOWERS LTD T/A TOTAL PRODUCE,390977,"Environment, Housing & Leisure",Cultural & Related Services,104,Supplies and Services,504,Equipment,5023,Revenue,03.GROCERIES & PROVISIONS
24-Jul-2017,7003713,230.09,REDBRIDGE PRODUCE & FLOWERS LTD T/A TOTAL PRODUCE,390977,Commissioning & Investment,Children's & Education Services,103,Supplies and Services,504,Equipment,5023,Revenue,03.GROCERIES & PROVISIONS
24-Jul-2017,7003713,-1.15,REDBRIDGE PRODUCE & FLOWERS LTD T/A TOTAL PRODUCE,390977,Commissioning & Investment,Children's & Education Services,103,Supplies and Services,504,Equipment,5023,Revenue,03.GROCERIES & PROVISIONS
24-Jul-2017,7003713,15.55,REDBRIDGE PRODUCE & FLOWERS LTD T/A TOTAL PRODUCE,390977,Commissioning & Investment,Children's & Education Services,103,Supplies and Services,504,Equipment,5023,Revenue,03.GROCERIES & PROVISIONS
24-Jul-2017,7003713,78.92,REDBRIDGE PRODUCE & FLOWERS LTD T/A TOTAL PRODUCE,390977,Commissioning & Investment,Children's & Education Services,103,Supplies and Services,504,Equipment,5023,Revenue,03.GROCERIES & PROVISIONS
24-Jul-2017,7003713,1.10,REDBRIDGE PRODUCE & FLOWERS LTD T/A TOTAL PRODUCE,390977,Commissioning & Investment,Children's & Education Services,103,Supplies and Services,504,Equipment,5023,Revenue,03.GROCERIES & PROVISIONS
24-Jul-2017,7003713,3.39,REDBRIDGE PRODUCE & FLOWERS LTD T/A TOTAL PRODUCE,390977,Commissioning & Investment,Children's & Education Services,103,Supplies and Services,504,Equipment,5023,Revenue,03.GROCERIES & PROVISIONS
24-Jul-2017,7003713,55.92,REDBRIDGE PRODUCE & FLOWERS LTD T/A TOTAL PRODUCE,390977,Commissioning & Investment,Children's & Education Services,103,Supplies and Services,504,Equipment,5023,Revenue,03.GROCERIES & PROVISIONS
24-Jul-2017,7003713,1.25,REDBRIDGE PRODUCE & FLOWERS LTD T/A TOTAL PRODUCE,390977,Commissioning & Investment,Children's & Education Services,103,Supplies and Services,504,Equipment,5023,Revenue,03.GROCERIES & PROVISIONS
24-Jul-2017,7003713,-1.53,REDBRIDGE PRODUCE & FLOWERS LTD T/A TOTAL PRODUCE,390977,Commissioning & Investment,Children's & Education Services,103,Supplies and Services,504,Equipment,5023,Revenue,03.GROCERIES & PROVISIONS
24-Jul-2017,7003713,25.42,REDBRIDGE PRODUCE & FLOWERS LTD T/A TOTAL PRODUCE,390977,Commissioning & Investment,Children's & Education Services,103,Supplies and Services,504,Equipment,5023,Revenue,03.GROCERIES & PROVISIONS
24-Jul-2017,7003713,5.50,REDBRIDGE PRODUCE & FLOWERS LTD T/A TOTAL PRODUCE,390977,Commissioning & Investment,Children's & Education Services,103,Supplies and Services,504,Equipment,5023,Revenue,03.GROCERIES & PROVISIONS
24-Jul-2017,7003713,87.36,REDBRIDGE PRODUCE & FLOWERS LTD T/A TOTAL PRODUCE,390977,Commissioning & Investment,Children's & Education Services,103,Supplies and Services,504,Equipment,5023,Revenue,03.GROCERIES & PROVISIONS
24-Jul-2017,7003713,1.29,REDBRIDGE PRODUCE & FLOWERS LTD T/A TOTAL PRODUCE,390977,Commissioning & Investment,Children's & Education Services,103,Supplies and Services,504,Equipment,5023,Revenue,03.GROCERIES & PROVISIONS
24-Jul-2017,7003713,1.78,REDBRIDGE PRODUCE & FLOWERS LTD T/A TOTAL PRODUCE,390977,Commissioning & Investment,Children's & Education Services,103,Supplies and Services,504,Equipment,5023,Revenue,03.GROCERIES & PROVISIONS
24-Jul-2017,7003713,2.15,REDBRIDGE PRODUCE & FLOWERS LTD T/A TOTAL PRODUCE,390977,Commissioning & Investment,Children's & Education Services,103,Supplies and Services,504,Equipment,5023,Revenue,03.GROCERIES & PROVISIONS
24-Jul-2017,7003713,8.52,REDBRIDGE PRODUCE & FLOWERS LTD T/A TOTAL PRODUCE,390977,Commissioning & Investment,Children's & Education Services,103,Supplies and Services,504,Equipment,5023,Revenue,03.GROCERIES & PROVISIONS
24-Jul-2017,7003713,1.08,REDBRIDGE PRODUCE & FLOWERS LTD T/A TOTAL PRODUCE,390977,Commissioning & Investment,Children's & Education Services,103,Supplies and Services,504,Equipment,5023,Revenue,03.GROCERIES & PROVISIONS
24-Jul-2017,7003713,9.48,REDBRIDGE PRODUCE & FLOWERS LTD T/A TOTAL PRODUCE,390977,Commissioning & Investment,Children's & Education Services,103,Supplies and Services,504,Equipment,5023,Revenue,03.GROCERIES & PROVISIONS
24-Jul-2017,7003713,58.93,REDBRIDGE PRODUCE & FLOWERS LTD T/A TOTAL PRODUCE,390977,Commissioning & Investment,Children's & Education Services,103,Supplies and Services,504,Equipment,5023,Revenue,03.GROCERIES & PROVISIONS
24-Jul-2017,7003713,0.32,REDBRIDGE PRODUCE & FLOWERS LTD T/A TOTAL PRODUCE,390977,Commissioning & Investment,Children's & Education Services,103,Supplies and Services,504,Equipment,5023,Revenue,03.GROCERIES & PROVISIONS
24-Jul-2017,7003713,4.28,REDBRIDGE PRODUCE & FLOWERS LTD T/A TOTAL PRODUCE,390977,Commissioning & Investment,Children's & Education Services,103,Supplies and Services,504,Equipment,5023,Revenue,03.GROCERIES & PROVISIONS
24-Jul-2017,7003713,113.08,REDBRIDGE PRODUCE & FLOWERS LTD T/A TOTAL PRODUCE,390977,Commissioning & Investment,Children's & Education Services,103,Supplies and Services,504,Equipment,5023,Revenue,03.GROCERIES & PROVISIONS
24-Jul-2017,7003713,70.45,REDBRIDGE PRODUCE & FLOWERS LTD T/A TOTAL PRODUCE,390977,Commissioning & Investment,Children's & Education Services,103,Supplies and Services,504,Equipment,5023,Revenue,03.GROCERIES & PROVISIONS
24-Jul-2017,7003713,6.60,REDBRIDGE PRODUCE & FLOWERS LTD T/A TOTAL PRODUCE,390977,Commissioning & Investment,Children's & Education Services,103,Supplies and Services,504,Equipment,5023,Revenue,03.GROCERIES & PROVISIONS
24-Jul-2017,7003713,0.42,REDBRIDGE PRODUCE & FLOWERS LTD T/A TOTAL PRODUCE,390977,"Health, Education, Care and Safeguarding",Children's & Education Services,103,Supplies and Services,504,Equipment,5023,Revenue,03.GROCERIES & PROVISIONS
24-Jul-2017,7003713,93.23,REDBRIDGE PRODUCE & FLOWERS LTD T/A TOTAL PRODUCE,390977,"Environment, Housing & Leisure",Adult Social Care,101,Supplies and Services,504,Equipment,5023,Revenue,03.GROCERIES & PROVISIONS
24-Jul-2017,7003713,4.08,REDBRIDGE PRODUCE & FLOWERS LTD T/A TOTAL PRODUCE,390977,Commissioning & Investment,Children's & Education Services,103,Supplies and Services,504,Equipment,5023,Revenue,03.GROCERIES & PROVISIONS
24-Jul-2017,7003713,2.15,REDBRIDGE PRODUCE & FLOWERS LTD T/A TOTAL PRODUCE,390977,Commissioning & Investment,Children's & Education Services,103,Supplies and Services,504,Equipment,5023,Revenue,03.GROCERIES & PROVISIONS
24-Jul-2017,7003713,10.20,REDBRIDGE PRODUCE & FLOWERS LTD T/A TOTAL PRODUCE,390977,Commissioning & Investment,Children's & Education Services,103,Supplies and Services,504,Equipment,5023,Revenue,03.GROCERIES & PROVISIONS
24-Jul-2017,7003713,6.60,REDBRIDGE PRODUCE & FLOWERS LTD T/A TOTAL PRODUCE,390977,Commissioning & Investment,Children's & Education Services,103,Supplies and Services,504,Equipment,5023,Revenue,03.GROCERIES & PROVISIONS
24-Jul-2017,7003713,2.29,REDBRIDGE PRODUCE & FLOWERS LTD T/A TOTAL PRODUCE,390977,Commissioning & Investment,Children's & Education Services,103,Supplies and Services,504,Equipment,5023,Revenue,03.GROCERIES & PROVISIONS
24-Jul-2017,7003713,3.06,REDBRIDGE PRODUCE & FLOWERS LTD T/A TOTAL PRODUCE,390977,Commissioning & Investment,Children's & Education Services,103,Supplies and Services,504,Equipment,5023,Revenue,03.GROCERIES & PROVISIONS
24-Jul-2017,7003713,64.56,REDBRIDGE PRODUCE & FLOWERS LTD T/A TOTAL PRODUCE,390977,Commissioning & Investment,Children's & Education Services,103,Supplies and Services,504,Equipment,5023,Revenue,03.GROCERIES & PROVISIONS
24-Jul-2017,7003713,60.25,REDBRIDGE PRODUCE & FLOWERS LTD T/A TOTAL PRODUCE,390977,Commissioning & Investment,Children's & Education Services,103,Supplies and Services,504,Equipment,5023,Revenue,03.GROCERIES & PROVISIONS
24-Jul-2017,7003713,22.00,REDBRIDGE PRODUCE & FLOWERS LTD T/A TOTAL PRODUCE,390977,Commissioning & Investment,Children's & Education Services,103,Supplies and Services,504,Equipment,5023,Revenue,03.GROCERIES & PROVISIONS
24-Jul-2017,7003713,48.46,REDBRIDGE PRODUCE & FLOWERS LTD T/A TOTAL PRODUCE,390977,Commissioning & Investment,Children's & Education Services,103,Supplies and Services,504,Equipment,5023,Revenue,03.GROCERIES & PROVISIONS
24-Jul-2017,7003713,9.90,REDBRIDGE PRODUCE & FLOWERS LTD T/A TOTAL PRODUCE,390977,Commissioning & Investment,Children's & Education Services,103,Supplies and Services,504,Equipment,5023,Revenue,03.GROCERIES & PROVISIONS
24-Jul-2017,7003713,1.08,REDBRIDGE PRODUCE & FLOWERS LTD T/A TOTAL PRODUCE,390977,Commissioning & Investment,Children's & Education Services,103,Supplies and Services,504,Equipment,5023,Revenue,03.GROCERIES & PROVISIONS
24-Jul-2017,7003713,3.30,REDBRIDGE PRODUCE & FLOWERS LTD T/A TOTAL PRODUCE,390977,Commissioning & Investment,Children's & Education Services,103,Supplies and Services,504,Equipment,5023,Revenue,03.GROCERIES & PROVISIONS
24-Jul-2017,7003713,7.70,REDBRIDGE PRODUCE & FLOWERS LTD T/A TOTAL PRODUCE,390977,Commissioning & Investment,Children's & Education Services,103,Supplies and Services,504,Equipment,5023,Revenue,03.GROCERIES & PROVISIONS
24-Jul-2017,7003713,6.60,REDBRIDGE PRODUCE & FLOWERS LTD T/A TOTAL PRODUCE,390977,Commissioning & Investment,Children's & Education Services,103,Supplies and Services,504,Equipment,5023,Revenue,03.GROCERIES & PROVISIONS
24-Jul-2017,7003713,1.22,REDBRIDGE PRODUCE & FLOWERS LTD T/A TOTAL PRODUCE,390977,Commissioning & Investment,Children's & Education Services,103,Supplies and Services,504,Equipment,5023,Revenue,03.GROCERIES & PROVISIONS
24-Jul-2017,7003713,2.10,REDBRIDGE PRODUCE & FLOWERS LTD T/A TOTAL PRODUCE,390977,Commissioning & Investment,Children's & Education Services,103,Supplies and Services,504,Equipment,5023,Revenue,03.GROCERIES & PROVISIONS
24-Jul-2017,7003713,97.93,REDBRIDGE PRODUCE & FLOWERS LTD T/A TOTAL PRODUCE,390977,Commissioning & Investment,Children's & Education Services,103,Supplies and Services,504,Equipment,5023,Revenue,03.GROCERIES & PROVISIONS
24-Jul-2017,7003713,22.24,REDBRIDGE PRODUCE & FLOWERS LTD T/A TOTAL PRODUCE,390977,Commissioning & Investment,Children's & Education Services,103,Supplies and Services,504,Equipment,5023,Revenue,03.GROCERIES & PROVISIONS
24-Jul-2017,7003713,2.20,REDBRIDGE PRODUCE & FLOWERS LTD T/A TOTAL PRODUCE,390977,Commissioning & Investment,Children's & Education Services,103,Supplies and Services,504,Equipment,5023,Revenue,03.GROCERIES & PROVISIONS
24-Jul-2017,7003713,6.12,REDBRIDGE PRODUCE & FLOWERS LTD T/A TOTAL PRODUCE,390977,Commissioning & Investment,Children's & Education Services,103,Supplies and Services,504,Equipment,5023,Revenue,03.GROCERIES & PROVISIONS
24-Jul-2017,7003713,1.12,REDBRIDGE PRODUCE & FLOWERS LTD T/A TOTAL PRODUCE,390977,"Health, Education, Care and Safeguarding",Children's & Education Services,103,Supplies and Services,504,Equipment,5023,Revenue,03.GROCERIES & PROVISIONS
24-Jul-2017,7003713,1.07,REDBRIDGE PRODUCE & FLOWERS LTD T/A TOTAL PRODUCE,390977,"Health, Education, Care and Safeguarding",Children's & Education Services,103,Supplies and Services,504,Equipment,5023,Revenue,03.GROCERIES & PROVISIONS
24-Jul-2017,7003713,47.43,REDBRIDGE PRODUCE & FLOWERS LTD T/A TOTAL PRODUCE,390977,Commissioning & Investment,Children's & Education Services,103,Supplies and Services,504,Equipment,5023,Revenue,03.GROCERIES & PROVISIONS
24-Jul-2017,7003713,53.50,REDBRIDGE PRODUCE & FLOWERS LTD T/A TOTAL PRODUCE,390977,Commissioning & Investment,Children's & Education Services,103,Supplies and Services,504,Equipment,5023,Revenue,03.GROCERIES & PROVISIONS
24-Jul-2017,7003713,1.78,REDBRIDGE PRODUCE & FLOWERS LTD T/A TOTAL PRODUCE,390977,Commissioning & Investment,Children's & Education Services,103,Supplies and Services,504,Equipment,5023,Revenue,03.GROCERIES & PROVISIONS
24-Jul-2017,7003713,111.82,REDBRIDGE PRODUCE & FLOWERS LTD T/A TOTAL PRODUCE,390977,Commissioning & Investment,Children's & Education Services,103,Supplies and Services,504,Equipment,5023,Revenue,03.GROCERIES & PROVISIONS
24-Jul-2017,7003713,28.85,REDBRIDGE PRODUCE & FLOWERS LTD T/A TOTAL PRODUCE,390977,Commissioning & Investment,Children's & Education Services,103,Supplies and Services,504,Equipment,5023,Revenue,03.GROCERIES & PROVISIONS
24-Jul-2017,7003713,62.65,REDBRIDGE PRODUCE & FLOWERS LTD T/A TOTAL PRODUCE,390977,Commissioning & Investment,Children's & Education Services,103,Supplies and Services,504,Equipment,5023,Revenue,03.GROCERIES & PROVISIONS
24-Jul-2017,7003713,9.71,REDBRIDGE PRODUCE & FLOWERS LTD T/A TOTAL PRODUCE,390977,Commissioning & Investment,Children's & Education Services,103,Supplies and Services,504,Equipment,5023,Revenue,03.GROCERIES & PROVISIONS
24-Jul-2017,7003713,2.15,REDBRIDGE PRODUCE & FLOWERS LTD T/A TOTAL PRODUCE,390977,Commissioning & Investment,Children's & Education Services,103,Supplies and Services,504,Equipment,5023,Revenue,03.GROCERIES & PROVISIONS
24-Jul-2017,7003713,43.69,REDBRIDGE PRODUCE & FLOWERS LTD T/A TOTAL PRODUCE,390977,Commissioning & Investment,Children's & Education Services,103,Supplies and Services,504,Equipment,5023,Revenue,03.GROCERIES & PROVISIONS
24-Jul-2017,7003713,0.95,REDBRIDGE PRODUCE & FLOWERS LTD T/A TOTAL PRODUCE,390977,Commissioning & Investment,Children's & Education Services,103,Supplies and Services,504,Equipment,5023,Revenue,03.GROCERIES & PROVISIONS
24-Jul-2017,7003713,53.59,REDBRIDGE PRODUCE & FLOWERS LTD T/A TOTAL PRODUCE,390977,Commissioning & Investment,Children's & Education Services,103,Supplies and Services,504,Equipment,5023,Revenue,03.GROCERIES & PROVISIONS
24-Jul-2017,7003713,60.73,REDBRIDGE PRODUCE & FLOWERS LTD T/A TOTAL PRODUCE,390977,Commissioning & Investment,Children's & Education Services,103,Supplies and Services,504,Equipment,5023,Revenue,03.GROCERIES & PROVISIONS
24-Jul-2017,7003713,63.22,REDBRIDGE PRODUCE & FLOWERS LTD T/A TOTAL PRODUCE,390977,Commissioning & Investment,Children's & Education Services,103,Supplies and Services,504,Equipment,5023,Revenue,03.GROCERIES & PROVISIONS
24-Jul-2017,7003713,37.06,REDBRIDGE PRODUCE & FLOWERS LTD T/A TOTAL PRODUCE,390977,Commissioning & Investment,Children's & Education Services,103,Supplies and Services,504,Equipment,5023,Revenue,03.GROCERIES & PROVISIONS
24-Jul-2017,7003713,147.19,REDBRIDGE PRODUCE & FLOWERS LTD T/A TOTAL PRODUCE,390977,Commissioning & Investment,Children's & Education Services,103,Supplies and Services,504,Equipment,5023,Revenue,03.GROCERIES & PROVISIONS
24-Jul-2017,7003713,4.40,REDBRIDGE PRODUCE & FLOWERS LTD T/A TOTAL PRODUCE,390977,Commissioning & Investment,Children's & Education Services,103,Supplies and Services,504,Equipment,5023,Revenue,03.GROCERIES & PROVISIONS
24-Jul-2017,7003713,37.93,REDBRIDGE PRODUCE & FLOWERS LTD T/A TOTAL PRODUCE,390977,Commissioning & Investment,Children's & Education Services,103,Supplies and Services,504,Equipment,5023,Revenue,03.GROCERIES & PROVISIONS
24-Jul-2017,7003713,-4.98,REDBRIDGE PRODUCE & FLOWERS LTD T/A TOTAL PRODUCE,390977,Commissioning & Investment,Children's & Education Services,103,Supplies and Services,504,Equipment,5023,Revenue,03.GROCERIES & PROVISIONS
24-Jul-2017,7003713,9.16,REDBRIDGE PRODUCE & FLOWERS LTD T/A TOTAL PRODUCE,390977,Commissioning & Investment,Children's & Education Services,103,Supplies and Services,504,Equipment,5023,Revenue,03.GROCERIES & PROVISIONS
24-Jul-2017,7003713,3.06,REDBRIDGE PRODUCE & FLOWERS LTD T/A TOTAL PRODUCE,390977,Commissioning & Investment,Children's & Education Services,103,Supplies and Services,504,Equipment,5023,Revenue,03.GROCERIES & PROVISIONS
24-Jul-2017,7003713,2.32,REDBRIDGE PRODUCE & FLOWERS LTD T/A TOTAL PRODUCE,390977,"Environment, Housing & Leisure",Cultural & Related Services,104,Supplies and Services,504,Equipment,5023,Revenue,03.GROCERIES & PROVISIONS
24-Jul-2017,7003713,3.30,REDBRIDGE PRODUCE & FLOWERS LTD T/A TOTAL PRODUCE,390977,Commissioning & Investment,Children's & Education Services,103,Supplies and Services,504,Equipment,5023,Revenue,03.GROCERIES & PROVISIONS
24-Jul-2017,7003713,1.29,REDBRIDGE PRODUCE & FLOWERS LTD T/A TOTAL PRODUCE,390977,Commissioning & Investment,Children's & Education Services,103,Supplies and Services,504,Equipment,5023,Revenue,03.GROCERIES & PROVISIONS
24-Jul-2017,7003713,79.95,REDBRIDGE PRODUCE & FLOWERS LTD T/A TOTAL PRODUCE,390977,Commissioning & Investment,Children's & Education Services,103,Supplies and Services,504,Equipment,5023,Revenue,03.GROCERIES & PROVISIONS
24-Jul-2017,7003713,4.40,REDBRIDGE PRODUCE & FLOWERS LTD T/A TOTAL PRODUCE,390977,Commissioning & Investment,Children's & Education Services,103,Supplies and Services,504,Equipment,5023,Revenue,03.GROCERIES & PROVISIONS
24-Jul-2017,7003713,9.71,REDBRIDGE PRODUCE & FLOWERS LTD T/A TOTAL PRODUCE,390977,Commissioning & Investment,Children's & Education Services,103,Supplies and Services,504,Equipment,5023,Revenue,03.GROCERIES & PROVISIONS
24-Jul-2017,7003713,23.27,REDBRIDGE PRODUCE & FLOWERS LTD T/A TOTAL PRODUCE,390977,Commissioning & Investment,Children's & Education Services,103,Supplies and Services,504,Equipment,5023,Revenue,03.GROCERIES & PROVISIONS
24-Jul-2017,7003713,-4.60,REDBRIDGE PRODUCE & FLOWERS LTD T/A TOTAL PRODUCE,390977,Commissioning & Investment,Children's & Education Services,103,Supplies and Services,504,Equipment,5023,Revenue,03.GROCERIES & PROVISIONS
24-Jul-2017,7003713,1.61,REDBRIDGE PRODUCE & FLOWERS LTD T/A TOTAL PRODUCE,390977,Commissioning & Investment,Children's & Education Services,103,Supplies and Services,504,Equipment,5023,Revenue,03.GROCERIES & PROVISIONS
24-Jul-2017,7003713,56.41,REDBRIDGE PRODUCE & FLOWERS LTD T/A TOTAL PRODUCE,390977,"Environment, Housing & Leisure",Cultural & Related Services,104,Supplies and Services,504,Equipment,5023,Revenue,03.GROCERIES & PROVISIONS
24-Jul-2017,7003713,65.68,REDBRIDGE PRODUCE & FLOWERS LTD T/A TOTAL PRODUCE,390977,Commissioning & Investment,Children's & Education Services,103,Supplies and Services,504,Equipment,5023,Revenue,03.GROCERIES & PROVISIONS
24-Jul-2017,7003713,4.40,REDBRIDGE PRODUCE & FLOWERS LTD T/A TOTAL PRODUCE,390977,Commissioning & Investment,Children's & Education Services,103,Supplies and Services,504,Equipment,5023,Revenue,03.GROCERIES & PROVISIONS
24-Jul-2017,7003713,8.80,REDBRIDGE PRODUCE & FLOWERS LTD T/A TOTAL PRODUCE,390977,Commissioning & Investment,Children's & Education Services,103,Supplies and Services,504,Equipment,5023,Revenue,03.GROCERIES & PROVISIONS
24-Jul-2017,7003713,2.50,REDBRIDGE PRODUCE & FLOWERS LTD T/A TOTAL PRODUCE,390977,Commissioning & Investment,Children's & Education Services,103,Supplies and Services,504,Equipment,5023,Revenue,03.GROCERIES & PROVISIONS
24-Jul-2017,7003713,279.14,REDBRIDGE PRODUCE & FLOWERS LTD T/A TOTAL PRODUCE,390977,Commissioning & Investment,Children's & Education Services,103,Supplies and Services,504,Equipment,5023,Revenue,03.GROCERIES & PROVISIONS
24-Jul-2017,7003713,0.78,REDBRIDGE PRODUCE & FLOWERS LTD T/A TOTAL PRODUCE,390977,Commissioning & Investment,Children's & Education Services,103,Supplies and Services,504,Equipment,5023,Revenue,03.GROCERIES & PROVISIONS
24-Jul-2017,7003713,2.10,REDBRIDGE PRODUCE & FLOWERS LTD T/A TOTAL PRODUCE,390977,Commissioning & Investment,Children's & Education Services,103,Supplies and Services,504,Equipment,5023,Revenue,03.GROCERIES & PROVISIONS
24-Jul-2017,7003713,2.15,REDBRIDGE PRODUCE & FLOWERS LTD T/A TOTAL PRODUCE,390977,Commissioning & Investment,Children's & Education Services,103,Supplies and Services,504,Equipment,5023,Revenue,03.GROCERIES & PROVISIONS
24-Jul-2017,7003713,1.25,REDBRIDGE PRODUCE & FLOWERS LTD T/A TOTAL PRODUCE,390977,Commissioning & Investment,Children's & Education Services,103,Supplies and Services,504,Equipment,5023,Revenue,03.GROCERIES & PROVISIONS
24-Jul-2017,7003713,87.14,REDBRIDGE PRODUCE & FLOWERS LTD T/A TOTAL PRODUCE,390977,Commissioning & Investment,Children's & Education Services,103,Supplies and Services,504,Equipment,5023,Revenue,03.GROCERIES & PROVISIONS
24-Jul-2017,7003713,65.25,REDBRIDGE PRODUCE & FLOWERS LTD T/A TOTAL PRODUCE,390977,Commissioning & Investment,Children's & Education Services,103,Supplies and Services,504,Equipment,5023,Revenue,03.GROCERIES & PROVISIONS
24-Jul-2017,7003713,40.04,REDBRIDGE PRODUCE & FLOWERS LTD T/A TOTAL PRODUCE,390977,Commissioning & Investment,Children's & Education Services,103,Supplies and Services,504,Equipment,5023,Revenue,03.GROCERIES & PROVISIONS
24-Jul-2017,7003713,3.06,REDBRIDGE PRODUCE & FLOWERS LTD T/A TOTAL PRODUCE,390977,Commissioning & Investment,Children's & Education Services,103,Supplies and Services,504,Equipment,5023,Revenue,03.GROCERIES & PROVISIONS
24-Jul-2017,7003713,2.38,REDBRIDGE PRODUCE & FLOWERS LTD T/A TOTAL PRODUCE,390977,"Health, Education, Care and Safeguarding",Children's & Education Services,103,Supplies and Services,504,Equipment,5023,Revenue,03.GROCERIES & PROVISIONS
24-Jul-2017,7003713,4.40,REDBRIDGE PRODUCE & FLOWERS LTD T/A TOTAL PRODUCE,390977,Commissioning & Investment,Children's & Education Services,103,Supplies and Services,504,Equipment,5023,Revenue,03.GROCERIES & PROVISIONS
24-Jul-2017,7003713,1.25,REDBRIDGE PRODUCE & FLOWERS LTD T/A TOTAL PRODUCE,390977,Commissioning & Investment,Children's & Education Services,103,Supplies and Services,504,Equipment,5023,Revenue,03.GROCERIES & PROVISIONS
24-Jul-2017,7003713,0.89,REDBRIDGE PRODUCE & FLOWERS LTD T/A TOTAL PRODUCE,390977,Commissioning & Investment,Children's & Education Services,103,Supplies and Services,504,Equipment,5023,Revenue,03.GROCERIES & PROVISIONS
24-Jul-2017,7003713,1.17,REDBRIDGE PRODUCE & FLOWERS LTD T/A TOTAL PRODUCE,390977,Commissioning & Investment,Children's & Education Services,103,Supplies and Services,504,Equipment,5023,Revenue,03.GROCERIES & PROVISIONS
24-Jul-2017,7003713,-2.08,REDBRIDGE PRODUCE & FLOWERS LTD T/A TOTAL PRODUCE,390977,Commissioning & Investment,Children's & Education Services,103,Supplies and Services,504,Equipment,5023,Revenue,03.GROCERIES & PROVISIONS
24-Jul-2017,7003713,43.54,REDBRIDGE PRODUCE & FLOWERS LTD T/A TOTAL PRODUCE,390977,"Environment, Housing & Leisure",Cultural & Related Services,104,Supplies and Services,504,Equipment,5023,Revenue,03.GROCERIES & PROVISIONS
24-Jul-2017,7003713,34.94,REDBRIDGE PRODUCE & FLOWERS LTD T/A TOTAL PRODUCE,390977,Commissioning & Investment,Children's & Education Services,103,Supplies and Services,504,Equipment,5023,Revenue,03.GROCERIES & PROVISIONS
24-Jul-2017,7003713,2.29,REDBRIDGE PRODUCE & FLOWERS LTD T/A TOTAL PRODUCE,390977,Commissioning & Investment,Children's & Education Services,103,Supplies and Services,504,Equipment,5023,Revenue,03.GROCERIES & PROVISIONS
24-Jul-2017,7003713,126.47,REDBRIDGE PRODUCE & FLOWERS LTD T/A TOTAL PRODUCE,390977,Commissioning & Investment,Children's & Education Services,103,Supplies and Services,504,Equipment,5023,Revenue,03.GROCERIES & PROVISIONS
24-Jul-2017,7003713,86.04,REDBRIDGE PRODUCE & FLOWERS LTD T/A TOTAL PRODUCE,390977,Commissioning & Investment,Children's & Education Services,103,Supplies and Services,504,Equipment,5023,Revenue,03.GROCERIES & PROVISIONS
24-Jul-2017,7003713,4.40,REDBRIDGE PRODUCE & FLOWERS LTD T/A TOTAL PRODUCE,390977,Commissioning & Investment,Children's & Education Services,103,Supplies and Services,504,Equipment,5023,Revenue,03.GROCERIES & PROVISIONS
24-Jul-2017,7003713,6.60,REDBRIDGE PRODUCE & FLOWERS LTD T/A TOTAL PRODUCE,390977,Commissioning & Investment,Children's & Education Services,103,Supplies and Services,504,Equipment,5023,Revenue,03.GROCERIES & PROVISIONS
24-Jul-2017,7003713,1.53,REDBRIDGE PRODUCE & FLOWERS LTD T/A TOTAL PRODUCE,390977,Commissioning & Investment,Children's & Education Services,103,Supplies and Services,504,Equipment,5023,Revenue,03.GROCERIES & PROVISIONS
24-Jul-2017,7003713,1.07,REDBRIDGE PRODUCE & FLOWERS LTD T/A TOTAL PRODUCE,390977,"Health, Education, Care and Safeguarding",Children's & Education Services,103,Supplies and Services,504,Equipment,5023,Revenue,03.GROCERIES & PROVISIONS
24-Jul-2017,7003713,27.50,REDBRIDGE PRODUCE & FLOWERS LTD T/A TOTAL PRODUCE,390977,Commissioning & Investment,Children's & Education Services,103,Supplies and Services,504,Equipment,5023,Revenue,03.GROCERIES & PROVISIONS
24-Jul-2017,7003713,-4.40,REDBRIDGE PRODUCE & FLOWERS LTD T/A TOTAL PRODUCE,390977,Commissioning & Investment,Children's & Education Services,103,Supplies and Services,504,Equipment,5023,Revenue,03.GROCERIES & PROVISIONS
24-Jul-2017,7003713,44.80,REDBRIDGE PRODUCE & FLOWERS LTD T/A TOTAL PRODUCE,390977,Commissioning & Investment,Children's & Education Services,103,Supplies and Services,504,Equipment,5023,Revenue,03.GROCERIES & PROVISIONS
24-Jul-2017,7003713,58.40,REDBRIDGE PRODUCE & FLOWERS LTD T/A TOTAL PRODUCE,390977,Commissioning & Investment,Children's & Education Services,103,Supplies and Services,504,Equipment,5023,Revenue,03.GROCERIES & PROVISIONS
24-Jul-2017,7003713,0.78,REDBRIDGE PRODUCE & FLOWERS LTD T/A TOTAL PRODUCE,390977,Commissioning & Investment,Children's & Education Services,103,Supplies and Services,504,Equipment,5023,Revenue,03.GROCERIES & PROVISIONS
24-Jul-2017,7003713,0.78,REDBRIDGE PRODUCE & FLOWERS LTD T/A TOTAL PRODUCE,390977,Commissioning & Investment,Children's & Education Services,103,Supplies and Services,504,Equipment,5023,Revenue,03.GROCERIES & PROVISIONS
24-Jul-2017,7003713,0.78,REDBRIDGE PRODUCE & FLOWERS LTD T/A TOTAL PRODUCE,390977,Commissioning & Investment,Children's & Education Services,103,Supplies and Services,504,Equipment,5023,Revenue,03.GROCERIES & PROVISIONS
24-Jul-2017,7003713,218.52,REDBRIDGE PRODUCE & FLOWERS LTD T/A TOTAL PRODUCE,390977,Commissioning & Investment,Children's & Education Services,103,Supplies and Services,504,Equipment,5023,Revenue,03.GROCERIES & PROVISIONS
24-Jul-2017,7003713,69.26,REDBRIDGE PRODUCE & FLOWERS LTD T/A TOTAL PRODUCE,390977,Commissioning & Investment,Children's & Education Services,103,Supplies and Services,504,Equipment,5023,Revenue,03.GROCERIES & PROVISIONS
24-Jul-2017,7003713,127.55,REDBRIDGE PRODUCE & FLOWERS LTD T/A TOTAL PRODUCE,390977,Commissioning & Investment,Children's & Education Services,103,Supplies and Services,504,Equipment,5023,Revenue,03.GROCERIES & PROVISIONS
24-Jul-2017,7003713,51.07,REDBRIDGE PRODUCE & FLOWERS LTD T/A TOTAL PRODUCE,390977,Commissioning & Investment,Children's & Education Services,103,Supplies and Services,504,Equipment,5023,Revenue,03.GROCERIES & PROVISIONS
24-Jul-2017,7003713,5.34,REDBRIDGE PRODUCE & FLOWERS LTD T/A TOTAL PRODUCE,390977,Commissioning & Investment,Children's & Education Services,103,Supplies and Services,504,Equipment,5023,Revenue,03.GROCERIES & PROVISIONS
24-Jul-2017,7003713,43.35,REDBRIDGE PRODUCE & FLOWERS LTD T/A TOTAL PRODUCE,390977,Commissioning & Investment,Children's & Education Services,103,Supplies and Services,504,Equipment,5023,Revenue,03.GROCERIES & PROVISIONS
24-Jul-2017,7003713,22.89,REDBRIDGE PRODUCE & FLOWERS LTD T/A TOTAL PRODUCE,390977,Commissioning & Investment,Children's & Education Services,103,Supplies and Services,504,Equipment,5023,Revenue,03.GROCERIES & PROVISIONS
24-Jul-2017,7003713,73.58,REDBRIDGE PRODUCE & FLOWERS LTD T/A TOTAL PRODUCE,390977,Commissioning & Investment,Children's & Education Services,103,Supplies and Services,504,Equipment,5023,Revenue,03.GROCERIES & PROVISIONS
24-Jul-2017,7003713,16.50,REDBRIDGE PRODUCE & FLOWERS LTD T/A TOTAL PRODUCE,390977,Commissioning & Investment,Children's & Education Services,103,Supplies and Services,504,Equipment,5023,Revenue,03.GROCERIES & PROVISIONS
24-Jul-2017,7003713,16.50,REDBRIDGE PRODUCE & FLOWERS LTD T/A TOTAL PRODUCE,390977,Commissioning & Investment,Children's & Education Services,103,Supplies and Services,504,Equipment,5023,Revenue,03.GROCERIES & PROVISIONS
24-Jul-2017,7003713,21.87,REDBRIDGE PRODUCE & FLOWERS LTD T/A TOTAL PRODUCE,390977,Commissioning & Investment,Children's & Education Services,103,Supplies and Services,504,Equipment,5023,Revenue,03.GROCERIES & PROVISIONS
24-Jul-2017,7003713,72.23,REDBRIDGE PRODUCE & FLOWERS LTD T/A TOTAL PRODUCE,390977,"Environment, Housing & Leisure",Cultural & Related Services,104,Supplies and Services,504,Equipment,5023,Revenue,03.GROCERIES & PROVISIONS
24-Jul-2017,7003713,2.20,REDBRIDGE PRODUCE & FLOWERS LTD T/A TOTAL PRODUCE,390977,Commissioning & Investment,Children's & Education Services,103,Supplies and Services,504,Equipment,5023,Revenue,03.GROCERIES & PROVISIONS
24-Jul-2017,7003713,49.34,REDBRIDGE PRODUCE & FLOWERS LTD T/A TOTAL PRODUCE,390977,Commissioning & Investment,Children's & Education Services,103,Supplies and Services,504,Equipment,5023,Revenue,03.GROCERIES & PROVISIONS
24-Jul-2017,7003713,12.24,REDBRIDGE PRODUCE & FLOWERS LTD T/A TOTAL PRODUCE,390977,Commissioning & Investment,Children's & Education Services,103,Supplies and Services,504,Equipment,5023,Revenue,03.GROCERIES & PROVISIONS
24-Jul-2017,7003713,50.86,REDBRIDGE PRODUCE & FLOWERS LTD T/A TOTAL PRODUCE,390977,Commissioning & Investment,Children's & Education Services,103,Supplies and Services,504,Equipment,5023,Revenue,03.GROCERIES & PROVISIONS
24-Jul-2017,7003713,37.43,REDBRIDGE PRODUCE & FLOWERS LTD T/A TOTAL PRODUCE,390977,Commissioning & Investment,Children's & Education Services,103,Supplies and Services,504,Equipment,5023,Revenue,03.GROCERIES & PROVISIONS
24-Jul-2017,7003713,1.36,REDBRIDGE PRODUCE & FLOWERS LTD T/A TOTAL PRODUCE,390977,Commissioning & Investment,Children's & Education Services,103,Supplies and Services,504,Equipment,5023,Revenue,03.GROCERIES & PROVISIONS
24-Jul-2017,7003713,0.78,REDBRIDGE PRODUCE & FLOWERS LTD T/A TOTAL PRODUCE,390977,Commissioning & Investment,Children's & Education Services,103,Supplies and Services,504,Equipment,5023,Revenue,03.GROCERIES & PROVISIONS
24-Jul-2017,7003713,0.89,REDBRIDGE PRODUCE & FLOWERS LTD T/A TOTAL PRODUCE,390977,Commissioning & Investment,Children's & Education Services,103,Supplies and Services,504,Equipment,5023,Revenue,03.GROCERIES & PROVISIONS
24-Jul-2017,7003713,301.03,REDBRIDGE PRODUCE & FLOWERS LTD T/A TOTAL PRODUCE,390977,Commissioning & Investment,Children's & Education Services,103,Supplies and Services,504,Equipment,5023,Revenue,03.GROCERIES & PROVISIONS
24-Jul-2017,7003713,2.10,REDBRIDGE PRODUCE & FLOWERS LTD T/A TOTAL PRODUCE,390977,Commissioning & Investment,Children's & Education Services,103,Supplies and Services,504,Equipment,5023,Revenue,03.GROCERIES & PROVISIONS
24-Jul-2017,7003713,22.91,REDBRIDGE PRODUCE & FLOWERS LTD T/A TOTAL PRODUCE,390977,Commissioning & Investment,Children's & Education Services,103,Supplies and Services,504,Equipment,5023,Revenue,03.GROCERIES & PROVISIONS
24-Jul-2017,7003713,0.60,REDBRIDGE PRODUCE & FLOWERS LTD T/A TOTAL PRODUCE,390977,Commissioning & Investment,Children's & Education Services,103,Supplies and Services,504,Equipment,5023,Revenue,03.GROCERIES & PROVISIONS
24-Jul-2017,7003713,-3.05,REDBRIDGE PRODUCE & FLOWERS LTD T/A TOTAL PRODUCE,390977,Commissioning & Investment,Children's & Education Services,103,Supplies and Services,504,Equipment,5023,Revenue,03.GROCERIES & PROVISIONS
24-Jul-2017,7003713,3.05,REDBRIDGE PRODUCE & FLOWERS LTD T/A TOTAL PRODUCE,390977,Commissioning & Investment,Children's & Education Services,103,Supplies and Services,504,Equipment,5023,Revenue,03.GROCERIES & PROVISIONS
24-Jul-2017,7003713,1.36,REDBRIDGE PRODUCE & FLOWERS LTD T/A TOTAL PRODUCE,390977,Commissioning & Investment,Children's & Education Services,103,Supplies and Services,504,Equipment,5023,Revenue,03.GROCERIES & PROVISIONS
24-Jul-2017,7003713,25.71,REDBRIDGE PRODUCE & FLOWERS LTD T/A TOTAL PRODUCE,390977,Commissioning & Investment,Children's & Education Services,103,Supplies and Services,504,Equipment,5023,Revenue,03.GROCERIES & PROVISIONS
24-Jul-2017,7003713,42.29,REDBRIDGE PRODUCE & FLOWERS LTD T/A TOTAL PRODUCE,390977,Commissioning & Investment,Children's & Education Services,103,Supplies and Services,504,Equipment,5023,Revenue,03.GROCERIES & PROVISIONS
24-Jul-2017,7003713,4.45,REDBRIDGE PRODUCE & FLOWERS LTD T/A TOTAL PRODUCE,390977,Commissioning & Investment,Children's & Education Services,103,Supplies and Services,504,Equipment,5023,Revenue,03.GROCERIES & PROVISIONS
24-Jul-2017,7003713,0.78,REDBRIDGE PRODUCE & FLOWERS LTD T/A TOTAL PRODUCE,390977,Commissioning & Investment,Children's & Education Services,103,Supplies and Services,504,Equipment,5023,Revenue,03.GROCERIES & PROVISIONS
24-Jul-2017,7003713,-3.15,REDBRIDGE PRODUCE & FLOWERS LTD T/A TOTAL PRODUCE,390977,Commissioning & Investment,Children's & Education Services,103,Supplies and Services,504,Equipment,5023,Revenue,03.GROCERIES & PROVISIONS
24-Jul-2017,7003713,50.79,REDBRIDGE PRODUCE & FLOWERS LTD T/A TOTAL PRODUCE,390977,Commissioning & Investment,Children's & Education Services,103,Supplies and Services,504,Equipment,5023,Revenue,03.GROCERIES & PROVISIONS
24-Jul-2017,7003713,3.84,REDBRIDGE PRODUCE & FLOWERS LTD T/A TOTAL PRODUCE,390977,Commissioning & Investment,Children's & Education Services,103,Supplies and Services,504,Equipment,5023,Revenue,03.GROCERIES & PROVISIONS
24-Jul-2017,7003713,86.44,REDBRIDGE PRODUCE & FLOWERS LTD T/A TOTAL PRODUCE,390977,Commissioning & Investment,Children's & Education Services,103,Supplies and Services,504,Equipment,5023,Revenue,03.GROCERIES & PROVISIONS
24-Jul-2017,7003713,68.14,REDBRIDGE PRODUCE & FLOWERS LTD T/A TOTAL PRODUCE,390977,Commissioning & Investment,Children's & Education Services,103,Supplies and Services,504,Equipment,5023,Revenue,03.GROCERIES & PROVISIONS
24-Jul-2017,7003713,37.07,REDBRIDGE PRODUCE & FLOWERS LTD T/A TOTAL PRODUCE,390977,"Health, Education, Care and Safeguarding",Children's & Education Services,103,Supplies and Services,504,Equipment,5023,Revenue,03.GROCERIES & PROVISIONS
24-Jul-2017,7003713,1.07,REDBRIDGE PRODUCE & FLOWERS LTD T/A TOTAL PRODUCE,390977,"Health, Education, Care and Safeguarding",Children's & Education Services,103,Supplies and Services,504,Equipment,5023,Revenue,03.GROCERIES & PROVISIONS
24-Jul-2017,7003713,3.66,REDBRIDGE PRODUCE & FLOWERS LTD T/A TOTAL PRODUCE,390977,Commissioning & Investment,Children's & Education Services,103,Supplies and Services,504,Equipment,5023,Revenue,03.GROCERIES & PROVISIONS
24-Jul-2017,7003713,67.07,REDBRIDGE PRODUCE & FLOWERS LTD T/A TOTAL PRODUCE,390977,Commissioning & Investment,Children's & Education Services,103,Supplies and Services,504,Equipment,5023,Revenue,03.GROCERIES & PROVISIONS
24-Jul-2017,7003713,-2.75,REDBRIDGE PRODUCE & FLOWERS LTD T/A TOTAL PRODUCE,390977,Commissioning & Investment,Children's & Education Services,103,Supplies and Services,504,Equipment,5023,Revenue,03.GROCERIES & PROVISIONS
24-Jul-2017,7003713,3.20,REDBRIDGE PRODUCE & FLOWERS LTD T/A TOTAL PRODUCE,390977,Commissioning & Investment,Children's & Education Services,103,Supplies and Services,504,Equipment,5023,Revenue,03.GROCERIES & PROVISIONS
24-Jul-2017,7003713,33.69,REDBRIDGE PRODUCE & FLOWERS LTD T/A TOTAL PRODUCE,390977,Commissioning & Investment,Children's & Education Services,103,Supplies and Services,504,Equipment,5023,Revenue,03.GROCERIES & PROVISIONS
24-Jul-2017,7003713,3.06,REDBRIDGE PRODUCE & FLOWERS LTD T/A TOTAL PRODUCE,390977,Commissioning & Investment,Children's & Education Services,103,Supplies and Services,504,Equipment,5023,Revenue,03.GROCERIES & PROVISIONS
24-Jul-2017,7003713,3.06,REDBRIDGE PRODUCE & FLOWERS LTD T/A TOTAL PRODUCE,390977,Commissioning & Investment,Children's & Education Services,103,Supplies and Services,504,Equipment,5023,Revenue,03.GROCERIES & PROVISIONS
24-Jul-2017,7003713,39.30,REDBRIDGE PRODUCE & FLOWERS LTD T/A TOTAL PRODUCE,390977,Commissioning & Investment,Children's & Education Services,103,Supplies and Services,504,Equipment,5023,Revenue,03.GROCERIES & PROVISIONS
24-Jul-2017,7003713,4.40,REDBRIDGE PRODUCE & FLOWERS LTD T/A TOTAL PRODUCE,390977,Commissioning & Investment,Children's & Education Services,103,Supplies and Services,504,Equipment,5023,Revenue,03.GROCERIES & PROVISIONS
24-Jul-2017,7003713,-0.78,REDBRIDGE PRODUCE & FLOWERS LTD T/A TOTAL PRODUCE,390977,Commissioning & Investment,Children's & Education Services,103,Supplies and Services,504,Equipment,5023,Revenue,03.GROCERIES & PROVISIONS
24-Jul-2017,7003713,2.40,REDBRIDGE PRODUCE & FLOWERS LTD T/A TOTAL PRODUCE,390977,Commissioning & Investment,Children's & Education Services,103,Supplies and Services,504,Equipment,5023,Revenue,03.GROCERIES & PROVISIONS
24-Jul-2017,7003713,0.77,REDBRIDGE PRODUCE & FLOWERS LTD T/A TOTAL PRODUCE,390977,Commissioning & Investment,Children's & Education Services,103,Supplies and Services,504,Equipment,5023,Revenue,03.GROCERIES & PROVISIONS
24-Jul-2017,7003713,3.60,REDBRIDGE PRODUCE & FLOWERS LTD T/A TOTAL PRODUCE,390977,Commissioning & Investment,Children's & Education Services,103,Supplies and Services,504,Equipment,5023,Revenue,03.GROCERIES & PROVISIONS
24-Jul-2017,7003713,4.30,REDBRIDGE PRODUCE & FLOWERS LTD T/A TOTAL PRODUCE,390977,Commissioning & Investment,Children's & Education Services,103,Supplies and Services,504,Equipment,5023,Revenue,03.GROCERIES & PROVISIONS
24-Jul-2017,7003713,7.14,REDBRIDGE PRODUCE & FLOWERS LTD T/A TOTAL PRODUCE,390977,Commissioning & Investment,Children's & Education Services,103,Supplies and Services,504,Equipment,5023,Revenue,03.GROCERIES & PROVISIONS
24-Jul-2017,7003713,1.56,REDBRIDGE PRODUCE & FLOWERS LTD T/A TOTAL PRODUCE,390977,Commissioning & Investment,Children's & Education Services,103,Supplies and Services,504,Equipment,5023,Revenue,03.GROCERIES & PROVISIONS
24-Jul-2017,7003713,1.15,REDBRIDGE PRODUCE & FLOWERS LTD T/A TOTAL PRODUCE,390977,Commissioning & Investment,Children's & Education Services,103,Supplies and Services,504,Equipment,5023,Revenue,03.GROCERIES & PROVISIONS
24-Jul-2017,7003713,0.73,REDBRIDGE PRODUCE & FLOWERS LTD T/A TOTAL PRODUCE,390977,Commissioning & Investment,Children's & Education Services,103,Supplies and Services,504,Equipment,5023,Revenue,03.GROCERIES & PROVISIONS
24-Jul-2017,7003713,2.15,REDBRIDGE PRODUCE & FLOWERS LTD T/A TOTAL PRODUCE,390977,Commissioning & Investment,Children's & Education Services,103,Supplies and Services,504,Equipment,5023,Revenue,03.GROCERIES & PROVISIONS
24-Jul-2017,7003713,4.40,REDBRIDGE PRODUCE & FLOWERS LTD T/A TOTAL PRODUCE,390977,Commissioning & Investment,Children's & Education Services,103,Supplies and Services,504,Equipment,5023,Revenue,03.GROCERIES & PROVISIONS
24-Jul-2017,7003713,2.21,REDBRIDGE PRODUCE & FLOWERS LTD T/A TOTAL PRODUCE,390977,Commissioning & Investment,Children's & Education Services,103,Supplies and Services,504,Equipment,5023,Revenue,03.GROCERIES & PROVISIONS
24-Jul-2017,7003713,1.15,REDBRIDGE PRODUCE & FLOWERS LTD T/A TOTAL PRODUCE,390977,Commissioning & Investment,Children's & Education Services,103,Supplies and Services,504,Equipment,5023,Revenue,03.GROCERIES & PROVISIONS
24-Jul-2017,7003713,36.27,REDBRIDGE PRODUCE & FLOWERS LTD T/A TOTAL PRODUCE,390977,Commissioning & Investment,Children's & Education Services,103,Supplies and Services,504,Equipment,5023,Revenue,03.GROCERIES & PROVISIONS
24-Jul-2017,7003713,15.39,REDBRIDGE PRODUCE & FLOWERS LTD T/A TOTAL PRODUCE,390977,Commissioning & Investment,Children's & Education Services,103,Supplies and Services,504,Equipment,5023,Revenue,03.GROCERIES & PROVISIONS
24-Jul-2017,7003713,0.78,REDBRIDGE PRODUCE & FLOWERS LTD T/A TOTAL PRODUCE,390977,Commissioning & Investment,Children's & Education Services,103,Supplies and Services,504,Equipment,5023,Revenue,03.GROCERIES & PROVISIONS
24-Jul-2017,7003713,-2.20,REDBRIDGE PRODUCE & FLOWERS LTD T/A TOTAL PRODUCE,390977,Commissioning & Investment,Children's & Education Services,103,Supplies and Services,504,Equipment,5023,Revenue,03.GROCERIES & PROVISIONS
24-Jul-2017,7003713,20.80,REDBRIDGE PRODUCE & FLOWERS LTD T/A TOTAL PRODUCE,390977,Commissioning & Investment,Children's & Education Services,103,Supplies and Services,504,Equipment,5023,Revenue,03.GROCERIES & PROVISIONS
24-Jul-2017,7003713,-1.75,REDBRIDGE PRODUCE & FLOWERS LTD T/A TOTAL PRODUCE,390977,Commissioning & Investment,Children's & Education Services,103,Supplies and Services,504,Equipment,5023,Revenue,03.GROCERIES & PROVISIONS
24-Jul-2017,7003713,3.06,REDBRIDGE PRODUCE & FLOWERS LTD T/A TOTAL PRODUCE,390977,Commissioning & Investment,Children's & Education Services,103,Supplies and Services,504,Equipment,5023,Revenue,03.GROCERIES & PROVISIONS
24-Jul-2017,7003713,2.15,REDBRIDGE PRODUCE & FLOWERS LTD T/A TOTAL PRODUCE,390977,Commissioning & Investment,Children's & Education Services,103,Supplies and Services,504,Equipment,5023,Revenue,03.GROCERIES & PROVISIONS
24-Jul-2017,7003713,5.50,REDBRIDGE PRODUCE & FLOWERS LTD T/A TOTAL PRODUCE,390977,Commissioning & Investment,Children's & Education Services,103,Supplies and Services,504,Equipment,5023,Revenue,03.GROCERIES & PROVISIONS
24-Jul-2017,7003713,61.55,REDBRIDGE PRODUCE & FLOWERS LTD T/A TOTAL PRODUCE,390977,Commissioning & Investment,Children's & Education Services,103,Supplies and Services,504,Equipment,5023,Revenue,03.GROCERIES & PROVISIONS
24-Jul-2017,7003713,27.39,REDBRIDGE PRODUCE & FLOWERS LTD T/A TOTAL PRODUCE,390977,"Environment, Housing & Leisure",Cultural & Related Services,104,Supplies and Services,504,Equipment,5023,Revenue,03.GROCERIES & PROVISIONS
24-Jul-2017,7003713,-3.24,REDBRIDGE PRODUCE & FLOWERS LTD T/A TOTAL PRODUCE,390977,"Environment, Housing & Leisure",Cultural & Related Services,104,Supplies and Services,504,Equipment,5023,Revenue,03.GROCERIES & PROVISIONS
24-Jul-2017,7003713,1.53,REDBRIDGE PRODUCE & FLOWERS LTD T/A TOTAL PRODUCE,390977,Commissioning & Investment,Children's & Education Services,103,Supplies and Services,504,Equipment,5023,Revenue,03.GROCERIES & PROVISIONS
24-Jul-2017,7003713,1.62,REDBRIDGE PRODUCE & FLOWERS LTD T/A TOTAL PRODUCE,390977,Commissioning & Investment,Children's & Education Services,103,Supplies and Services,504,Equipment,5023,Revenue,03.GROCERIES & PROVISIONS
24-Jul-2017,7003713,4.40,REDBRIDGE PRODUCE & FLOWERS LTD T/A TOTAL PRODUCE,390977,Commissioning & Investment,Children's & Education Services,103,Supplies and Services,504,Equipment,5023,Revenue,03.GROCERIES & PROVISIONS
24-Jul-2017,7003713,53.23,REDBRIDGE PRODUCE & FLOWERS LTD T/A TOTAL PRODUCE,390977,Commissioning & Investment,Children's & Education Services,103,Supplies and Services,504,Equipment,5023,Revenue,03.GROCERIES & PROVISIONS
24-Jul-2017,7003713,41.48,REDBRIDGE PRODUCE & FLOWERS LTD T/A TOTAL PRODUCE,390977,Commissioning & Investment,Children's & Education Services,103,Supplies and Services,504,Equipment,5023,Revenue,03.GROCERIES & PROVISIONS
24-Jul-2017,7003713,65.79,REDBRIDGE PRODUCE & FLOWERS LTD T/A TOTAL PRODUCE,390977,Commissioning & Investment,Children's & Education Services,103,Supplies and Services,504,Equipment,5023,Revenue,03.GROCERIES & PROVISIONS
24-Jul-2017,7003713,-0.49,REDBRIDGE PRODUCE & FLOWERS LTD T/A TOTAL PRODUCE,390977,Commissioning & Investment,Children's & Education Services,103,Supplies and Services,504,Equipment,5023,Revenue,03.GROCERIES & PROVISIONS
24-Jul-2017,7003713,4.08,REDBRIDGE PRODUCE & FLOWERS LTD T/A TOTAL PRODUCE,390977,Commissioning & Investment,Children's & Education Services,103,Supplies and Services,504,Equipment,5023,Revenue,03.GROCERIES & PROVISIONS
24-Jul-2017,7003713,10.50,REDBRIDGE PRODUCE & FLOWERS LTD T/A TOTAL PRODUCE,390977,Commissioning & Investment,Children's & Education Services,103,Supplies and Services,504,Equipment,5023,Revenue,03.GROCERIES & PROVISIONS
24-Jul-2017,7003713,0.78,REDBRIDGE PRODUCE & FLOWERS LTD T/A TOTAL PRODUCE,390977,Commissioning & Investment,Children's & Education Services,103,Supplies and Services,504,Equipment,5023,Revenue,03.GROCERIES & PROVISIONS
24-Jul-2017,7003713,1.12,REDBRIDGE PRODUCE & FLOWERS LTD T/A TOTAL PRODUCE,390977,"Health, Education, Care and Safeguarding",Children's & Education Services,103,Supplies and Services,504,Equipment,5023,Revenue,03.GROCERIES & PROVISIONS
24-Jul-2017,7003713,1.17,REDBRIDGE PRODUCE & FLOWERS LTD T/A TOTAL PRODUCE,390977,Commissioning & Investment,Children's & Education Services,103,Supplies and Services,504,Equipment,5023,Revenue,03.GROCERIES & PROVISIONS
24-Jul-2017,7003713,1.15,REDBRIDGE PRODUCE & FLOWERS LTD T/A TOTAL PRODUCE,390977,Commissioning & Investment,Children's & Education Services,103,Supplies and Services,504,Equipment,5023,Revenue,03.GROCERIES & PROVISIONS
24-Jul-2017,7003713,13.08,REDBRIDGE PRODUCE & FLOWERS LTD T/A TOTAL PRODUCE,390977,"Environment, Housing & Leisure",Cultural & Related Services,104,Supplies and Services,504,Equipment,5023,Revenue,03.GROCERIES & PROVISIONS
24-Jul-2017,7003713,54.59,REDBRIDGE PRODUCE & FLOWERS LTD T/A TOTAL PRODUCE,390977,Commissioning & Investment,Children's & Education Services,103,Supplies and Services,504,Equipment,5023,Revenue,03.GROCERIES & PROVISIONS
24-Jul-2017,7003713,47.62,REDBRIDGE PRODUCE & FLOWERS LTD T/A TOTAL PRODUCE,390977,Commissioning & Investment,Children's & Education Services,103,Supplies and Services,504,Equipment,5023,Revenue,03.GROCERIES & PROVISIONS
24-Jul-2017,7003713,130.63,REDBRIDGE PRODUCE & FLOWERS LTD T/A TOTAL PRODUCE,390977,Commissioning & Investment,Children's & Education Services,103,Supplies and Services,504,Equipment,5023,Revenue,03.GROCERIES & PROVISIONS
24-Jul-2017,7003713,4.40,REDBRIDGE PRODUCE & FLOWERS LTD T/A TOTAL PRODUCE,390977,Commissioning & Investment,Children's & Education Services,103,Supplies and Services,504,Equipment,5023,Revenue,03.GROCERIES & PROVISIONS
24-Jul-2017,7003713,-0.60,REDBRIDGE PRODUCE & FLOWERS LTD T/A TOTAL PRODUCE,390977,Commissioning & Investment,Children's & Education Services,103,Supplies and Services,504,Equipment,5023,Revenue,03.GROCERIES & PROVISIONS
24-Jul-2017,7003713,1.15,REDBRIDGE PRODUCE & FLOWERS LTD T/A TOTAL PRODUCE,390977,Commissioning & Investment,Children's & Education Services,103,Supplies and Services,504,Equipment,5023,Revenue,03.GROCERIES & PROVISIONS
24-Jul-2017,7003713,1.53,REDBRIDGE PRODUCE & FLOWERS LTD T/A TOTAL PRODUCE,390977,Commissioning & Investment,Children's & Education Services,103,Supplies and Services,504,Equipment,5023,Revenue,03.GROCERIES & PROVISIONS
24-Jul-2017,7003713,1.40,REDBRIDGE PRODUCE & FLOWERS LTD T/A TOTAL PRODUCE,390977,Commissioning & Investment,Children's & Education Services,103,Supplies and Services,504,Equipment,5023,Revenue,03.GROCERIES & PROVISIONS
24-Jul-2017,7003713,6.10,REDBRIDGE PRODUCE & FLOWERS LTD T/A TOTAL PRODUCE,390977,Commissioning & Investment,Children's & Education Services,103,Supplies and Services,504,Equipment,5023,Revenue,03.GROCERIES & PROVISIONS
24-Jul-2017,7003713,0.78,REDBRIDGE PRODUCE & FLOWERS LTD T/A TOTAL PRODUCE,390977,Commissioning & Investment,Children's & Education Services,103,Supplies and Services,504,Equipment,5023,Revenue,03.GROCERIES & PROVISIONS
24-Jul-2017,7003713,8.97,REDBRIDGE PRODUCE & FLOWERS LTD T/A TOTAL PRODUCE,390977,"Environment, Housing & Leisure",Adult Social Care,101,Supplies and Services,504,Equipment,5023,Revenue,03.GROCERIES & PROVISIONS
24-Jul-2017,7003713,6.60,REDBRIDGE PRODUCE & FLOWERS LTD T/A TOTAL PRODUCE,390977,Commissioning & Investment,Children's & Education Services,103,Supplies and Services,504,Equipment,5023,Revenue,03.GROCERIES & PROVISIONS
24-Jul-2017,7003713,5.34,REDBRIDGE PRODUCE & FLOWERS LTD T/A TOTAL PRODUCE,390977,Commissioning & Investment,Children's & Education Services,103,Supplies and Services,504,Equipment,5023,Revenue,03.GROCERIES & PROVISIONS
24-Jul-2017,7003713,5.50,REDBRIDGE PRODUCE & FLOWERS LTD T/A TOTAL PRODUCE,390977,Commissioning & Investment,Children's & Education Services,103,Supplies and Services,504,Equipment,5023,Revenue,03.GROCERIES & PROVISIONS
24-Jul-2017,7003713,11.16,REDBRIDGE PRODUCE & FLOWERS LTD T/A TOTAL PRODUCE,390977,Commissioning & Investment,Children's & Education Services,103,Supplies and Services,504,Equipment,5023,Revenue,03.GROCERIES & PROVISIONS
24-Jul-2017,7003713,1.53,REDBRIDGE PRODUCE & FLOWERS LTD T/A TOTAL PRODUCE,390977,Commissioning & Investment,Children's & Education Services,103,Supplies and Services,504,Equipment,5023,Revenue,03.GROCERIES & PROVISIONS
24-Jul-2017,7003713,1.53,REDBRIDGE PRODUCE & FLOWERS LTD T/A TOTAL PRODUCE,390977,Commissioning & Investment,Children's & Education Services,103,Supplies and Services,504,Equipment,5023,Revenue,03.GROCERIES & PROVISIONS
24-Jul-2017,7003713,10.20,REDBRIDGE PRODUCE & FLOWERS LTD T/A TOTAL PRODUCE,390977,Commissioning & Investment,Children's & Education Services,103,Supplies and Services,504,Equipment,5023,Revenue,03.GROCERIES & PROVISIONS
24-Jul-2017,7003713,17.60,REDBRIDGE PRODUCE & FLOWERS LTD T/A TOTAL PRODUCE,390977,Commissioning & Investment,Children's & Education Services,103,Supplies and Services,504,Equipment,5023,Revenue,03.GROCERIES & PROVISIONS
24-Jul-2017,7003713,47.04,REDBRIDGE PRODUCE & FLOWERS LTD T/A TOTAL PRODUCE,390977,Commissioning & Investment,Children's & Education Services,103,Supplies and Services,504,Equipment,5023,Revenue,03.GROCERIES & PROVISIONS
24-Jul-2017,7003713,0.39,REDBRIDGE PRODUCE & FLOWERS LTD T/A TOTAL PRODUCE,390977,Commissioning & Investment,Children's & Education Services,103,Supplies and Services,504,Equipment,5023,Revenue,03.GROCERIES & PROVISIONS
24-Jul-2017,7003713,3.30,REDBRIDGE PRODUCE & FLOWERS LTD T/A TOTAL PRODUCE,390977,Commissioning & Investment,Children's & Education Services,103,Supplies and Services,504,Equipment,5023,Revenue,03.GROCERIES & PROVISIONS
24-Jul-2017,7003713,6.60,REDBRIDGE PRODUCE & FLOWERS LTD T/A TOTAL PRODUCE,390977,Commissioning & Investment,Children's & Education Services,103,Supplies and Services,504,Equipment,5023,Revenue,03.GROCERIES & PROVISIONS
24-Jul-2017,7003713,18.73,REDBRIDGE PRODUCE & FLOWERS LTD T/A TOTAL PRODUCE,390977,Commissioning & Investment,Children's & Education Services,103,Supplies and Services,504,Equipment,5023,Revenue,03.GROCERIES & PROVISIONS
24-Jul-2017,7003713,23.39,REDBRIDGE PRODUCE & FLOWERS LTD T/A TOTAL PRODUCE,390977,Commissioning & Investment,Children's & Education Services,103,Supplies and Services,504,Equipment,5023,Revenue,03.GROCERIES & PROVISIONS
24-Jul-2017,7003713,9.98,REDBRIDGE PRODUCE & FLOWERS LTD T/A TOTAL PRODUCE,390977,Commissioning & Investment,Children's & Education Services,103,Supplies and Services,504,Equipment,5023,Revenue,03.GROCERIES & PROVISIONS
24-Jul-2017,7003713,1.78,REDBRIDGE PRODUCE & FLOWERS LTD T/A TOTAL PRODUCE,390977,Commissioning & Investment,Children's & Education Services,103,Supplies and Services,504,Equipment,5023,Revenue,03.GROCERIES & PROVISIONS
24-Jul-2017,7003713,3.66,REDBRIDGE PRODUCE & FLOWERS LTD T/A TOTAL PRODUCE,390977,Commissioning & Investment,Children's & Education Services,103,Supplies and Services,504,Equipment,5023,Revenue,03.GROCERIES & PROVISIONS
24-Jul-2017,7003713,75.21,REDBRIDGE PRODUCE & FLOWERS LTD T/A TOTAL PRODUCE,390977,"Environment, Housing & Leisure",Adult Social Care,101,Supplies and Services,504,Equipment,5023,Revenue,03.GROCERIES & PROVISIONS
24-Jul-2017,7003713,-5.77,REDBRIDGE PRODUCE & FLOWERS LTD T/A TOTAL PRODUCE,390977,Commissioning & Investment,Children's & Education Services,103,Supplies and Services,504,Equipment,5023,Revenue,03.GROCERIES & PROVISIONS
24-Jul-2017,7003713,42.35,REDBRIDGE PRODUCE & FLOWERS LTD T/A TOTAL PRODUCE,390977,Commissioning & Investment,Children's & Education Services,103,Supplies and Services,504,Equipment,5023,Revenue,03.GROCERIES & PROVISIONS
24-Jul-2017,7003713,1.78,REDBRIDGE PRODUCE & FLOWERS LTD T/A TOTAL PRODUCE,390977,Commissioning & Investment,Children's & Education Services,103,Supplies and Services,504,Equipment,5023,Revenue,03.GROCERIES & PROVISIONS
24-Jul-2017,7003713,9.16,REDBRIDGE PRODUCE & FLOWERS LTD T/A TOTAL PRODUCE,390977,Commissioning & Investment,Children's & Education Services,103,Supplies and Services,504,Equipment,5023,Revenue,03.GROCERIES & PROVISIONS
24-Jul-2017,7003713,1.50,REDBRIDGE PRODUCE & FLOWERS LTD T/A TOTAL PRODUCE,390977,"Health, Education, Care and Safeguarding",Children's & Education Services,103,Supplies and Services,504,Equipment,5023,Revenue,03.GROCERIES & PROVISIONS
24-Jul-2017,7003713,3.20,REDBRIDGE PRODUCE & FLOWERS LTD T/A TOTAL PRODUCE,390977,"Health, Education, Care and Safeguarding",Children's & Education Services,103,Supplies and Services,504,Equipment,5023,Revenue,03.GROCERIES & PROVISIONS
24-Jul-2017,7003713,2.40,REDBRIDGE PRODUCE & FLOWERS LTD T/A TOTAL PRODUCE,390977,Commissioning & Investment,Children's & Education Services,103,Supplies and Services,504,Equipment,5023,Revenue,03.GROCERIES & PROVISIONS
24-Jul-2017,7003713,0.78,REDBRIDGE PRODUCE & FLOWERS LTD T/A TOTAL PRODUCE,390977,Commissioning & Investment,Children's & Education Services,103,Supplies and Services,504,Equipment,5023,Revenue,03.GROCERIES & PROVISIONS
24-Jul-2017,7003713,96.37,REDBRIDGE PRODUCE & FLOWERS LTD T/A TOTAL PRODUCE,390977,Commissioning & Investment,Children's & Education Services,103,Supplies and Services,504,Equipment,5023,Revenue,03.GROCERIES & PROVISIONS
24-Jul-2017,7003713,1.50,REDBRIDGE PRODUCE & FLOWERS LTD T/A TOTAL PRODUCE,390977,"Health, Education, Care and Safeguarding",Children's & Education Services,103,Supplies and Services,504,Equipment,5023,Revenue,03.GROCERIES & PROVISIONS
24-Jul-2017,7003713,1.15,REDBRIDGE PRODUCE & FLOWERS LTD T/A TOTAL PRODUCE,390977,Commissioning & Investment,Children's & Education Services,103,Supplies and Services,504,Equipment,5023,Revenue,03.GROCERIES & PROVISIONS
24-Jul-2017,7003713,12.24,REDBRIDGE PRODUCE & FLOWERS LTD T/A TOTAL PRODUCE,390977,Commissioning & Investment,Children's & Education Services,103,Supplies and Services,504,Equipment,5023,Revenue,03.GROCERIES & PROVISIONS
24-Jul-2017,7003713,0.78,REDBRIDGE PRODUCE & FLOWERS LTD T/A TOTAL PRODUCE,390977,Commissioning & Investment,Children's & Education Services,103,Supplies and Services,504,Equipment,5023,Revenue,03.GROCERIES & PROVISIONS
24-Jul-2017,7003713,2.04,REDBRIDGE PRODUCE & FLOWERS LTD T/A TOTAL PRODUCE,390977,Commissioning & Investment,Children's & Education Services,103,Supplies and Services,504,Equipment,5023,Revenue,03.GROCERIES & PROVISIONS
24-Jul-2017,7003713,43.92,REDBRIDGE PRODUCE & FLOWERS LTD T/A TOTAL PRODUCE,390977,Commissioning & Investment,Children's & Education Services,103,Supplies and Services,504,Equipment,5023,Revenue,03.GROCERIES & PROVISIONS
24-Jul-2017,7003713,9.71,REDBRIDGE PRODUCE & FLOWERS LTD T/A TOTAL PRODUCE,390977,Commissioning & Investment,Children's & Education Services,103,Supplies and Services,504,Equipment,5023,Revenue,03.GROCERIES & PROVISIONS
24-Jul-2017,7003713,-8.22,REDBRIDGE PRODUCE & FLOWERS LTD T/A TOTAL PRODUCE,390977,Commissioning & Investment,Children's & Education Services,103,Supplies and Services,504,Equipment,5023,Revenue,03.GROCERIES & PROVISIONS
24-Jul-2017,7003713,26.16,REDBRIDGE PRODUCE & FLOWERS LTD T/A TOTAL PRODUCE,390977,Commissioning & Investment,Children's & Education Services,103,Supplies and Services,504,Equipment,5023,Revenue,03.GROCERIES & PROVISIONS
24-Jul-2017,7003713,100.15,REDBRIDGE PRODUCE & FLOWERS LTD T/A TOTAL PRODUCE,390977,Commissioning & Investment,Children's & Education Services,103,Supplies and Services,504,Equipment,5023,Revenue,03.GROCERIES & PROVISIONS
24-Jul-2017,7003713,1.25,REDBRIDGE PRODUCE & FLOWERS LTD T/A TOTAL PRODUCE,390977,Commissioning & Investment,Children's & Education Services,103,Supplies and Services,504,Equipment,5023,Revenue,03.GROCERIES & PROVISIONS
24-Jul-2017,7003713,5.08,REDBRIDGE PRODUCE & FLOWERS LTD T/A TOTAL PRODUCE,390977,Commissioning & Investment,Children's & Education Services,103,Supplies and Services,504,Equipment,5023,Revenue,03.GROCERIES & PROVISIONS
24-Jul-2017,7003713,9.90,REDBRIDGE PRODUCE & FLOWERS LTD T/A TOTAL PRODUCE,390977,Commissioning & Investment,Children's & Education Services,103,Supplies and Services,504,Equipment,5023,Revenue,03.GROCERIES & PROVISIONS
24-Jul-2017,7003713,4.40,REDBRIDGE PRODUCE & FLOWERS LTD T/A TOTAL PRODUCE,390977,Commissioning & Investment,Children's & Education Services,103,Supplies and Services,504,Equipment,5023,Revenue,03.GROCERIES & PROVISIONS
24-Jul-2017,7003713,33.28,REDBRIDGE PRODUCE & FLOWERS LTD T/A TOTAL PRODUCE,390977,Commissioning & Investment,Children's & Education Services,103,Supplies and Services,504,Equipment,5023,Revenue,03.GROCERIES & PROVISIONS
24-Jul-2017,7003713,5.50,REDBRIDGE PRODUCE & FLOWERS LTD T/A TOTAL PRODUCE,390977,Commissioning & Investment,Children's & Education Services,103,Supplies and Services,504,Equipment,5023,Revenue,03.GROCERIES & PROVISIONS
24-Jul-2017,7003713,2.29,REDBRIDGE PRODUCE & FLOWERS LTD T/A TOTAL PRODUCE,390977,Commissioning & Investment,Children's & Education Services,103,Supplies and Services,504,Equipment,5023,Revenue,03.GROCERIES & PROVISIONS
24-Jul-2017,7003713,4.42,REDBRIDGE PRODUCE & FLOWERS LTD T/A TOTAL PRODUCE,390977,Commissioning & Investment,Children's & Education Services,103,Supplies and Services,504,Equipment,5023,Revenue,03.GROCERIES & PROVISIONS
24-Jul-2017,7003713,1.92,REDBRIDGE PRODUCE & FLOWERS LTD T/A TOTAL PRODUCE,390977,Commissioning & Investment,Children's & Education Services,103,Supplies and Services,504,Equipment,5023,Revenue,03.GROCERIES & PROVISIONS
24-Jul-2017,7003713,-2.30,REDBRIDGE PRODUCE & FLOWERS LTD T/A TOTAL PRODUCE,390977,Commissioning & Investment,Children's & Education Services,103,Supplies and Services,504,Equipment,5023,Revenue,03.GROCERIES & PROVISIONS
24-Jul-2017,7003713,4.45,REDBRIDGE PRODUCE & FLOWERS LTD T/A TOTAL PRODUCE,390977,Commissioning & Investment,Children's & Education Services,103,Supplies and Services,504,Equipment,5023,Revenue,03.GROCERIES & PROVISIONS
24-Jul-2017,7003713,-11.00,REDBRIDGE PRODUCE & FLOWERS LTD T/A TOTAL PRODUCE,390977,Commissioning & Investment,Children's & Education Services,103,Supplies and Services,504,Equipment,5023,Revenue,03.GROCERIES & PROVISIONS
24-Jul-2017,7003713,15.40,REDBRIDGE PRODUCE & FLOWERS LTD T/A TOTAL PRODUCE,390977,Commissioning & Investment,Children's & Education Services,103,Supplies and Services,504,Equipment,5023,Revenue,03.GROCERIES & PROVISIONS
24-Jul-2017,7003713,0.78,REDBRIDGE PRODUCE & FLOWERS LTD T/A TOTAL PRODUCE,390977,Commissioning & Investment,Children's & Education Services,103,Supplies and Services,504,Equipment,5023,Revenue,03.GROCERIES & PROVISIONS
24-Jul-2017,7003713,53.33,REDBRIDGE PRODUCE & FLOWERS LTD T/A TOTAL PRODUCE,390977,Commissioning & Investment,Children's & Education Services,103,Supplies and Services,504,Equipment,5023,Revenue,03.GROCERIES & PROVISIONS
24-Jul-2017,7003713,1.92,REDBRIDGE PRODUCE & FLOWERS LTD T/A TOTAL PRODUCE,390977,Commissioning & Investment,Children's & Education Services,103,Supplies and Services,504,Equipment,5023,Revenue,03.GROCERIES & PROVISIONS
24-Jul-2017,7003713,-6.12,REDBRIDGE PRODUCE & FLOWERS LTD T/A TOTAL PRODUCE,390977,Commissioning & Investment,Children's & Education Services,103,Supplies and Services,504,Equipment,5023,Revenue,03.GROCERIES & PROVISIONS
24-Jul-2017,7003713,61.40,REDBRIDGE PRODUCE & FLOWERS LTD T/A TOTAL PRODUCE,390977,Commissioning & Investment,Children's & Education Services,103,Supplies and Services,504,Equipment,5023,Revenue,03.GROCERIES & PROVISIONS
24-Jul-2017,7003713,2.58,REDBRIDGE PRODUCE & FLOWERS LTD T/A TOTAL PRODUCE,390977,Commissioning & Investment,Children's & Education Services,103,Supplies and Services,504,Equipment,5023,Revenue,03.GROCERIES & PROVISIONS
24-Jul-2017,7003713,6.60,REDBRIDGE PRODUCE & FLOWERS LTD T/A TOTAL PRODUCE,390977,Commissioning & Investment,Children's & Education Services,103,Supplies and Services,504,Equipment,5023,Revenue,03.GROCERIES & PROVISIONS
24-Jul-2017,7003713,1.25,REDBRIDGE PRODUCE & FLOWERS LTD T/A TOTAL PRODUCE,390977,Commissioning & Investment,Children's & Education Services,103,Supplies and Services,504,Equipment,5023,Revenue,03.GROCERIES & PROVISIONS
24-Jul-2017,7003713,0.78,REDBRIDGE PRODUCE & FLOWERS LTD T/A TOTAL PRODUCE,390977,Commissioning & Investment,Children's & Education Services,103,Supplies and Services,504,Equipment,5023,Revenue,03.GROCERIES & PROVISIONS
24-Jul-2017,7003713,-3.45,REDBRIDGE PRODUCE & FLOWERS LTD T/A TOTAL PRODUCE,390977,Commissioning & Investment,Children's & Education Services,103,Supplies and Services,504,Equipment,5023,Revenue,03.GROCERIES & PROVISIONS
24-Jul-2017,7003713,5.50,REDBRIDGE PRODUCE & FLOWERS LTD T/A TOTAL PRODUCE,390977,Commissioning & Investment,Children's & Education Services,103,Supplies and Services,504,Equipment,5023,Revenue,03.GROCERIES & PROVISIONS
24-Jul-2017,7003713,56.40,REDBRIDGE PRODUCE & FLOWERS LTD T/A TOTAL PRODUCE,390977,Commissioning & Investment,Children's & Education Services,103,Supplies and Services,504,Equipment,5023,Revenue,03.GROCERIES & PROVISIONS
24-Jul-2017,7003713,3.96,REDBRIDGE PRODUCE & FLOWERS LTD T/A TOTAL PRODUCE,390977,"Health, Education, Care and Safeguarding",Children's & Education Services,103,Supplies and Services,504,Equipment,5023,Revenue,03.GROCERIES & PROVISIONS
24-Jul-2017,7003713,0.78,REDBRIDGE PRODUCE & FLOWERS LTD T/A TOTAL PRODUCE,390977,Commissioning & Investment,Children's & Education Services,103,Supplies and Services,504,Equipment,5023,Revenue,03.GROCERIES & PROVISIONS
24-Jul-2017,7003713,39.34,REDBRIDGE PRODUCE & FLOWERS LTD T/A TOTAL PRODUCE,390977,Commissioning & Investment,Children's & Education Services,103,Supplies and Services,504,Equipment,5023,Revenue,03.GROCERIES & PROVISIONS
24-Jul-2017,7003713,0.78,REDBRIDGE PRODUCE & FLOWERS LTD T/A TOTAL PRODUCE,390977,Commissioning & Investment,Children's & Education Services,103,Supplies and Services,504,Equipment,5023,Revenue,03.GROCERIES & PROVISIONS
24-Jul-2017,7003713,9.71,REDBRIDGE PRODUCE & FLOWERS LTD T/A TOTAL PRODUCE,390977,Commissioning & Investment,Children's & Education Services,103,Supplies and Services,504,Equipment,5023,Revenue,03.GROCERIES & PROVISIONS
24-Jul-2017,7003713,0.39,REDBRIDGE PRODUCE & FLOWERS LTD T/A TOTAL PRODUCE,390977,Commissioning & Investment,Children's & Education Services,103,Supplies and Services,504,Equipment,5023,Revenue,03.GROCERIES & PROVISIONS
24-Jul-2017,7003713,2.15,REDBRIDGE PRODUCE & FLOWERS LTD T/A TOTAL PRODUCE,390977,Commissioning & Investment,Children's & Education Services,103,Supplies and Services,504,Equipment,5023,Revenue,03.GROCERIES & PROVISIONS
24-Jul-2017,7003713,59.70,REDBRIDGE PRODUCE & FLOWERS LTD T/A TOTAL PRODUCE,390977,Commissioning & Investment,Children's & Education Services,103,Supplies and Services,504,Equipment,5023,Revenue,03.GROCERIES & PROVISIONS
24-Jul-2017,7003713,0.78,REDBRIDGE PRODUCE & FLOWERS LTD T/A TOTAL PRODUCE,390977,Commissioning & Investment,Children's & Education Services,103,Supplies and Services,504,Equipment,5023,Revenue,03.GROCERIES & PROVISIONS
24-Jul-2017,7003713,43.85,REDBRIDGE PRODUCE & FLOWERS LTD T/A TOTAL PRODUCE,390977,Commissioning & Investment,Children's & Education Services,103,Supplies and Services,504,Equipment,5023,Revenue,03.GROCERIES & PROVISIONS
24-Jul-2017,7003713,40.18,REDBRIDGE PRODUCE & FLOWERS LTD T/A TOTAL PRODUCE,390977,Commissioning & Investment,Children's & Education Services,103,Supplies and Services,504,Equipment,5023,Revenue,03.GROCERIES & PROVISIONS
24-Jul-2017,7003713,50.68,REDBRIDGE PRODUCE & FLOWERS LTD T/A TOTAL PRODUCE,390977,Commissioning & Investment,Children's & Education Services,103,Supplies and Services,504,Equipment,5023,Revenue,03.GROCERIES & PROVISIONS
24-Jul-2017,7003713,0.73,REDBRIDGE PRODUCE & FLOWERS LTD T/A TOTAL PRODUCE,390977,Commissioning & Investment,Children's & Education Services,103,Supplies and Services,504,Equipment,5023,Revenue,03.GROCERIES & PROVISIONS
24-Jul-2017,7003713,3.72,REDBRIDGE PRODUCE & FLOWERS LTD T/A TOTAL PRODUCE,390977,Commissioning & Investment,Children's & Education Services,103,Supplies and Services,504,Equipment,5023,Revenue,03.GROCERIES & PROVISIONS
24-Jul-2017,7003713,2.29,REDBRIDGE PRODUCE & FLOWERS LTD T/A TOTAL PRODUCE,390977,Commissioning & Investment,Children's & Education Services,103,Supplies and Services,504,Equipment,5023,Revenue,03.GROCERIES & PROVISIONS
24-Jul-2017,7003713,65.94,REDBRIDGE PRODUCE & FLOWERS LTD T/A TOTAL PRODUCE,390977,Commissioning & Investment,Children's & Education Services,103,Supplies and Services,504,Equipment,5023,Revenue,03.GROCERIES & PROVISIONS
24-Jul-2017,7003713,2.20,REDBRIDGE PRODUCE & FLOWERS LTD T/A TOTAL PRODUCE,390977,Commissioning & Investment,Children's & Education Services,103,Supplies and Services,504,Equipment,5023,Revenue,03.GROCERIES & PROVISIONS
24-Jul-2017,7003713,7.70,REDBRIDGE PRODUCE & FLOWERS LTD T/A TOTAL PRODUCE,390977,Commissioning & Investment,Children's & Education Services,103,Supplies and Services,504,Equipment,5023,Revenue,03.GROCERIES & PROVISIONS
24-Jul-2017,7003713,17.60,REDBRIDGE PRODUCE & FLOWERS LTD T/A TOTAL PRODUCE,390977,Commissioning & Investment,Children's & Education Services,103,Supplies and Services,504,Equipment,5023,Revenue,03.GROCERIES & PROVISIONS
24-Jul-2017,7003713,2.04,REDBRIDGE PRODUCE & FLOWERS LTD T/A TOTAL PRODUCE,390977,Commissioning & Investment,Children's & Education Services,103,Supplies and Services,504,Equipment,5023,Revenue,03.GROCERIES & PROVISIONS
24-Jul-2017,7003713,11.00,REDBRIDGE PRODUCE & FLOWERS LTD T/A TOTAL PRODUCE,390977,Commissioning & Investment,Children's & Education Services,103,Supplies and Services,504,Equipment,5023,Revenue,03.GROCERIES & PROVISIONS
24-Jul-2017,7003713,179.36,REDBRIDGE PRODUCE & FLOWERS LTD T/A TOTAL PRODUCE,390977,Commissioning & Investment,Children's & Education Services,103,Supplies and Services,504,Equipment,5023,Revenue,03.GROCERIES & PROVISIONS
24-Jul-2017,7003713,27.80,REDBRIDGE PRODUCE & FLOWERS LTD T/A TOTAL PRODUCE,390977,Commissioning & Investment,Children's & Education Services,103,Supplies and Services,504,Equipment,5023,Revenue,03.GROCERIES & PROVISIONS
24-Jul-2017,7003713,4.40,REDBRIDGE PRODUCE & FLOWERS LTD T/A TOTAL PRODUCE,390977,Commissioning & Investment,Children's & Education Services,103,Supplies and Services,504,Equipment,5023,Revenue,03.GROCERIES & PROVISIONS
24-Jul-2017,7003713,5.50,REDBRIDGE PRODUCE & FLOWERS LTD T/A TOTAL PRODUCE,390977,Commissioning & Investment,Children's & Education Services,103,Supplies and Services,504,Equipment,5023,Revenue,03.GROCERIES & PROVISIONS
24-Jul-2017,7003713,130.74,REDBRIDGE PRODUCE & FLOWERS LTD T/A TOTAL PRODUCE,390977,Commissioning & Investment,Children's & Education Services,103,Supplies and Services,504,Equipment,5023,Revenue,03.GROCERIES & PROVISIONS
24-Jul-2017,7003713,27.07,REDBRIDGE PRODUCE & FLOWERS LTD T/A TOTAL PRODUCE,390977,Commissioning & Investment,Children's & Education Services,103,Supplies and Services,504,Equipment,5023,Revenue,03.GROCERIES & PROVISIONS
24-Jul-2017,7003713,35.02,REDBRIDGE PRODUCE & FLOWERS LTD T/A TOTAL PRODUCE,390977,Commissioning & Investment,Children's & Education Services,103,Supplies and Services,504,Equipment,5023,Revenue,03.GROCERIES & PROVISIONS
24-Jul-2017,7003713,50.62,REDBRIDGE PRODUCE & FLOWERS LTD T/A TOTAL PRODUCE,390977,Commissioning & Investment,Children's & Education Services,103,Supplies and Services,504,Equipment,5023,Revenue,03.GROCERIES & PROVISIONS
24-Jul-2017,7003713,17.94,REDBRIDGE PRODUCE & FLOWERS LTD T/A TOTAL PRODUCE,390977,"Environment, Housing & Leisure",Cultural & Related Services,104,Supplies and Services,504,Equipment,5023,Revenue,03.GROCERIES & PROVISIONS
24-Jul-2017,7003713,1.59,REDBRIDGE PRODUCE & FLOWERS LTD T/A TOTAL PRODUCE,390977,Commissioning & Investment,Children's & Education Services,103,Supplies and Services,504,Equipment,5023,Revenue,03.GROCERIES & PROVISIONS
24-Jul-2017,7003713,99.74,REDBRIDGE PRODUCE & FLOWERS LTD T/A TOTAL PRODUCE,390977,Commissioning & Investment,Children's & Education Services,103,Supplies and Services,504,Equipment,5023,Revenue,03.GROCERIES & PROVISIONS
24-Jul-2017,7003713,2.04,REDBRIDGE PRODUCE & FLOWERS LTD T/A TOTAL PRODUCE,390977,Commissioning & Investment,Children's & Education Services,103,Supplies and Services,504,Equipment,5023,Revenue,03.GROCERIES & PROVISIONS
24-Jul-2017,7003713,1.61,REDBRIDGE PRODUCE & FLOWERS LTD T/A TOTAL PRODUCE,390977,Commissioning & Investment,Children's & Education Services,103,Supplies and Services,504,Equipment,5023,Revenue,03.GROCERIES & PROVISIONS
24-Jul-2017,7003713,6.54,REDBRIDGE PRODUCE & FLOWERS LTD T/A TOTAL PRODUCE,390977,"Environment, Housing & Leisure",Cultural & Related Services,104,Supplies and Services,504,Equipment,5023,Revenue,03.GROCERIES & PROVISIONS
24-Jul-2017,7003713,-1.07,REDBRIDGE PRODUCE & FLOWERS LTD T/A TOTAL PRODUCE,390977,Commissioning & Investment,Children's & Education Services,103,Supplies and Services,504,Equipment,5023,Revenue,03.GROCERIES & PROVISIONS
24-Jul-2017,7003713,2.04,REDBRIDGE PRODUCE & FLOWERS LTD T/A TOTAL PRODUCE,390977,Commissioning & Investment,Children's & Education Services,103,Supplies and Services,504,Equipment,5023,Revenue,03.GROCERIES & PROVISIONS
24-Jul-2017,7003713,1.59,REDBRIDGE PRODUCE & FLOWERS LTD T/A TOTAL PRODUCE,390977,Commissioning & Investment,Children's & Education Services,103,Supplies and Services,504,Equipment,5023,Revenue,03.GROCERIES & PROVISIONS
24-Jul-2017,7003713,14.68,REDBRIDGE PRODUCE & FLOWERS LTD T/A TOTAL PRODUCE,390977,Commissioning & Investment,Children's & Education Services,103,Supplies and Services,504,Equipment,5023,Revenue,03.GROCERIES & PROVISIONS
24-Jul-2017,7003713,20.83,REDBRIDGE PRODUCE & FLOWERS LTD T/A TOTAL PRODUCE,390977,Commissioning & Investment,Children's & Education Services,103,Supplies and Services,504,Equipment,5023,Revenue,03.GROCERIES & PROVISIONS
24-Jul-2017,7003713,1.52,REDBRIDGE PRODUCE & FLOWERS LTD T/A TOTAL PRODUCE,390977,Commissioning & Investment,Children's & Education Services,103,Supplies and Services,504,Equipment,5023,Revenue,03.GROCERIES & PROVISIONS
24-Jul-2017,7003713,71.38,REDBRIDGE PRODUCE & FLOWERS LTD T/A TOTAL PRODUCE,390977,Commissioning & Investment,Children's & Education Services,103,Supplies and Services,504,Equipment,5023,Revenue,03.GROCERIES & PROVISIONS
24-Jul-2017,7003713,57.05,REDBRIDGE PRODUCE & FLOWERS LTD T/A TOTAL PRODUCE,390977,Commissioning & Investment,Children's & Education Services,103,Supplies and Services,504,Equipment,5023,Revenue,03.GROCERIES & PROVISIONS
24-Jul-2017,7003713,6.60,REDBRIDGE PRODUCE & FLOWERS LTD T/A TOTAL PRODUCE,390977,Commissioning & Investment,Children's & Education Services,103,Supplies and Services,504,Equipment,5023,Revenue,03.GROCERIES & PROVISIONS
24-Jul-2017,7003713,6.60,REDBRIDGE PRODUCE & FLOWERS LTD T/A TOTAL PRODUCE,390977,Commissioning & Investment,Children's & Education Services,103,Supplies and Services,504,Equipment,5023,Revenue,03.GROCERIES & PROVISIONS
24-Jul-2017,7003713,53.04,REDBRIDGE PRODUCE & FLOWERS LTD T/A TOTAL PRODUCE,390977,Commissioning & Investment,Children's & Education Services,103,Supplies and Services,504,Equipment,5023,Revenue,03.GROCERIES & PROVISIONS
24-Jul-2017,7003713,0.39,REDBRIDGE PRODUCE & FLOWERS LTD T/A TOTAL PRODUCE,390977,Commissioning & Investment,Children's & Education Services,103,Supplies and Services,504,Equipment,5023,Revenue,03.GROCERIES & PROVISIONS
24-Jul-2017,7003713,3.20,REDBRIDGE PRODUCE & FLOWERS LTD T/A TOTAL PRODUCE,390977,Commissioning & Investment,Children's & Education Services,103,Supplies and Services,504,Equipment,5023,Revenue,03.GROCERIES & PROVISIONS
24-Jul-2017,7003713,3.84,REDBRIDGE PRODUCE & FLOWERS LTD T/A TOTAL PRODUCE,390977,Commissioning & Investment,Children's & Education Services,103,Supplies and Services,504,Equipment,5023,Revenue,03.GROCERIES & PROVISIONS
24-Jul-2017,7003713,11.64,REDBRIDGE PRODUCE & FLOWERS LTD T/A TOTAL PRODUCE,390977,Commissioning & Investment,Children's & Education Services,103,Supplies and Services,504,Equipment,5023,Revenue,03.GROCERIES & PROVISIONS
24-Jul-2017,7003713,1.53,REDBRIDGE PRODUCE & FLOWERS LTD T/A TOTAL PRODUCE,390977,Commissioning & Investment,Children's & Education Services,103,Supplies and Services,504,Equipment,5023,Revenue,03.GROCERIES & PROVISIONS
24-Jul-2017,7003713,9.16,REDBRIDGE PRODUCE & FLOWERS LTD T/A TOTAL PRODUCE,390977,Commissioning & Investment,Children's & Education Services,103,Supplies and Services,504,Equipment,5023,Revenue,03.GROCERIES & PROVISIONS
24-Jul-2017,7003713,1.22,REDBRIDGE PRODUCE & FLOWERS LTD T/A TOTAL PRODUCE,390977,Commissioning & Investment,Children's & Education Services,103,Supplies and Services,504,Equipment,5023,Revenue,03.GROCERIES & PROVISIONS
24-Jul-2017,7003713,6.60,REDBRIDGE PRODUCE & FLOWERS LTD T/A TOTAL PRODUCE,390977,Commissioning & Investment,Children's & Education Services,103,Supplies and Services,504,Equipment,5023,Revenue,03.GROCERIES & PROVISIONS
24-Jul-2017,7003713,0.78,REDBRIDGE PRODUCE & FLOWERS LTD T/A TOTAL PRODUCE,390977,Commissioning & Investment,Children's & Education Services,103,Supplies and Services,504,Equipment,5023,Revenue,03.GROCERIES & PROVISIONS
24-Jul-2017,7003713,53.59,REDBRIDGE PRODUCE & FLOWERS LTD T/A TOTAL PRODUCE,390977,"Environment, Housing & Leisure",Adult Social Care,101,Supplies and Services,504,Equipment,5023,Revenue,03.GROCERIES & PROVISIONS
24-Jul-2017,7003713,0.60,REDBRIDGE PRODUCE & FLOWERS LTD T/A TOTAL PRODUCE,390977,"Environment, Housing & Leisure",Adult Social Care,101,Supplies and Services,504,Equipment,5023,Revenue,03.GROCERIES & PROVISIONS
24-Jul-2017,7003713,0.78,REDBRIDGE PRODUCE & FLOWERS LTD T/A TOTAL PRODUCE,390977,Commissioning & Investment,Children's & Education Services,103,Supplies and Services,504,Equipment,5023,Revenue,03.GROCERIES & PROVISIONS
24-Jul-2017,7003713,3.06,REDBRIDGE PRODUCE & FLOWERS LTD T/A TOTAL PRODUCE,390977,Commissioning & Investment,Children's & Education Services,103,Supplies and Services,504,Equipment,5023,Revenue,03.GROCERIES & PROVISIONS
24-Jul-2017,7003713,40.28,REDBRIDGE PRODUCE & FLOWERS LTD T/A TOTAL PRODUCE,390977,Commissioning & Investment,Children's & Education Services,103,Supplies and Services,504,Equipment,5023,Revenue,03.GROCERIES & PROVISIONS
24-Jul-2017,7003713,0.76,REDBRIDGE PRODUCE & FLOWERS LTD T/A TOTAL PRODUCE,390977,Commissioning & Investment,Children's & Education Services,103,Supplies and Services,504,Equipment,5023,Revenue,03.GROCERIES & PROVISIONS
24-Jul-2017,7003713,84.08,REDBRIDGE PRODUCE & FLOWERS LTD T/A TOTAL PRODUCE,390977,Commissioning & Investment,Children's & Education Services,103,Supplies and Services,504,Equipment,5023,Revenue,03.GROCERIES & PROVISIONS
24-Jul-2017,7003713,38.72,REDBRIDGE PRODUCE & FLOWERS LTD T/A TOTAL PRODUCE,390977,Commissioning & Investment,Children's & Education Services,103,Supplies and Services,504,Equipment,5023,Revenue,03.GROCERIES & PROVISIONS
24-Jul-2017,7003713,77.17,REDBRIDGE PRODUCE & FLOWERS LTD T/A TOTAL PRODUCE,390977,Commissioning & Investment,Children's & Education Services,103,Supplies and Services,504,Equipment,5023,Revenue,03.GROCERIES & PROVISIONS
24-Jul-2017,7003713,26.28,REDBRIDGE PRODUCE & FLOWERS LTD T/A TOTAL PRODUCE,390977,Commissioning & Investment,Children's & Education Services,103,Supplies and Services,504,Equipment,5023,Revenue,03.GROCERIES & PROVISIONS
24-Jul-2017,7003713,8.80,REDBRIDGE PRODUCE & FLOWERS LTD T/A TOTAL PRODUCE,390977,Commissioning & Investment,Children's & Education Services,103,Supplies and Services,504,Equipment,5023,Revenue,03.GROCERIES & PROVISIONS
24-Jul-2017,7003713,91.01,REDBRIDGE PRODUCE & FLOWERS LTD T/A TOTAL PRODUCE,390977,Commissioning & Investment,Children's & Education Services,103,Supplies and Services,504,Equipment,5023,Revenue,03.GROCERIES & PROVISIONS
24-Jul-2017,7003713,-1.59,REDBRIDGE PRODUCE & FLOWERS LTD T/A TOTAL PRODUCE,390977,Commissioning & Investment,Children's & Education Services,103,Supplies and Services,504,Equipment,5023,Revenue,03.GROCERIES & PROVISIONS
24-Jul-2017,7003713,-1.53,REDBRIDGE PRODUCE & FLOWERS LTD T/A TOTAL PRODUCE,390977,Commissioning & Investment,Children's & Education Services,103,Supplies and Services,504,Equipment,5023,Revenue,03.GROCERIES & PROVISIONS
24-Jul-2017,7003713,1.15,REDBRIDGE PRODUCE & FLOWERS LTD T/A TOTAL PRODUCE,390977,Commissioning & Investment,Children's & Education Services,103,Supplies and Services,504,Equipment,5023,Revenue,03.GROCERIES & PROVISIONS
24-Jul-2017,7003713,1.18,REDBRIDGE PRODUCE & FLOWERS LTD T/A TOTAL PRODUCE,390977,Commissioning & Investment,Children's & Education Services,103,Supplies and Services,504,Equipment,5023,Revenue,03.GROCERIES & PROVISIONS
24-Jul-2017,7003713,1.64,REDBRIDGE PRODUCE & FLOWERS LTD T/A TOTAL PRODUCE,390977,Commissioning & Investment,Children's & Education Services,103,Supplies and Services,504,Equipment,5023,Revenue,03.GROCERIES & PROVISIONS
24-Jul-2017,7003713,34.27,REDBRIDGE PRODUCE & FLOWERS LTD T/A TOTAL PRODUCE,390977,Commissioning & Investment,Children's & Education Services,103,Supplies and Services,504,Equipment,5023,Revenue,03.GROCERIES & PROVISIONS
24-Jul-2017,7003713,236.33,REDBRIDGE PRODUCE & FLOWERS LTD T/A TOTAL PRODUCE,390977,Commissioning & Investment,Children's & Education Services,103,Supplies and Services,504,Equipment,5023,Revenue,03.GROCERIES & PROVISIONS
24-Jul-2017,7003713,5.50,REDBRIDGE PRODUCE & FLOWERS LTD T/A TOTAL PRODUCE,390977,Commissioning & Investment,Children's & Education Services,103,Supplies and Services,504,Equipment,5023,Revenue,03.GROCERIES & PROVISIONS
24-Jul-2017,7003713,1.56,REDBRIDGE PRODUCE & FLOWERS LTD T/A TOTAL PRODUCE,390977,Commissioning & Investment,Children's & Education Services,103,Supplies and Services,504,Equipment,5023,Revenue,03.GROCERIES & PROVISIONS
24-Jul-2017,7003713,24.48,REDBRIDGE PRODUCE & FLOWERS LTD T/A TOTAL PRODUCE,390977,Commissioning & Investment,Children's & Education Services,103,Supplies and Services,504,Equipment,5023,Revenue,03.GROCERIES & PROVISIONS
24-Jul-2017,7003713,39.57,REDBRIDGE PRODUCE & FLOWERS LTD T/A TOTAL PRODUCE,390977,Commissioning & Investment,Children's & Education Services,103,Supplies and Services,504,Equipment,5023,Revenue,03.GROCERIES & PROVISIONS
24-Jul-2017,7003713,100.55,REDBRIDGE PRODUCE & FLOWERS LTD T/A TOTAL PRODUCE,390977,Commissioning & Investment,Children's & Education Services,103,Supplies and Services,504,Equipment,5023,Revenue,03.GROCERIES & PROVISIONS
24-Jul-2017,7003713,18.83,REDBRIDGE PRODUCE & FLOWERS LTD T/A TOTAL PRODUCE,390977,Commissioning & Investment,Children's & Education Services,103,Supplies and Services,504,Equipment,5023,Revenue,03.GROCERIES & PROVISIONS
24-Jul-2017,7003713,4.40,REDBRIDGE PRODUCE & FLOWERS LTD T/A TOTAL PRODUCE,390977,Commissioning & Investment,Children's & Education Services,103,Supplies and Services,504,Equipment,5023,Revenue,03.GROCERIES & PROVISIONS
24-Jul-2017,7003713,-11.14,REDBRIDGE PRODUCE & FLOWERS LTD T/A TOTAL PRODUCE,390977,Commissioning & Investment,Children's & Education Services,103,Supplies and Services,504,Equipment,5023,Revenue,03.GROCERIES & PROVISIONS
24-Jul-2017,7003713,-0.70,REDBRIDGE PRODUCE & FLOWERS LTD T/A TOTAL PRODUCE,390977,Commissioning & Investment,Children's & Education Services,103,Supplies and Services,504,Equipment,5023,Revenue,03.GROCERIES & PROVISIONS
24-Jul-2017,7003713,54.40,REDBRIDGE PRODUCE & FLOWERS LTD T/A TOTAL PRODUCE,390977,Commissioning & Investment,Children's & Education Services,103,Supplies and Services,504,Equipment,5023,Revenue,03.GROCERIES & PROVISIONS
24-Jul-2017,7003713,2.29,REDBRIDGE PRODUCE & FLOWERS LTD T/A TOTAL PRODUCE,390977,Commissioning & Investment,Children's & Education Services,103,Supplies and Services,504,Equipment,5023,Revenue,03.GROCERIES & PROVISIONS
24-Jul-2017,7003713,-29.48,REDBRIDGE PRODUCE & FLOWERS LTD T/A TOTAL PRODUCE,390977,Commissioning & Investment,Children's & Education Services,103,Supplies and Services,504,Equipment,5023,Revenue,03.GROCERIES & PROVISIONS
24-Jul-2017,7003713,6.60,REDBRIDGE PRODUCE & FLOWERS LTD T/A TOTAL PRODUCE,390977,Commissioning & Investment,Children's & Education Services,103,Supplies and Services,504,Equipment,5023,Revenue,03.GROCERIES & PROVISIONS
24-Jul-2017,7003713,2.20,REDBRIDGE PRODUCE & FLOWERS LTD T/A TOTAL PRODUCE,390977,Commissioning & Investment,Children's & Education Services,103,Supplies and Services,504,Equipment,5023,Revenue,03.GROCERIES & PROVISIONS
24-Jul-2017,7003713,50.63,REDBRIDGE PRODUCE & FLOWERS LTD T/A TOTAL PRODUCE,390977,Commissioning & Investment,Children's & Education Services,103,Supplies and Services,504,Equipment,5023,Revenue,03.GROCERIES & PROVISIONS
24-Jul-2017,7003713,95.96,REDBRIDGE PRODUCE & FLOWERS LTD T/A TOTAL PRODUCE,390977,Commissioning & Investment,Children's & Education Services,103,Supplies and Services,504,Equipment,5023,Revenue,03.GROCERIES & PROVISIONS
24-Jul-2017,7003713,6.12,REDBRIDGE PRODUCE & FLOWERS LTD T/A TOTAL PRODUCE,390977,Commissioning & Investment,Children's & Education Services,103,Supplies and Services,504,Equipment,5023,Revenue,03.GROCERIES & PROVISIONS
24-Jul-2017,7003713,0.78,REDBRIDGE PRODUCE & FLOWERS LTD T/A TOTAL PRODUCE,390977,Commissioning & Investment,Children's & Education Services,103,Supplies and Services,504,Equipment,5023,Revenue,03.GROCERIES & PROVISIONS
24-Jul-2017,7003713,-1.10,REDBRIDGE PRODUCE & FLOWERS LTD T/A TOTAL PRODUCE,390977,Commissioning & Investment,Children's & Education Services,103,Supplies and Services,504,Equipment,5023,Revenue,03.GROCERIES & PROVISIONS
24-Jul-2017,7003713,0.78,REDBRIDGE PRODUCE & FLOWERS LTD T/A TOTAL PRODUCE,390977,Commissioning & Investment,Children's & Education Services,103,Supplies and Services,504,Equipment,5023,Revenue,03.GROCERIES & PROVISIONS
24-Jul-2017,7003713,-6.15,REDBRIDGE PRODUCE & FLOWERS LTD T/A TOTAL PRODUCE,390977,Commissioning & Investment,Children's & Education Services,103,Supplies and Services,504,Equipment,5023,Revenue,03.GROCERIES & PROVISIONS
24-Jul-2017,7003713,4.40,REDBRIDGE PRODUCE & FLOWERS LTD T/A TOTAL PRODUCE,390977,Commissioning & Investment,Children's & Education Services,103,Supplies and Services,504,Equipment,5023,Revenue,03.GROCERIES & PROVISIONS
24-Jul-2017,7003713,0.76,REDBRIDGE PRODUCE & FLOWERS LTD T/A TOTAL PRODUCE,390977,Commissioning & Investment,Children's & Education Services,103,Supplies and Services,504,Equipment,5023,Revenue,03.GROCERIES & PROVISIONS
24-Jul-2017,7003713,11.00,REDBRIDGE PRODUCE & FLOWERS LTD T/A TOTAL PRODUCE,390977,Commissioning & Investment,Children's & Education Services,103,Supplies and Services,504,Equipment,5023,Revenue,03.GROCERIES & PROVISIONS
24-Jul-2017,7003713,47.82,REDBRIDGE PRODUCE & FLOWERS LTD T/A TOTAL PRODUCE,390977,Commissioning & Investment,Children's & Education Services,103,Supplies and Services,504,Equipment,5023,Revenue,03.GROCERIES & PROVISIONS
24-Jul-2017,7003713,40.43,REDBRIDGE PRODUCE & FLOWERS LTD T/A TOTAL PRODUCE,390977,Commissioning & Investment,Children's & Education Services,103,Supplies and Services,504,Equipment,5023,Revenue,03.GROCERIES & PROVISIONS
24-Jul-2017,7003713,55.59,REDBRIDGE PRODUCE & FLOWERS LTD T/A TOTAL PRODUCE,390977,Commissioning & Investment,Children's & Education Services,103,Supplies and Services,504,Equipment,5023,Revenue,03.GROCERIES & PROVISIONS
24-Jul-2017,7003713,-6.10,REDBRIDGE PRODUCE & FLOWERS LTD T/A TOTAL PRODUCE,390977,Commissioning & Investment,Children's & Education Services,103,Supplies and Services,504,Equipment,5023,Revenue,03.GROCERIES & PROVISIONS
24-Jul-2017,7003713,4.58,REDBRIDGE PRODUCE & FLOWERS LTD T/A TOTAL PRODUCE,390977,Commissioning & Investment,Children's & Education Services,103,Supplies and Services,504,Equipment,5023,Revenue,03.GROCERIES & PROVISIONS
24-Jul-2017,7003713,-1.28,REDBRIDGE PRODUCE & FLOWERS LTD T/A TOTAL PRODUCE,390977,Commissioning & Investment,Children's & Education Services,103,Supplies and Services,504,Equipment,5023,Revenue,03.GROCERIES & PROVISIONS
24-Jul-2017,7003713,34.37,REDBRIDGE PRODUCE & FLOWERS LTD T/A TOTAL PRODUCE,390977,Commissioning & Investment,Children's & Education Services,103,Supplies and Services,504,Equipment,5023,Revenue,03.GROCERIES & PROVISIONS
24-Jul-2017,7003713,13.11,REDBRIDGE PRODUCE & FLOWERS LTD T/A TOTAL PRODUCE,390977,Commissioning & Investment,Children's & Education Services,103,Supplies and Services,504,Equipment,5023,Revenue,03.GROCERIES & PROVISIONS
24-Jul-2017,7003713,1.29,REDBRIDGE PRODUCE & FLOWERS LTD T/A TOTAL PRODUCE,390977,Commissioning & Investment,Children's & Education Services,103,Supplies and Services,504,Equipment,5023,Revenue,03.GROCERIES & PROVISIONS
24-Jul-2017,7003713,2.46,REDBRIDGE PRODUCE & FLOWERS LTD T/A TOTAL PRODUCE,390977,Commissioning & Investment,Children's & Education Services,103,Supplies and Services,504,Equipment,5023,Revenue,03.GROCERIES & PROVISIONS
24-Jul-2017,7003713,4.45,REDBRIDGE PRODUCE & FLOWERS LTD T/A TOTAL PRODUCE,390977,Commissioning & Investment,Children's & Education Services,103,Supplies and Services,504,Equipment,5023,Revenue,03.GROCERIES & PROVISIONS
24-Jul-2017,7003713,51.88,REDBRIDGE PRODUCE & FLOWERS LTD T/A TOTAL PRODUCE,390977,Commissioning & Investment,Children's & Education Services,103,Supplies and Services,504,Equipment,5023,Revenue,03.GROCERIES & PROVISIONS
24-Jul-2017,7003713,1.22,REDBRIDGE PRODUCE & FLOWERS LTD T/A TOTAL PRODUCE,390977,Commissioning & Investment,Children's & Education Services,103,Supplies and Services,504,Equipment,5023,Revenue,03.GROCERIES & PROVISIONS
24-Jul-2017,7003713,53.00,REDBRIDGE PRODUCE & FLOWERS LTD T/A TOTAL PRODUCE,390977,Commissioning & Investment,Children's & Education Services,103,Supplies and Services,504,Equipment,5023,Revenue,03.GROCERIES & PROVISIONS
24-Jul-2017,7003713,4.40,REDBRIDGE PRODUCE & FLOWERS LTD T/A TOTAL PRODUCE,390977,Commissioning & Investment,Children's & Education Services,103,Supplies and Services,504,Equipment,5023,Revenue,03.GROCERIES & PROVISIONS
24-Jul-2017,7003713,86.24,REDBRIDGE PRODUCE & FLOWERS LTD T/A TOTAL PRODUCE,390977,Commissioning & Investment,Children's & Education Services,103,Supplies and Services,504,Equipment,5023,Revenue,03.GROCERIES & PROVISIONS
24-Jul-2017,7003713,27.65,REDBRIDGE PRODUCE & FLOWERS LTD T/A TOTAL PRODUCE,390977,Commissioning & Investment,Children's & Education Services,103,Supplies and Services,504,Equipment,5023,Revenue,03.GROCERIES & PROVISIONS
24-Jul-2017,7003713,11.00,REDBRIDGE PRODUCE & FLOWERS LTD T/A TOTAL PRODUCE,390977,Commissioning & Investment,Children's & Education Services,103,Supplies and Services,504,Equipment,5023,Revenue,03.GROCERIES & PROVISIONS
24-Jul-2017,7003713,5.10,REDBRIDGE PRODUCE & FLOWERS LTD T/A TOTAL PRODUCE,390977,Commissioning & Investment,Children's & Education Services,103,Supplies and Services,504,Equipment,5023,Revenue,03.GROCERIES & PROVISIONS
24-Jul-2017,7003713,84.06,REDBRIDGE PRODUCE & FLOWERS LTD T/A TOTAL PRODUCE,390977,Commissioning & Investment,Children's & Education Services,103,Supplies and Services,504,Equipment,5023,Revenue,03.GROCERIES & PROVISIONS
24-Jul-2017,7003713,49.95,REDBRIDGE PRODUCE & FLOWERS LTD T/A TOTAL PRODUCE,390977,Commissioning & Investment,Children's & Education Services,103,Supplies and Services,504,Equipment,5023,Revenue,03.GROCERIES & PROVISIONS
24-Jul-2017,7003713,40.07,REDBRIDGE PRODUCE & FLOWERS LTD T/A TOTAL PRODUCE,390977,"Environment, Housing & Leisure",Adult Social Care,101,Supplies and Services,504,Equipment,5023,Revenue,03.GROCERIES & PROVISIONS
24-Jul-2017,7003713,4.08,REDBRIDGE PRODUCE & FLOWERS LTD T/A TOTAL PRODUCE,390977,Commissioning & Investment,Children's & Education Services,103,Supplies and Services,504,Equipment,5023,Revenue,03.GROCERIES & PROVISIONS
24-Jul-2017,7003713,1.78,REDBRIDGE PRODUCE & FLOWERS LTD T/A TOTAL PRODUCE,390977,Commissioning & Investment,Children's & Education Services,103,Supplies and Services,504,Equipment,5023,Revenue,03.GROCERIES & PROVISIONS
24-Jul-2017,7003713,73.08,REDBRIDGE PRODUCE & FLOWERS LTD T/A TOTAL PRODUCE,390977,Commissioning & Investment,Children's & Education Services,103,Supplies and Services,504,Equipment,5023,Revenue,03.GROCERIES & PROVISIONS
24-Jul-2017,7003713,33.96,REDBRIDGE PRODUCE & FLOWERS LTD T/A TOTAL PRODUCE,390977,Commissioning & Investment,Children's & Education Services,103,Supplies and Services,504,Equipment,5023,Revenue,03.GROCERIES & PROVISIONS
24-Jul-2017,7003713,1.56,REDBRIDGE PRODUCE & FLOWERS LTD T/A TOTAL PRODUCE,390977,Commissioning & Investment,Children's & Education Services,103,Supplies and Services,504,Equipment,5023,Revenue,03.GROCERIES & PROVISIONS
24-Jul-2017,7003713,3.06,REDBRIDGE PRODUCE & FLOWERS LTD T/A TOTAL PRODUCE,390977,Commissioning & Investment,Children's & Education Services,103,Supplies and Services,504,Equipment,5023,Revenue,03.GROCERIES & PROVISIONS
24-Jul-2017,7003713,26.24,REDBRIDGE PRODUCE & FLOWERS LTD T/A TOTAL PRODUCE,390977,Commissioning & Investment,Children's & Education Services,103,Supplies and Services,504,Equipment,5023,Revenue,03.GROCERIES & PROVISIONS
24-Jul-2017,7003713,37.52,REDBRIDGE PRODUCE & FLOWERS LTD T/A TOTAL PRODUCE,390977,"Environment, Housing & Leisure",Adult Social Care,101,Supplies and Services,504,Equipment,5023,Revenue,03.GROCERIES & PROVISIONS
24-Jul-2017,7003713,-12.24,REDBRIDGE PRODUCE & FLOWERS LTD T/A TOTAL PRODUCE,390977,Commissioning & Investment,Children's & Education Services,103,Supplies and Services,504,Equipment,5023,Revenue,03.GROCERIES & PROVISIONS
24-Jul-2017,7003713,3.20,REDBRIDGE PRODUCE & FLOWERS LTD T/A TOTAL PRODUCE,390977,Commissioning & Investment,Children's & Education Services,103,Supplies and Services,504,Equipment,5023,Revenue,03.GROCERIES & PROVISIONS
24-Jul-2017,7003713,18.36,REDBRIDGE PRODUCE & FLOWERS LTD T/A TOTAL PRODUCE,390977,Commissioning & Investment,Children's & Education Services,103,Supplies and Services,504,Equipment,5023,Revenue,03.GROCERIES & PROVISIONS
24-Jul-2017,7003713,54.01,REDBRIDGE PRODUCE & FLOWERS LTD T/A TOTAL PRODUCE,390977,Commissioning & Investment,Children's & Education Services,103,Supplies and Services,504,Equipment,5023,Revenue,03.GROCERIES & PROVISIONS
24-Jul-2017,7003713,155.71,REDBRIDGE PRODUCE & FLOWERS LTD T/A TOTAL PRODUCE,390977,Commissioning & Investment,Children's & Education Services,103,Supplies and Services,504,Equipment,5023,Revenue,03.GROCERIES & PROVISIONS
24-Jul-2017,7003713,185.49,REDBRIDGE PRODUCE & FLOWERS LTD T/A TOTAL PRODUCE,390977,Commissioning & Investment,Children's & Education Services,103,Supplies and Services,504,Equipment,5023,Revenue,03.GROCERIES & PROVISIONS
24-Jul-2017,7003713,3.30,REDBRIDGE PRODUCE & FLOWERS LTD T/A TOTAL PRODUCE,390977,Commissioning & Investment,Children's & Education Services,103,Supplies and Services,504,Equipment,5023,Revenue,03.GROCERIES & PROVISIONS
24-Jul-2017,7003713,9.16,REDBRIDGE PRODUCE & FLOWERS LTD T/A TOTAL PRODUCE,390977,Commissioning & Investment,Children's & Education Services,103,Supplies and Services,504,Equipment,5023,Revenue,03.GROCERIES & PROVISIONS
24-Jul-2017,7003713,56.73,REDBRIDGE PRODUCE & FLOWERS LTD T/A TOTAL PRODUCE,390977,Commissioning & Investment,Children's & Education Services,103,Supplies and Services,504,Equipment,5023,Revenue,03.GROCERIES & PROVISIONS
24-Jul-2017,7003713,43.82,REDBRIDGE PRODUCE & FLOWERS LTD T/A TOTAL PRODUCE,390977,Commissioning & Investment,Children's & Education Services,103,Supplies and Services,504,Equipment,5023,Revenue,03.GROCERIES & PROVISIONS
24-Jul-2017,7003713,11.00,REDBRIDGE PRODUCE & FLOWERS LTD T/A TOTAL PRODUCE,390977,Commissioning & Investment,Children's & Education Services,103,Supplies and Services,504,Equipment,5023,Revenue,03.GROCERIES & PROVISIONS
24-Jul-2017,7003713,26.34,REDBRIDGE PRODUCE & FLOWERS LTD T/A TOTAL PRODUCE,390977,"Health, Education, Care and Safeguarding",Children's & Education Services,103,Supplies and Services,504,Equipment,5023,Revenue,03.GROCERIES & PROVISIONS
24-Jul-2017,7003713,51.11,REDBRIDGE PRODUCE & FLOWERS LTD T/A TOTAL PRODUCE,390977,Commissioning & Investment,Children's & Education Services,103,Supplies and Services,504,Equipment,5023,Revenue,03.GROCERIES & PROVISIONS
24-Jul-2017,7003713,1.46,REDBRIDGE PRODUCE & FLOWERS LTD T/A TOTAL PRODUCE,390977,Commissioning & Investment,Children's & Education Services,103,Supplies and Services,504,Equipment,5023,Revenue,03.GROCERIES & PROVISIONS
24-Jul-2017,7003713,48.93,REDBRIDGE PRODUCE & FLOWERS LTD T/A TOTAL PRODUCE,390977,Commissioning & Investment,Children's & Education Services,103,Supplies and Services,504,Equipment,5023,Revenue,03.GROCERIES & PROVISIONS
24-Jul-2017,7003713,2.46,REDBRIDGE PRODUCE & FLOWERS LTD T/A TOTAL PRODUCE,390977,"Health, Education, Care and Safeguarding",Children's & Education Services,103,Supplies and Services,504,Equipment,5023,Revenue,03.GROCERIES & PROVISIONS
24-Jul-2017,7003713,11.96,REDBRIDGE PRODUCE & FLOWERS LTD T/A TOTAL PRODUCE,390977,"Environment, Housing & Leisure",Adult Social Care,101,Supplies and Services,504,Equipment,5023,Revenue,03.GROCERIES & PROVISIONS
24-Jul-2017,7003713,29.56,REDBRIDGE PRODUCE & FLOWERS LTD T/A TOTAL PRODUCE,390977,Commissioning & Investment,Children's & Education Services,103,Supplies and Services,504,Equipment,5023,Revenue,03.GROCERIES & PROVISIONS
24-Jul-2017,7003713,17.60,REDBRIDGE PRODUCE & FLOWERS LTD T/A TOTAL PRODUCE,390977,Commissioning & Investment,Children's & Education Services,103,Supplies and Services,504,Equipment,5023,Revenue,03.GROCERIES & PROVISIONS
24-Jul-2017,7003713,11.00,REDBRIDGE PRODUCE & FLOWERS LTD T/A TOTAL PRODUCE,390977,Commissioning & Investment,Children's & Education Services,103,Supplies and Services,504,Equipment,5023,Revenue,03.GROCERIES & PROVISIONS
24-Jul-2017,7003713,3.30,REDBRIDGE PRODUCE & FLOWERS LTD T/A TOTAL PRODUCE,390977,Commissioning & Investment,Children's & Education Services,103,Supplies and Services,504,Equipment,5023,Revenue,03.GROCERIES & PROVISIONS
24-Jul-2017,7003713,26.58,REDBRIDGE PRODUCE & FLOWERS LTD T/A TOTAL PRODUCE,390977,Commissioning & Investment,Children's & Education Services,103,Supplies and Services,504,Equipment,5023,Revenue,03.GROCERIES & PROVISIONS
24-Jul-2017,7003713,2.30,REDBRIDGE PRODUCE & FLOWERS LTD T/A TOTAL PRODUCE,390977,Commissioning & Investment,Children's & Education Services,103,Supplies and Services,504,Equipment,5023,Revenue,03.GROCERIES & PROVISIONS
24-Jul-2017,7003713,0.98,REDBRIDGE PRODUCE & FLOWERS LTD T/A TOTAL PRODUCE,390977,Commissioning & Investment,Children's & Education Services,103,Supplies and Services,504,Equipment,5023,Revenue,03.GROCERIES & PROVISIONS
24-Jul-2017,7003713,88.24,REDBRIDGE PRODUCE & FLOWERS LTD T/A TOTAL PRODUCE,390977,Commissioning & Investment,Children's & Education Services,103,Supplies and Services,504,Equipment,5023,Revenue,03.GROCERIES & PROVISIONS
24-Jul-2017,7003713,12.87,REDBRIDGE PRODUCE & FLOWERS LTD T/A TOTAL PRODUCE,390977,Commissioning & Investment,Children's & Education Services,103,Supplies and Services,504,Equipment,5023,Revenue,03.GROCERIES & PROVISIONS
24-Jul-2017,7003713,4.08,REDBRIDGE PRODUCE & FLOWERS LTD T/A TOTAL PRODUCE,390977,Commissioning & Investment,Children's & Education Services,103,Supplies and Services,504,Equipment,5023,Revenue,03.GROCERIES & PROVISIONS
24-Jul-2017,7003713,4.08,REDBRIDGE PRODUCE & FLOWERS LTD T/A TOTAL PRODUCE,390977,Commissioning & Investment,Children's & Education Services,103,Supplies and Services,504,Equipment,5023,Revenue,03.GROCERIES & PROVISIONS
24-Jul-2017,7003713,18.36,REDBRIDGE PRODUCE & FLOWERS LTD T/A TOTAL PRODUCE,390977,Commissioning & Investment,Children's & Education Services,103,Supplies and Services,504,Equipment,5023,Revenue,03.GROCERIES & PROVISIONS
24-Jul-2017,7003713,3.06,REDBRIDGE PRODUCE & FLOWERS LTD T/A TOTAL PRODUCE,390977,Commissioning & Investment,Children's & Education Services,103,Supplies and Services,504,Equipment,5023,Revenue,03.GROCERIES & PROVISIONS
24-Jul-2017,7003713,75.81,REDBRIDGE PRODUCE & FLOWERS LTD T/A TOTAL PRODUCE,390977,Commissioning & Investment,Children's & Education Services,103,Supplies and Services,504,Equipment,5023,Revenue,03.GROCERIES & PROVISIONS
24-Jul-2017,7003713,0.78,REDBRIDGE PRODUCE & FLOWERS LTD T/A TOTAL PRODUCE,390977,Commissioning & Investment,Children's & Education Services,103,Supplies and Services,504,Equipment,5023,Revenue,03.GROCERIES & PROVISIONS
24-Jul-2017,7003713,2.46,REDBRIDGE PRODUCE & FLOWERS LTD T/A TOTAL PRODUCE,390977,"Health, Education, Care and Safeguarding",Children's & Education Services,103,Supplies and Services,504,Equipment,5023,Revenue,03.GROCERIES & PROVISIONS
24-Jul-2017,7003713,100.63,REDBRIDGE PRODUCE & FLOWERS LTD T/A TOTAL PRODUCE,390977,Commissioning & Investment,Children's & Education Services,103,Supplies and Services,504,Equipment,5023,Revenue,03.GROCERIES & PROVISIONS
24-Jul-2017,7003713,-2.30,REDBRIDGE PRODUCE & FLOWERS LTD T/A TOTAL PRODUCE,390977,Commissioning & Investment,Children's & Education Services,103,Supplies and Services,504,Equipment,5023,Revenue,03.GROCERIES & PROVISIONS
24-Jul-2017,7003713,17.25,REDBRIDGE PRODUCE & FLOWERS LTD T/A TOTAL PRODUCE,390977,Commissioning & Investment,Children's & Education Services,103,Supplies and Services,504,Equipment,5023,Revenue,03.GROCERIES & PROVISIONS
24-Jul-2017,7003713,21.65,REDBRIDGE PRODUCE & FLOWERS LTD T/A TOTAL PRODUCE,390977,"Environment, Housing & Leisure",Cultural & Related Services,104,Supplies and Services,504,Equipment,5023,Revenue,03.GROCERIES & PROVISIONS
24-Jul-2017,7003713,-1.40,REDBRIDGE PRODUCE & FLOWERS LTD T/A TOTAL PRODUCE,390977,Commissioning & Investment,Children's & Education Services,103,Supplies and Services,504,Equipment,5023,Revenue,03.GROCERIES & PROVISIONS
24-Jul-2017,7003713,4.37,REDBRIDGE PRODUCE & FLOWERS LTD T/A TOTAL PRODUCE,390977,Commissioning & Investment,Children's & Education Services,103,Supplies and Services,504,Equipment,5023,Revenue,03.GROCERIES & PROVISIONS
24-Jul-2017,7003713,66.81,REDBRIDGE PRODUCE & FLOWERS LTD T/A TOTAL PRODUCE,390977,Commissioning & Investment,Children's & Education Services,103,Supplies and Services,504,Equipment,5023,Revenue,03.GROCERIES & PROVISIONS
24-Jul-2017,7003713,0.77,REDBRIDGE PRODUCE & FLOWERS LTD T/A TOTAL PRODUCE,390977,Commissioning & Investment,Children's & Education Services,103,Supplies and Services,504,Equipment,5023,Revenue,03.GROCERIES & PROVISIONS
24-Jul-2017,7003713,1.78,REDBRIDGE PRODUCE & FLOWERS LTD T/A TOTAL PRODUCE,390977,Commissioning & Investment,Children's & Education Services,103,Supplies and Services,504,Equipment,5023,Revenue,03.GROCERIES & PROVISIONS
24-Jul-2017,7003713,72.92,REDBRIDGE PRODUCE & FLOWERS LTD T/A TOTAL PRODUCE,390977,Commissioning & Investment,Children's & Education Services,103,Supplies and Services,504,Equipment,5023,Revenue,03.GROCERIES & PROVISIONS
24-Jul-2017,7003713,2.21,REDBRIDGE PRODUCE & FLOWERS LTD T/A TOTAL PRODUCE,390977,Commissioning & Investment,Children's & Education Services,103,Supplies and Services,504,Equipment,5023,Revenue,03.GROCERIES & PROVISIONS
24-Jul-2017,7003713,23.66,REDBRIDGE PRODUCE & FLOWERS LTD T/A TOTAL PRODUCE,390977,Commissioning & Investment,Children's & Education Services,103,Supplies and Services,504,Equipment,5023,Revenue,03.GROCERIES & PROVISIONS
24-Jul-2017,7003713,2.14,REDBRIDGE PRODUCE & FLOWERS LTD T/A TOTAL PRODUCE,390977,Commissioning & Investment,Children's & Education Services,103,Supplies and Services,504,Equipment,5023,Revenue,03.GROCERIES & PROVISIONS
24-Jul-2017,7003713,1.25,REDBRIDGE PRODUCE & FLOWERS LTD T/A TOTAL PRODUCE,390977,Commissioning & Investment,Children's & Education Services,103,Supplies and Services,504,Equipment,5023,Revenue,03.GROCERIES & PROVISIONS
24-Jul-2017,7003713,69.54,REDBRIDGE PRODUCE & FLOWERS LTD T/A TOTAL PRODUCE,390977,Commissioning & Investment,Children's & Education Services,103,Supplies and Services,504,Equipment,5023,Revenue,03.GROCERIES & PROVISIONS
24-Jul-2017,7003713,1.78,REDBRIDGE PRODUCE & FLOWERS LTD T/A TOTAL PRODUCE,390977,Commissioning & Investment,Children's & Education Services,103,Supplies and Services,504,Equipment,5023,Revenue,03.GROCERIES & PROVISIONS
24-Jul-2017,7003713,39.67,REDBRIDGE PRODUCE & FLOWERS LTD T/A TOTAL PRODUCE,390977,Commissioning & Investment,Children's & Education Services,103,Supplies and Services,504,Equipment,5023,Revenue,03.GROCERIES & PROVISIONS
24-Jul-2017,7003713,-5.08,REDBRIDGE PRODUCE & FLOWERS LTD T/A TOTAL PRODUCE,390977,Commissioning & Investment,Children's & Education Services,103,Supplies and Services,504,Equipment,5023,Revenue,03.GROCERIES & PROVISIONS
24-Jul-2017,7003713,10.17,REDBRIDGE PRODUCE & FLOWERS LTD T/A TOTAL PRODUCE,390977,Commissioning & Investment,Children's & Education Services,103,Supplies and Services,504,Equipment,5023,Revenue,03.GROCERIES & PROVISIONS
24-Jul-2017,7003713,136.37,REDBRIDGE PRODUCE & FLOWERS LTD T/A TOTAL PRODUCE,390977,Commissioning & Investment,Children's & Education Services,103,Supplies and Services,504,Equipment,5023,Revenue,03.GROCERIES & PROVISIONS
24-Jul-2017,7003713,6.60,REDBRIDGE PRODUCE & FLOWERS LTD T/A TOTAL PRODUCE,390977,Commissioning & Investment,Children's & Education Services,103,Supplies and Services,504,Equipment,5023,Revenue,03.GROCERIES & PROVISIONS
24-Jul-2017,7003713,53.14,REDBRIDGE PRODUCE & FLOWERS LTD T/A TOTAL PRODUCE,390977,Commissioning & Investment,Children's & Education Services,103,Supplies and Services,504,Equipment,5023,Revenue,03.GROCERIES & PROVISIONS
24-Jul-2017,7003713,2.20,REDBRIDGE PRODUCE & FLOWERS LTD T/A TOTAL PRODUCE,390977,Commissioning & Investment,Children's & Education Services,103,Supplies and Services,504,Equipment,5023,Revenue,03.GROCERIES & PROVISIONS
24-Jul-2017,7003713,37.33,REDBRIDGE PRODUCE & FLOWERS LTD T/A TOTAL PRODUCE,390977,Commissioning & Investment,Children's & Education Services,103,Supplies and Services,504,Equipment,5023,Revenue,03.GROCERIES & PROVISIONS
24-Jul-2017,7003713,9.16,REDBRIDGE PRODUCE & FLOWERS LTD T/A TOTAL PRODUCE,390977,Commissioning & Investment,Children's & Education Services,103,Supplies and Services,504,Equipment,5023,Revenue,03.GROCERIES & PROVISIONS
24-Jul-2017,7003713,4.20,REDBRIDGE PRODUCE & FLOWERS LTD T/A TOTAL PRODUCE,390977,Commissioning & Investment,Children's & Education Services,103,Supplies and Services,504,Equipment,5023,Revenue,03.GROCERIES & PROVISIONS
24-Jul-2017,7003713,-0.66,REDBRIDGE PRODUCE & FLOWERS LTD T/A TOTAL PRODUCE,390977,Commissioning & Investment,Children's & Education Services,103,Supplies and Services,504,Equipment,5023,Revenue,03.GROCERIES & PROVISIONS
24-Jul-2017,7003713,22.90,REDBRIDGE PRODUCE & FLOWERS LTD T/A TOTAL PRODUCE,390977,Commissioning & Investment,Children's & Education Services,103,Supplies and Services,504,Equipment,5023,Revenue,03.GROCERIES & PROVISIONS
24-Jul-2017,7003713,0.89,REDBRIDGE PRODUCE & FLOWERS LTD T/A TOTAL PRODUCE,390977,Commissioning & Investment,Children's & Education Services,103,Supplies and Services,504,Equipment,5023,Revenue,03.GROCERIES & PROVISIONS
24-Jul-2017,7003713,16.50,REDBRIDGE PRODUCE & FLOWERS LTD T/A TOTAL PRODUCE,390977,Commissioning & Investment,Children's & Education Services,103,Supplies and Services,504,Equipment,5023,Revenue,03.GROCERIES & PROVISIONS
24-Jul-2017,7003713,15.42,REDBRIDGE PRODUCE & FLOWERS LTD T/A TOTAL PRODUCE,390977,Commissioning & Investment,Children's & Education Services,103,Supplies and Services,504,Equipment,5023,Revenue,03.GROCERIES & PROVISIONS
24-Jul-2017,7003713,64.19,REDBRIDGE PRODUCE & FLOWERS LTD T/A TOTAL PRODUCE,390977,Commissioning & Investment,Children's & Education Services,103,Supplies and Services,504,Equipment,5023,Revenue,03.GROCERIES & PROVISIONS
24-Jul-2017,7003713,4.58,REDBRIDGE PRODUCE & FLOWERS LTD T/A TOTAL PRODUCE,390977,Commissioning & Investment,Children's & Education Services,103,Supplies and Services,504,Equipment,5023,Revenue,03.GROCERIES & PROVISIONS
24-Jul-2017,7003713,25.76,REDBRIDGE PRODUCE & FLOWERS LTD T/A TOTAL PRODUCE,390977,Commissioning & Investment,Children's & Education Services,103,Supplies and Services,504,Equipment,5023,Revenue,03.GROCERIES & PROVISIONS
24-Jul-2017,7003713,1.53,REDBRIDGE PRODUCE & FLOWERS LTD T/A TOTAL PRODUCE,390977,Commissioning & Investment,Children's & Education Services,103,Supplies and Services,504,Equipment,5023,Revenue,03.GROCERIES & PROVISIONS
24-Jul-2017,7003713,-4.58,REDBRIDGE PRODUCE & FLOWERS LTD T/A TOTAL PRODUCE,390977,Commissioning & Investment,Children's & Education Services,103,Supplies and Services,504,Equipment,5023,Revenue,03.GROCERIES & PROVISIONS
24-Jul-2017,7003713,31.48,REDBRIDGE PRODUCE & FLOWERS LTD T/A TOTAL PRODUCE,390977,"Environment, Housing & Leisure",Cultural & Related Services,104,Supplies and Services,504,Equipment,5023,Revenue,03.GROCERIES & PROVISIONS
24-Jul-2017,7003713,0.40,REDBRIDGE PRODUCE & FLOWERS LTD T/A TOTAL PRODUCE,390977,Commissioning & Investment,Children's & Education Services,103,Supplies and Services,504,Equipment,5023,Revenue,03.GROCERIES & PROVISIONS
24-Jul-2017,7003713,0.39,REDBRIDGE PRODUCE & FLOWERS LTD T/A TOTAL PRODUCE,390977,Commissioning & Investment,Children's & Education Services,103,Supplies and Services,504,Equipment,5023,Revenue,03.GROCERIES & PROVISIONS
24-Jul-2017,7003713,84.85,REDBRIDGE PRODUCE & FLOWERS LTD T/A TOTAL PRODUCE,390977,Commissioning & Investment,Children's & Education Services,103,Supplies and Services,504,Equipment,5023,Revenue,03.GROCERIES & PROVISIONS
24-Jul-2017,7003713,0.96,REDBRIDGE PRODUCE & FLOWERS LTD T/A TOTAL PRODUCE,390977,Commissioning & Investment,Children's & Education Services,103,Supplies and Services,504,Equipment,5023,Revenue,03.GROCERIES & PROVISIONS
24-Jul-2017,7003713,50.42,REDBRIDGE PRODUCE & FLOWERS LTD T/A TOTAL PRODUCE,390977,Commissioning & Investment,Children's & Education Services,103,Supplies and Services,504,Equipment,5023,Revenue,03.GROCERIES & PROVISIONS
24-Jul-2017,7003713,4.40,REDBRIDGE PRODUCE & FLOWERS LTD T/A TOTAL PRODUCE,390977,Commissioning & Investment,Children's & Education Services,103,Supplies and Services,504,Equipment,5023,Revenue,03.GROCERIES & PROVISIONS
24-Jul-2017,7003713,1.07,REDBRIDGE PRODUCE & FLOWERS LTD T/A TOTAL PRODUCE,390977,Commissioning & Investment,Children's & Education Services,103,Supplies and Services,504,Equipment,5023,Revenue,03.GROCERIES & PROVISIONS
24-Jul-2017,7003713,1.15,REDBRIDGE PRODUCE & FLOWERS LTD T/A TOTAL PRODUCE,390977,Commissioning & Investment,Children's & Education Services,103,Supplies and Services,504,Equipment,5023,Revenue,03.GROCERIES & PROVISIONS
24-Jul-2017,7003713,2.10,REDBRIDGE PRODUCE & FLOWERS LTD T/A TOTAL PRODUCE,390977,Commissioning & Investment,Children's & Education Services,103,Supplies and Services,504,Equipment,5023,Revenue,03.GROCERIES & PROVISIONS
24-Jul-2017,7003713,9.16,REDBRIDGE PRODUCE & FLOWERS LTD T/A TOTAL PRODUCE,390977,Commissioning & Investment,Children's & Education Services,103,Supplies and Services,504,Equipment,5023,Revenue,03.GROCERIES & PROVISIONS
24-Jul-2017,7003713,10.50,REDBRIDGE PRODUCE & FLOWERS LTD T/A TOTAL PRODUCE,390977,Commissioning & Investment,Children's & Education Services,103,Supplies and Services,504,Equipment,5023,Revenue,03.GROCERIES & PROVISIONS
24-Jul-2017,7003713,11.00,REDBRIDGE PRODUCE & FLOWERS LTD T/A TOTAL PRODUCE,390977,Commissioning & Investment,Children's & Education Services,103,Supplies and Services,504,Equipment,5023,Revenue,03.GROCERIES & PROVISIONS
24-Jul-2017,7003713,58.14,REDBRIDGE PRODUCE & FLOWERS LTD T/A TOTAL PRODUCE,390977,Commissioning & Investment,Children's & Education Services,103,Supplies and Services,504,Equipment,5023,Revenue,03.GROCERIES & PROVISIONS
24-Jul-2017,7003713,4.58,REDBRIDGE PRODUCE & FLOWERS LTD T/A TOTAL PRODUCE,390977,Commissioning & Investment,Children's & Education Services,103,Supplies and Services,504,Equipment,5023,Revenue,03.GROCERIES & PROVISIONS
24-Jul-2017,7003713,1.78,REDBRIDGE PRODUCE & FLOWERS LTD T/A TOTAL PRODUCE,390977,Commissioning & Investment,Children's & Education Services,103,Supplies and Services,504,Equipment,5023,Revenue,03.GROCERIES & PROVISIONS
24-Jul-2017,7003713,3.10,REDBRIDGE PRODUCE & FLOWERS LTD T/A TOTAL PRODUCE,390977,"Health, Education, Care and Safeguarding",Children's & Education Services,103,Supplies and Services,504,Equipment,5023,Revenue,03.GROCERIES & PROVISIONS
24-Jul-2017,7003713,47.50,REDBRIDGE PRODUCE & FLOWERS LTD T/A TOTAL PRODUCE,390977,Commissioning & Investment,Children's & Education Services,103,Supplies and Services,504,Equipment,5023,Revenue,03.GROCERIES & PROVISIONS
24-Jul-2017,7003713,22.49,REDBRIDGE PRODUCE & FLOWERS LTD T/A TOTAL PRODUCE,390977,Commissioning & Investment,Children's & Education Services,103,Supplies and Services,504,Equipment,5023,Revenue,03.GROCERIES & PROVISIONS
24-Jul-2017,7003713,88.63,REDBRIDGE PRODUCE & FLOWERS LTD T/A TOTAL PRODUCE,390977,Commissioning & Investment,Children's & Education Services,103,Supplies and Services,504,Equipment,5023,Revenue,03.GROCERIES & PROVISIONS
24-Jul-2017,7003713,3.06,REDBRIDGE PRODUCE & FLOWERS LTD T/A TOTAL PRODUCE,390977,Commissioning & Investment,Children's & Education Services,103,Supplies and Services,504,Equipment,5023,Revenue,03.GROCERIES & PROVISIONS
24-Jul-2017,7003713,3.82,REDBRIDGE PRODUCE & FLOWERS LTD T/A TOTAL PRODUCE,390977,Commissioning & Investment,Children's & Education Services,103,Supplies and Services,504,Equipment,5023,Revenue,03.GROCERIES & PROVISIONS
24-Jul-2017,7003713,84.09,REDBRIDGE PRODUCE & FLOWERS LTD T/A TOTAL PRODUCE,390977,Commissioning & Investment,Children's & Education Services,103,Supplies and Services,504,Equipment,5023,Revenue,03.GROCERIES & PROVISIONS
24-Jul-2017,7003713,8.80,REDBRIDGE PRODUCE & FLOWERS LTD T/A TOTAL PRODUCE,390977,Commissioning & Investment,Children's & Education Services,103,Supplies and Services,504,Equipment,5023,Revenue,03.GROCERIES & PROVISIONS
24-Jul-2017,7003713,0.78,REDBRIDGE PRODUCE & FLOWERS LTD T/A TOTAL PRODUCE,390977,Commissioning & Investment,Children's & Education Services,103,Supplies and Services,504,Equipment,5023,Revenue,03.GROCERIES & PROVISIONS
24-Jul-2017,7003713,2.15,REDBRIDGE PRODUCE & FLOWERS LTD T/A TOTAL PRODUCE,390977,Commissioning & Investment,Children's & Education Services,103,Supplies and Services,504,Equipment,5023,Revenue,03.GROCERIES & PROVISIONS
24-Jul-2017,7003713,0.78,REDBRIDGE PRODUCE & FLOWERS LTD T/A TOTAL PRODUCE,390977,Commissioning & Investment,Children's & Education Services,103,Supplies and Services,504,Equipment,5023,Revenue,03.GROCERIES & PROVISIONS
24-Jul-2017,7003713,1.78,REDBRIDGE PRODUCE & FLOWERS LTD T/A TOTAL PRODUCE,390977,Commissioning & Investment,Children's & Education Services,103,Supplies and Services,504,Equipment,5023,Revenue,03.GROCERIES & PROVISIONS
24-Jul-2017,7003713,61.35,REDBRIDGE PRODUCE & FLOWERS LTD T/A TOTAL PRODUCE,390977,Commissioning & Investment,Children's & Education Services,103,Supplies and Services,504,Equipment,5023,Revenue,03.GROCERIES & PROVISIONS
24-Jul-2017,7003713,26.17,REDBRIDGE PRODUCE & FLOWERS LTD T/A TOTAL PRODUCE,390977,Commissioning & Investment,Children's & Education Services,103,Supplies and Services,504,Equipment,5023,Revenue,03.GROCERIES & PROVISIONS
24-Jul-2017,7003713,4.40,REDBRIDGE PRODUCE & FLOWERS LTD T/A TOTAL PRODUCE,390977,Commissioning & Investment,Children's & Education Services,103,Supplies and Services,504,Equipment,5023,Revenue,03.GROCERIES & PROVISIONS
24-Jul-2017,7003713,65.91,REDBRIDGE PRODUCE & FLOWERS LTD T/A TOTAL PRODUCE,390977,Commissioning & Investment,Children's & Education Services,103,Supplies and Services,504,Equipment,5023,Revenue,03.GROCERIES & PROVISIONS
24-Jul-2017,7003713,2.40,REDBRIDGE PRODUCE & FLOWERS LTD T/A TOTAL PRODUCE,390977,Commissioning & Investment,Children's & Education Services,103,Supplies and Services,504,Equipment,5023,Revenue,03.GROCERIES & PROVISIONS
24-Jul-2017,7003713,1.25,REDBRIDGE PRODUCE & FLOWERS LTD T/A TOTAL PRODUCE,390977,Commissioning & Investment,Children's & Education Services,103,Supplies and Services,504,Equipment,5023,Revenue,03.GROCERIES & PROVISIONS
24-Jul-2017,7003713,15.24,REDBRIDGE PRODUCE & FLOWERS LTD T/A TOTAL PRODUCE,390977,Commissioning & Investment,Children's & Education Services,103,Supplies and Services,504,Equipment,5023,Revenue,03.GROCERIES & PROVISIONS
24-Jul-2017,7003713,26.58,REDBRIDGE PRODUCE & FLOWERS LTD T/A TOTAL PRODUCE,390977,Commissioning & Investment,Children's & Education Services,103,Supplies and Services,504,Equipment,5023,Revenue,03.GROCERIES & PROVISIONS
24-Jul-2017,7003713,0.76,REDBRIDGE PRODUCE & FLOWERS LTD T/A TOTAL PRODUCE,390977,Commissioning & Investment,Children's & Education Services,103,Supplies and Services,504,Equipment,5023,Revenue,03.GROCERIES & PROVISIONS
24-Jul-2017,7003713,2.14,REDBRIDGE PRODUCE & FLOWERS LTD T/A TOTAL PRODUCE,390977,Commissioning & Investment,Children's & Education Services,103,Supplies and Services,504,Equipment,5023,Revenue,03.GROCERIES & PROVISIONS
24-Jul-2017,7003713,75.68,REDBRIDGE PRODUCE & FLOWERS LTD T/A TOTAL PRODUCE,390977,Commissioning & Investment,Children's & Education Services,103,Supplies and Services,504,Equipment,5023,Revenue,03.GROCERIES & PROVISIONS
24-Jul-2017,7003713,0.76,REDBRIDGE PRODUCE & FLOWERS LTD T/A TOTAL PRODUCE,390977,Commissioning & Investment,Children's & Education Services,103,Supplies and Services,504,Equipment,5023,Revenue,03.GROCERIES & PROVISIONS
24-Jul-2017,7003713,6.60,REDBRIDGE PRODUCE & FLOWERS LTD T/A TOTAL PRODUCE,390977,Commissioning & Investment,Children's & Education Services,103,Supplies and Services,504,Equipment,5023,Revenue,03.GROCERIES & PROVISIONS
24-Jul-2017,7003713,64.83,REDBRIDGE PRODUCE & FLOWERS LTD T/A TOTAL PRODUCE,390977,Commissioning & Investment,Children's & Education Services,103,Supplies and Services,504,Equipment,5023,Revenue,03.GROCERIES & PROVISIONS
24-Jul-2017,7003713,82.40,REDBRIDGE PRODUCE & FLOWERS LTD T/A TOTAL PRODUCE,390977,Commissioning & Investment,Children's & Education Services,103,Supplies and Services,504,Equipment,5023,Revenue,03.GROCERIES & PROVISIONS
24-Jul-2017,7003713,81.46,REDBRIDGE PRODUCE & FLOWERS LTD T/A TOTAL PRODUCE,390977,"Environment, Housing & Leisure",Adult Social Care,101,Supplies and Services,504,Equipment,5023,Revenue,03.GROCERIES & PROVISIONS
24-Jul-2017,7003713,3.56,REDBRIDGE PRODUCE & FLOWERS LTD T/A TOTAL PRODUCE,390977,Commissioning & Investment,Children's & Education Services,103,Supplies and Services,504,Equipment,5023,Revenue,03.GROCERIES & PROVISIONS
24-Jul-2017,7003713,1.53,REDBRIDGE PRODUCE & FLOWERS LTD T/A TOTAL PRODUCE,390977,Commissioning & Investment,Children's & Education Services,103,Supplies and Services,504,Equipment,5023,Revenue,03.GROCERIES & PROVISIONS
24-Jul-2017,7003713,12.24,REDBRIDGE PRODUCE & FLOWERS LTD T/A TOTAL PRODUCE,390977,Commissioning & Investment,Children's & Education Services,103,Supplies and Services,504,Equipment,5023,Revenue,03.GROCERIES & PROVISIONS
24-Jul-2017,7003713,2.04,REDBRIDGE PRODUCE & FLOWERS LTD T/A TOTAL PRODUCE,390977,Commissioning & Investment,Children's & Education Services,103,Supplies and Services,504,Equipment,5023,Revenue,03.GROCERIES & PROVISIONS
24-Jul-2017,7003713,2.20,REDBRIDGE PRODUCE & FLOWERS LTD T/A TOTAL PRODUCE,390977,Commissioning & Investment,Children's & Education Services,103,Supplies and Services,504,Equipment,5023,Revenue,03.GROCERIES & PROVISIONS
24-Jul-2017,7003713,5.50,REDBRIDGE PRODUCE & FLOWERS LTD T/A TOTAL PRODUCE,390977,Commissioning & Investment,Children's & Education Services,103,Supplies and Services,504,Equipment,5023,Revenue,03.GROCERIES & PROVISIONS
24-Jul-2017,7003713,70.26,REDBRIDGE PRODUCE & FLOWERS LTD T/A TOTAL PRODUCE,390977,Commissioning & Investment,Children's & Education Services,103,Supplies and Services,504,Equipment,5023,Revenue,03.GROCERIES & PROVISIONS
24-Jul-2017,7003713,2.67,REDBRIDGE PRODUCE & FLOWERS LTD T/A TOTAL PRODUCE,390977,Commissioning & Investment,Children's & Education Services,103,Supplies and Services,504,Equipment,5023,Revenue,03.GROCERIES & PROVISIONS
24-Jul-2017,7003713,8.80,REDBRIDGE PRODUCE & FLOWERS LTD T/A TOTAL PRODUCE,390977,"Health, Education, Care and Safeguarding",Children's & Education Services,103,Supplies and Services,504,Equipment,5023,Revenue,03.GROCERIES & PROVISIONS
24-Jul-2017,7003713,3.18,REDBRIDGE PRODUCE & FLOWERS LTD T/A TOTAL PRODUCE,390977,Commissioning & Investment,Children's & Education Services,103,Supplies and Services,504,Equipment,5023,Revenue,03.GROCERIES & PROVISIONS
24-Jul-2017,7003713,63.24,REDBRIDGE PRODUCE & FLOWERS LTD T/A TOTAL PRODUCE,390977,"Environment, Housing & Leisure",Cultural & Related Services,104,Supplies and Services,504,Equipment,5023,Revenue,03.GROCERIES & PROVISIONS
24-Jul-2017,7003713,6.12,REDBRIDGE PRODUCE & FLOWERS LTD T/A TOTAL PRODUCE,390977,Commissioning & Investment,Children's & Education Services,103,Supplies and Services,504,Equipment,5023,Revenue,03.GROCERIES & PROVISIONS
24-Jul-2017,7003713,23.10,REDBRIDGE PRODUCE & FLOWERS LTD T/A TOTAL PRODUCE,390977,Commissioning & Investment,Children's & Education Services,103,Supplies and Services,504,Equipment,5023,Revenue,03.GROCERIES & PROVISIONS
24-Jul-2017,7003713,63.77,REDBRIDGE PRODUCE & FLOWERS LTD T/A TOTAL PRODUCE,390977,Commissioning & Investment,Children's & Education Services,103,Supplies and Services,504,Equipment,5023,Revenue,03.GROCERIES & PROVISIONS
24-Jul-2017,7003713,38.51,REDBRIDGE PRODUCE & FLOWERS LTD T/A TOTAL PRODUCE,390977,Commissioning & Investment,Children's & Education Services,103,Supplies and Services,504,Equipment,5023,Revenue,03.GROCERIES & PROVISIONS
24-Jul-2017,7003713,43.33,REDBRIDGE PRODUCE & FLOWERS LTD T/A TOTAL PRODUCE,390977,Commissioning & Investment,Children's & Education Services,103,Supplies and Services,504,Equipment,5023,Revenue,03.GROCERIES & PROVISIONS
24-Jul-2017,7003713,6.60,REDBRIDGE PRODUCE & FLOWERS LTD T/A TOTAL PRODUCE,390977,Commissioning & Investment,Children's & Education Services,103,Supplies and Services,504,Equipment,5023,Revenue,03.GROCERIES & PROVISIONS
24-Jul-2017,7003713,3.12,REDBRIDGE PRODUCE & FLOWERS LTD T/A TOTAL PRODUCE,390977,Commissioning & Investment,Children's & Education Services,103,Supplies and Services,504,Equipment,5023,Revenue,03.GROCERIES & PROVISIONS
24-Jul-2017,7003713,2.20,REDBRIDGE PRODUCE & FLOWERS LTD T/A TOTAL PRODUCE,390977,Commissioning & Investment,Children's & Education Services,103,Supplies and Services,504,Equipment,5023,Revenue,03.GROCERIES & PROVISIONS
24-Jul-2017,7003713,31.56,REDBRIDGE PRODUCE & FLOWERS LTD T/A TOTAL PRODUCE,390977,Commissioning & Investment,Children's & Education Services,103,Supplies and Services,504,Equipment,5023,Revenue,03.GROCERIES & PROVISIONS
24-Jul-2017,7003713,55.64,REDBRIDGE PRODUCE & FLOWERS LTD T/A TOTAL PRODUCE,390977,Commissioning & Investment,Children's & Education Services,103,Supplies and Services,504,Equipment,5023,Revenue,03.GROCERIES & PROVISIONS
24-Jul-2017,7003713,14.94,REDBRIDGE PRODUCE & FLOWERS LTD T/A TOTAL PRODUCE,390977,Commissioning & Investment,Children's & Education Services,103,Supplies and Services,504,Equipment,5023,Revenue,03.GROCERIES & PROVISIONS
24-Jul-2017,7003713,26.33,REDBRIDGE PRODUCE & FLOWERS LTD T/A TOTAL PRODUCE,390977,Commissioning & Investment,Children's & Education Services,103,Supplies and Services,504,Equipment,5023,Revenue,03.GROCERIES & PROVISIONS
24-Jul-2017,7003713,25.36,REDBRIDGE PRODUCE & FLOWERS LTD T/A TOTAL PRODUCE,390977,Commissioning & Investment,Children's & Education Services,103,Supplies and Services,504,Equipment,5023,Revenue,03.GROCERIES & PROVISIONS
24-Jul-2017,7003713,0.95,REDBRIDGE PRODUCE & FLOWERS LTD T/A TOTAL PRODUCE,390977,Commissioning & Investment,Children's & Education Services,103,Supplies and Services,504,Equipment,5023,Revenue,03.GROCERIES & PROVISIONS
24-Jul-2017,7003713,53.03,REDBRIDGE PRODUCE & FLOWERS LTD T/A TOTAL PRODUCE,390977,Commissioning & Investment,Children's & Education Services,103,Supplies and Services,504,Equipment,5023,Revenue,03.GROCERIES & PROVISIONS
24-Jul-2017,7003713,30.23,REDBRIDGE PRODUCE & FLOWERS LTD T/A TOTAL PRODUCE,390977,Commissioning & Investment,Children's & Education Services,103,Supplies and Services,504,Equipment,5023,Revenue,03.GROCERIES & PROVISIONS
24-Jul-2017,7003713,86.78,REDBRIDGE PRODUCE & FLOWERS LTD T/A TOTAL PRODUCE,390977,Commissioning & Investment,Children's & Education Services,103,Supplies and Services,504,Equipment,5023,Revenue,03.GROCERIES & PROVISIONS
24-Jul-2017,7003713,148.36,REDBRIDGE PRODUCE & FLOWERS LTD T/A TOTAL PRODUCE,390977,Commissioning & Investment,Children's & Education Services,103,Supplies and Services,504,Equipment,5023,Revenue,03.GROCERIES & PROVISIONS
24-Jul-2017,7003713,-8.29,REDBRIDGE PRODUCE & FLOWERS LTD T/A TOTAL PRODUCE,390977,"Environment, Housing & Leisure",Cultural & Related Services,104,Supplies and Services,504,Equipment,5023,Revenue,03.GROCERIES & PROVISIONS
24-Jul-2017,7003713,18.10,REDBRIDGE PRODUCE & FLOWERS LTD T/A TOTAL PRODUCE,390977,Commissioning & Investment,Children's & Education Services,103,Supplies and Services,504,Equipment,5023,Revenue,03.GROCERIES & PROVISIONS
24-Jul-2017,7003713,60.03,REDBRIDGE PRODUCE & FLOWERS LTD T/A TOTAL PRODUCE,390977,Commissioning & Investment,Children's & Education Services,103,Supplies and Services,504,Equipment,5023,Revenue,03.GROCERIES & PROVISIONS
24-Jul-2017,7003713,2.15,REDBRIDGE PRODUCE & FLOWERS LTD T/A TOTAL PRODUCE,390977,Commissioning & Investment,Children's & Education Services,103,Supplies and Services,504,Equipment,5023,Revenue,03.GROCERIES & PROVISIONS
24-Jul-2017,7003713,12.24,REDBRIDGE PRODUCE & FLOWERS LTD T/A TOTAL PRODUCE,390977,Commissioning & Investment,Children's & Education Services,103,Supplies and Services,504,Equipment,5023,Revenue,03.GROCERIES & PROVISIONS
24-Jul-2017,7003713,8.70,REDBRIDGE PRODUCE & FLOWERS LTD T/A TOTAL PRODUCE,390977,"Health, Education, Care and Safeguarding",Children's & Education Services,103,Supplies and Services,504,Equipment,5023,Revenue,03.GROCERIES & PROVISIONS
24-Jul-2017,7003713,-1.63,REDBRIDGE PRODUCE & FLOWERS LTD T/A TOTAL PRODUCE,390977,"Environment, Housing & Leisure",Adult Social Care,101,Supplies and Services,504,Equipment,5023,Revenue,03.GROCERIES & PROVISIONS
24-Jul-2017,7003713,1.08,REDBRIDGE PRODUCE & FLOWERS LTD T/A TOTAL PRODUCE,390977,Commissioning & Investment,Children's & Education Services,103,Supplies and Services,504,Equipment,5023,Revenue,03.GROCERIES & PROVISIONS
24-Jul-2017,7003713,12.24,REDBRIDGE PRODUCE & FLOWERS LTD T/A TOTAL PRODUCE,390977,Commissioning & Investment,Children's & Education Services,103,Supplies and Services,504,Equipment,5023,Revenue,03.GROCERIES & PROVISIONS
24-Jul-2017,7003713,11.00,REDBRIDGE PRODUCE & FLOWERS LTD T/A TOTAL PRODUCE,390977,Commissioning & Investment,Children's & Education Services,103,Supplies and Services,504,Equipment,5023,Revenue,03.GROCERIES & PROVISIONS
24-Jul-2017,7003713,1.17,REDBRIDGE PRODUCE & FLOWERS LTD T/A TOTAL PRODUCE,390977,Commissioning & Investment,Children's & Education Services,103,Supplies and Services,504,Equipment,5023,Revenue,03.GROCERIES & PROVISIONS
24-Jul-2017,7003713,51.41,REDBRIDGE PRODUCE & FLOWERS LTD T/A TOTAL PRODUCE,390977,Commissioning & Investment,Children's & Education Services,103,Supplies and Services,504,Equipment,5023,Revenue,03.GROCERIES & PROVISIONS
24-Jul-2017,7003713,93.85,REDBRIDGE PRODUCE & FLOWERS LTD T/A TOTAL PRODUCE,390977,Commissioning & Investment,Children's & Education Services,103,Supplies and Services,504,Equipment,5023,Revenue,03.GROCERIES & PROVISIONS
24-Jul-2017,7003713,5.77,REDBRIDGE PRODUCE & FLOWERS LTD T/A TOTAL PRODUCE,390977,"Environment, Housing & Leisure",Cultural & Related Services,104,Supplies and Services,504,Equipment,5023,Revenue,03.GROCERIES & PROVISIONS
24-Jul-2017,7003713,4.48,REDBRIDGE PRODUCE & FLOWERS LTD T/A TOTAL PRODUCE,390977,Commissioning & Investment,Children's & Education Services,103,Supplies and Services,504,Equipment,5023,Revenue,03.GROCERIES & PROVISIONS
24-Jul-2017,7003713,2.29,REDBRIDGE PRODUCE & FLOWERS LTD T/A TOTAL PRODUCE,390977,Commissioning & Investment,Children's & Education Services,103,Supplies and Services,504,Equipment,5023,Revenue,03.GROCERIES & PROVISIONS
24-Jul-2017,7003713,24.48,REDBRIDGE PRODUCE & FLOWERS LTD T/A TOTAL PRODUCE,390977,Commissioning & Investment,Children's & Education Services,103,Supplies and Services,504,Equipment,5023,Revenue,03.GROCERIES & PROVISIONS
24-Jul-2017,7003713,1.53,REDBRIDGE PRODUCE & FLOWERS LTD T/A TOTAL PRODUCE,390977,Commissioning & Investment,Children's & Education Services,103,Supplies and Services,504,Equipment,5023,Revenue,03.GROCERIES & PROVISIONS
24-Jul-2017,7003713,2.29,REDBRIDGE PRODUCE & FLOWERS LTD T/A TOTAL PRODUCE,390977,Commissioning & Investment,Children's & Education Services,103,Supplies and Services,504,Equipment,5023,Revenue,03.GROCERIES & PROVISIONS
24-Jul-2017,7003713,4.58,REDBRIDGE PRODUCE & FLOWERS LTD T/A TOTAL PRODUCE,390977,Commissioning & Investment,Children's & Education Services,103,Supplies and Services,504,Equipment,5023,Revenue,03.GROCERIES & PROVISIONS
24-Jul-2017,7003713,-2.14,REDBRIDGE PRODUCE & FLOWERS LTD T/A TOTAL PRODUCE,390977,Commissioning & Investment,Children's & Education Services,103,Supplies and Services,504,Equipment,5023,Revenue,03.GROCERIES & PROVISIONS
24-Jul-2017,7003713,0.89,REDBRIDGE PRODUCE & FLOWERS LTD T/A TOTAL PRODUCE,390977,Commissioning & Investment,Children's & Education Services,103,Supplies and Services,504,Equipment,5023,Revenue,03.GROCERIES & PROVISIONS
24-Jul-2017,7003713,4.40,REDBRIDGE PRODUCE & FLOWERS LTD T/A TOTAL PRODUCE,390977,Commissioning & Investment,Children's & Education Services,103,Supplies and Services,504,Equipment,5023,Revenue,03.GROCERIES & PROVISIONS
24-Jul-2017,7003713,3.14,REDBRIDGE PRODUCE & FLOWERS LTD T/A TOTAL PRODUCE,390977,"Environment, Housing & Leisure",Cultural & Related Services,104,Supplies and Services,504,Equipment,5023,Revenue,03.GROCERIES & PROVISIONS
24-Jul-2017,7003713,35.12,REDBRIDGE PRODUCE & FLOWERS LTD T/A TOTAL PRODUCE,390977,Commissioning & Investment,Children's & Education Services,103,Supplies and Services,504,Equipment,5023,Revenue,03.GROCERIES & PROVISIONS
24-Jul-2017,7003713,159.80,REDBRIDGE PRODUCE & FLOWERS LTD T/A TOTAL PRODUCE,390977,Commissioning & Investment,Children's & Education Services,103,Supplies and Services,504,Equipment,5023,Revenue,03.GROCERIES & PROVISIONS
24-Jul-2017,7003713,43.37,REDBRIDGE PRODUCE & FLOWERS LTD T/A TOTAL PRODUCE,390977,Commissioning & Investment,Children's & Education Services,103,Supplies and Services,504,Equipment,5023,Revenue,03.GROCERIES & PROVISIONS
24-Jul-2017,7003713,38.07,REDBRIDGE PRODUCE & FLOWERS LTD T/A TOTAL PRODUCE,390977,"Health, Education, Care and Safeguarding",Children's & Education Services,103,Supplies and Services,504,Equipment,5023,Revenue,03.GROCERIES & PROVISIONS
24-Jul-2017,7003713,48.44,REDBRIDGE PRODUCE & FLOWERS LTD T/A TOTAL PRODUCE,390977,Commissioning & Investment,Children's & Education Services,103,Supplies and Services,504,Equipment,5023,Revenue,03.GROCERIES & PROVISIONS
24-Jul-2017,7003713,2.14,REDBRIDGE PRODUCE & FLOWERS LTD T/A TOTAL PRODUCE,390977,Commissioning & Investment,Children's & Education Services,103,Supplies and Services,504,Equipment,5023,Revenue,03.GROCERIES & PROVISIONS
24-Jul-2017,7003713,2.20,REDBRIDGE PRODUCE & FLOWERS LTD T/A TOTAL PRODUCE,390977,Commissioning & Investment,Children's & Education Services,103,Supplies and Services,504,Equipment,5023,Revenue,03.GROCERIES & PROVISIONS
24-Jul-2017,7003713,3.39,REDBRIDGE PRODUCE & FLOWERS LTD T/A TOTAL PRODUCE,390977,Commissioning & Investment,Children's & Education Services,103,Supplies and Services,504,Equipment,5023,Revenue,03.GROCERIES & PROVISIONS
24-Jul-2017,7003713,11.00,REDBRIDGE PRODUCE & FLOWERS LTD T/A TOTAL PRODUCE,390977,Commissioning & Investment,Children's & Education Services,103,Supplies and Services,504,Equipment,5023,Revenue,03.GROCERIES & PROVISIONS
24-Jul-2017,7003713,59.64,REDBRIDGE PRODUCE & FLOWERS LTD T/A TOTAL PRODUCE,390977,Commissioning & Investment,Children's & Education Services,103,Supplies and Services,504,Equipment,5023,Revenue,03.GROCERIES & PROVISIONS
24-Jul-2017,7003713,2.99,REDBRIDGE PRODUCE & FLOWERS LTD T/A TOTAL PRODUCE,390977,"Environment, Housing & Leisure",Adult Social Care,101,Supplies and Services,504,Equipment,5023,Revenue,03.GROCERIES & PROVISIONS
24-Jul-2017,7003713,0.76,REDBRIDGE PRODUCE & FLOWERS LTD T/A TOTAL PRODUCE,390977,Commissioning & Investment,Children's & Education Services,103,Supplies and Services,504,Equipment,5023,Revenue,03.GROCERIES & PROVISIONS
24-Jul-2017,7003713,11.83,REDBRIDGE PRODUCE & FLOWERS LTD T/A TOTAL PRODUCE,390977,Commissioning & Investment,Children's & Education Services,103,Supplies and Services,504,Equipment,5023,Revenue,03.GROCERIES & PROVISIONS
24-Jul-2017,7003713,2.14,REDBRIDGE PRODUCE & FLOWERS LTD T/A TOTAL PRODUCE,390977,Commissioning & Investment,Children's & Education Services,103,Supplies and Services,504,Equipment,5023,Revenue,03.GROCERIES & PROVISIONS
24-Jul-2017,7003713,2.16,REDBRIDGE PRODUCE & FLOWERS LTD T/A TOTAL PRODUCE,390977,Commissioning & Investment,Children's & Education Services,103,Supplies and Services,504,Equipment,5023,Revenue,03.GROCERIES & PROVISIONS
24-Jul-2017,7003713,76.54,REDBRIDGE PRODUCE & FLOWERS LTD T/A TOTAL PRODUCE,390977,Commissioning & Investment,Children's & Education Services,103,Supplies and Services,504,Equipment,5023,Revenue,03.GROCERIES & PROVISIONS
24-Jul-2017,7003713,28.76,REDBRIDGE PRODUCE & FLOWERS LTD T/A TOTAL PRODUCE,390977,Commissioning & Investment,Children's & Education Services,103,Supplies and Services,504,Equipment,5023,Revenue,03.GROCERIES & PROVISIONS
24-Jul-2017,7003713,18.99,REDBRIDGE PRODUCE & FLOWERS LTD T/A TOTAL PRODUCE,390977,"Environment, Housing & Leisure",Adult Social Care,101,Supplies and Services,504,Equipment,5023,Revenue,03.GROCERIES & PROVISIONS
24-Jul-2017,7003713,11.00,REDBRIDGE PRODUCE & FLOWERS LTD T/A TOTAL PRODUCE,390977,Commissioning & Investment,Children's & Education Services,103,Supplies and Services,504,Equipment,5023,Revenue,03.GROCERIES & PROVISIONS
24-Jul-2017,7003713,0.73,REDBRIDGE PRODUCE & FLOWERS LTD T/A TOTAL PRODUCE,390977,Commissioning & Investment,Children's & Education Services,103,Supplies and Services,504,Equipment,5023,Revenue,03.GROCERIES & PROVISIONS
24-Jul-2017,7003713,124.71,REDBRIDGE PRODUCE & FLOWERS LTD T/A TOTAL PRODUCE,390977,Commissioning & Investment,Children's & Education Services,103,Supplies and Services,504,Equipment,5023,Revenue,03.GROCERIES & PROVISIONS
24-Jul-2017,7003713,6.60,REDBRIDGE PRODUCE & FLOWERS LTD T/A TOTAL PRODUCE,390977,Commissioning & Investment,Children's & Education Services,103,Supplies and Services,504,Equipment,5023,Revenue,03.GROCERIES & PROVISIONS
24-Jul-2017,7003713,21.66,REDBRIDGE PRODUCE & FLOWERS LTD T/A TOTAL PRODUCE,390977,Commissioning & Investment,Children's & Education Services,103,Supplies and Services,504,Equipment,5023,Revenue,03.GROCERIES & PROVISIONS
24-Jul-2017,7003713,4.40,REDBRIDGE PRODUCE & FLOWERS LTD T/A TOTAL PRODUCE,390977,Commissioning & Investment,Children's & Education Services,103,Supplies and Services,504,Equipment,5023,Revenue,03.GROCERIES & PROVISIONS
24-Jul-2017,7003713,16.24,REDBRIDGE PRODUCE & FLOWERS LTD T/A TOTAL PRODUCE,390977,Commissioning & Investment,Children's & Education Services,103,Supplies and Services,504,Equipment,5023,Revenue,03.GROCERIES & PROVISIONS
24-Jul-2017,7003713,9.71,REDBRIDGE PRODUCE & FLOWERS LTD T/A TOTAL PRODUCE,390977,Commissioning & Investment,Children's & Education Services,103,Supplies and Services,504,Equipment,5023,Revenue,03.GROCERIES & PROVISIONS
24-Jul-2017,7003713,26.66,REDBRIDGE PRODUCE & FLOWERS LTD T/A TOTAL PRODUCE,390977,Commissioning & Investment,Children's & Education Services,103,Supplies and Services,504,Equipment,5023,Revenue,03.GROCERIES & PROVISIONS
24-Jul-2017,7003713,2.10,REDBRIDGE PRODUCE & FLOWERS LTD T/A TOTAL PRODUCE,390977,Commissioning & Investment,Children's & Education Services,103,Supplies and Services,504,Equipment,5023,Revenue,03.GROCERIES & PROVISIONS
24-Jul-2017,7003713,6.54,REDBRIDGE PRODUCE & FLOWERS LTD T/A TOTAL PRODUCE,390977,"Environment, Housing & Leisure",Cultural & Related Services,104,Supplies and Services,504,Equipment,5023,Revenue,03.GROCERIES & PROVISIONS
24-Jul-2017,7003713,1.62,REDBRIDGE PRODUCE & FLOWERS LTD T/A TOTAL PRODUCE,390977,Commissioning & Investment,Children's & Education Services,103,Supplies and Services,504,Equipment,5023,Revenue,03.GROCERIES & PROVISIONS
24-Jul-2017,7003713,-0.93,REDBRIDGE PRODUCE & FLOWERS LTD T/A TOTAL PRODUCE,390977,Commissioning & Investment,Children's & Education Services,103,Supplies and Services,504,Equipment,5023,Revenue,03.GROCERIES & PROVISIONS
24-Jul-2017,7003713,68.85,REDBRIDGE PRODUCE & FLOWERS LTD T/A TOTAL PRODUCE,390977,Commissioning & Investment,Children's & Education Services,103,Supplies and Services,504,Equipment,5023,Revenue,03.GROCERIES & PROVISIONS
24-Jul-2017,7003713,3.18,REDBRIDGE PRODUCE & FLOWERS LTD T/A TOTAL PRODUCE,390977,Commissioning & Investment,Children's & Education Services,103,Supplies and Services,504,Equipment,5023,Revenue,03.GROCERIES & PROVISIONS
24-Jul-2017,7003713,4.40,REDBRIDGE PRODUCE & FLOWERS LTD T/A TOTAL PRODUCE,390977,Commissioning & Investment,Children's & Education Services,103,Supplies and Services,504,Equipment,5023,Revenue,03.GROCERIES & PROVISIONS
24-Jul-2017,7003713,15.95,REDBRIDGE PRODUCE & FLOWERS LTD T/A TOTAL PRODUCE,390977,Commissioning & Investment,Children's & Education Services,103,Supplies and Services,504,Equipment,5023,Revenue,03.GROCERIES & PROVISIONS
24-Jul-2017,7003713,1.25,REDBRIDGE PRODUCE & FLOWERS LTD T/A TOTAL PRODUCE,390977,Commissioning & Investment,Children's & Education Services,103,Supplies and Services,504,Equipment,5023,Revenue,03.GROCERIES & PROVISIONS
24-Jul-2017,7003713,1.56,REDBRIDGE PRODUCE & FLOWERS LTD T/A TOTAL PRODUCE,390977,Commissioning & Investment,Children's & Education Services,103,Supplies and Services,504,Equipment,5023,Revenue,03.GROCERIES & PROVISIONS
24-Jul-2017,7003713,5.77,REDBRIDGE PRODUCE & FLOWERS LTD T/A TOTAL PRODUCE,390977,"Environment, Housing & Leisure",Cultural & Related Services,104,Supplies and Services,504,Equipment,5023,Revenue,03.GROCERIES & PROVISIONS
24-Jul-2017,7003713,12.24,REDBRIDGE PRODUCE & FLOWERS LTD T/A TOTAL PRODUCE,390977,Commissioning & Investment,Children's & Education Services,103,Supplies and Services,504,Equipment,5023,Revenue,03.GROCERIES & PROVISIONS
24-Jul-2017,7003713,10.20,REDBRIDGE PRODUCE & FLOWERS LTD T/A TOTAL PRODUCE,390977,Commissioning & Investment,Children's & Education Services,103,Supplies and Services,504,Equipment,5023,Revenue,03.GROCERIES & PROVISIONS
24-Jul-2017,7003713,48.68,REDBRIDGE PRODUCE & FLOWERS LTD T/A TOTAL PRODUCE,390977,Commissioning & Investment,Children's & Education Services,103,Supplies and Services,504,Equipment,5023,Revenue,03.GROCERIES & PROVISIONS
24-Jul-2017,7003713,3.87,REDBRIDGE PRODUCE & FLOWERS LTD T/A TOTAL PRODUCE,390977,"Environment, Housing & Leisure",Cultural & Related Services,104,Supplies and Services,504,Equipment,5023,Revenue,03.GROCERIES & PROVISIONS
24-Jul-2017,7003713,0.49,REDBRIDGE PRODUCE & FLOWERS LTD T/A TOTAL PRODUCE,390977,Commissioning & Investment,Children's & Education Services,103,Supplies and Services,504,Equipment,5023,Revenue,03.GROCERIES & PROVISIONS
24-Jul-2017,7003713,72.76,REDBRIDGE PRODUCE & FLOWERS LTD T/A TOTAL PRODUCE,390977,Commissioning & Investment,Children's & Education Services,103,Supplies and Services,504,Equipment,5023,Revenue,03.GROCERIES & PROVISIONS
24-Jul-2017,7003713,1.16,REDBRIDGE PRODUCE & FLOWERS LTD T/A TOTAL PRODUCE,390977,Commissioning & Investment,Children's & Education Services,103,Supplies and Services,504,Equipment,5023,Revenue,03.GROCERIES & PROVISIONS
24-Jul-2017,7003713,0.78,REDBRIDGE PRODUCE & FLOWERS LTD T/A TOTAL PRODUCE,390977,Commissioning & Investment,Children's & Education Services,103,Supplies and Services,504,Equipment,5023,Revenue,03.GROCERIES & PROVISIONS
24-Jul-2017,7003713,1.30,REDBRIDGE PRODUCE & FLOWERS LTD T/A TOTAL PRODUCE,390977,Commissioning & Investment,Children's & Education Services,103,Supplies and Services,504,Equipment,5023,Revenue,03.GROCERIES & PROVISIONS
24-Jul-2017,7003713,67.46,REDBRIDGE PRODUCE & FLOWERS LTD T/A TOTAL PRODUCE,390977,Commissioning & Investment,Children's & Education Services,103,Supplies and Services,504,Equipment,5023,Revenue,03.GROCERIES & PROVISIONS
24-Jul-2017,7003713,2.14,REDBRIDGE PRODUCE & FLOWERS LTD T/A TOTAL PRODUCE,390977,Commissioning & Investment,Children's & Education Services,103,Supplies and Services,504,Equipment,5023,Revenue,03.GROCERIES & PROVISIONS
24-Jul-2017,7003713,-0.73,REDBRIDGE PRODUCE & FLOWERS LTD T/A TOTAL PRODUCE,390977,Commissioning & Investment,Children's & Education Services,103,Supplies and Services,504,Equipment,5023,Revenue,03.GROCERIES & PROVISIONS
24-Jul-2017,7003713,60.59,REDBRIDGE PRODUCE & FLOWERS LTD T/A TOTAL PRODUCE,390977,"Environment, Housing & Leisure",Cultural & Related Services,104,Supplies and Services,504,Equipment,5023,Revenue,03.GROCERIES & PROVISIONS
24-Jul-2017,7003713,147.41,REDBRIDGE PRODUCE & FLOWERS LTD T/A TOTAL PRODUCE,390977,Commissioning & Investment,Children's & Education Services,103,Supplies and Services,504,Equipment,5023,Revenue,03.GROCERIES & PROVISIONS
24-Jul-2017,7003713,0.89,REDBRIDGE PRODUCE & FLOWERS LTD T/A TOTAL PRODUCE,390977,Commissioning & Investment,Children's & Education Services,103,Supplies and Services,504,Equipment,5023,Revenue,03.GROCERIES & PROVISIONS
24-Jul-2017,7003713,36.72,REDBRIDGE PRODUCE & FLOWERS LTD T/A TOTAL PRODUCE,390977,Commissioning & Investment,Children's & Education Services,103,Supplies and Services,504,Equipment,5023,Revenue,03.GROCERIES & PROVISIONS
24-Jul-2017,7003713,3.12,REDBRIDGE PRODUCE & FLOWERS LTD T/A TOTAL PRODUCE,390977,Commissioning & Investment,Children's & Education Services,103,Supplies and Services,504,Equipment,5023,Revenue,03.GROCERIES & PROVISIONS
24-Jul-2017,7003713,2.20,REDBRIDGE PRODUCE & FLOWERS LTD T/A TOTAL PRODUCE,390977,Commissioning & Investment,Children's & Education Services,103,Supplies and Services,504,Equipment,5023,Revenue,03.GROCERIES & PROVISIONS
24-Jul-2017,7003713,0.76,REDBRIDGE PRODUCE & FLOWERS LTD T/A TOTAL PRODUCE,390977,Commissioning & Investment,Children's & Education Services,103,Supplies and Services,504,Equipment,5023,Revenue,03.GROCERIES & PROVISIONS
24-Jul-2017,7003713,55.36,REDBRIDGE PRODUCE & FLOWERS LTD T/A TOTAL PRODUCE,390977,Commissioning & Investment,Children's & Education Services,103,Supplies and Services,504,Equipment,5023,Revenue,03.GROCERIES & PROVISIONS
24-Jul-2017,7003713,4.40,REDBRIDGE PRODUCE & FLOWERS LTD T/A TOTAL PRODUCE,390977,Commissioning & Investment,Children's & Education Services,103,Supplies and Services,504,Equipment,5023,Revenue,03.GROCERIES & PROVISIONS
24-Jul-2017,7003713,77.74,REDBRIDGE PRODUCE & FLOWERS LTD T/A TOTAL PRODUCE,390977,Commissioning & Investment,Children's & Education Services,103,Supplies and Services,504,Equipment,5023,Revenue,03.GROCERIES & PROVISIONS
24-Jul-2017,7003713,2.20,REDBRIDGE PRODUCE & FLOWERS LTD T/A TOTAL PRODUCE,390977,Commissioning & Investment,Children's & Education Services,103,Supplies and Services,504,Equipment,5023,Revenue,03.GROCERIES & PROVISIONS
24-Jul-2017,7003713,86.75,REDBRIDGE PRODUCE & FLOWERS LTD T/A TOTAL PRODUCE,390977,Commissioning & Investment,Children's & Education Services,103,Supplies and Services,504,Equipment,5023,Revenue,03.GROCERIES & PROVISIONS
24-Jul-2017,7003713,0.78,REDBRIDGE PRODUCE & FLOWERS LTD T/A TOTAL PRODUCE,390977,Commissioning & Investment,Children's & Education Services,103,Supplies and Services,504,Equipment,5023,Revenue,03.GROCERIES & PROVISIONS
24-Jul-2017,7003713,6.60,REDBRIDGE PRODUCE & FLOWERS LTD T/A TOTAL PRODUCE,390977,Commissioning & Investment,Children's & Education Services,103,Supplies and Services,504,Equipment,5023,Revenue,03.GROCERIES & PROVISIONS
24-Jul-2017,7003713,41.46,REDBRIDGE PRODUCE & FLOWERS LTD T/A TOTAL PRODUCE,390977,Commissioning & Investment,Children's & Education Services,103,Supplies and Services,504,Equipment,5023,Revenue,03.GROCERIES & PROVISIONS
24-Jul-2017,7003713,4.80,REDBRIDGE PRODUCE & FLOWERS LTD T/A TOTAL PRODUCE,390977,Commissioning & Investment,Children's & Education Services,103,Supplies and Services,504,Equipment,5023,Revenue,03.GROCERIES & PROVISIONS
24-Jul-2017,7003713,1.15,REDBRIDGE PRODUCE & FLOWERS LTD T/A TOTAL PRODUCE,390977,Commissioning & Investment,Children's & Education Services,103,Supplies and Services,504,Equipment,5023,Revenue,03.GROCERIES & PROVISIONS
24-Jul-2017,7003713,57.49,REDBRIDGE PRODUCE & FLOWERS LTD T/A TOTAL PRODUCE,390977,Commissioning & Investment,Children's & Education Services,103,Supplies and Services,504,Equipment,5023,Revenue,03.GROCERIES & PROVISIONS
24-Jul-2017,7003713,44.43,REDBRIDGE PRODUCE & FLOWERS LTD T/A TOTAL PRODUCE,390977,Commissioning & Investment,Children's & Education Services,103,Supplies and Services,504,Equipment,5023,Revenue,03.GROCERIES & PROVISIONS
24-Jul-2017,7003713,1.04,REDBRIDGE PRODUCE & FLOWERS LTD T/A TOTAL PRODUCE,390977,Commissioning & Investment,Children's & Education Services,103,Supplies and Services,504,Equipment,5023,Revenue,03.GROCERIES & PROVISIONS
24-Jul-2017,7003713,0.73,REDBRIDGE PRODUCE & FLOWERS LTD T/A TOTAL PRODUCE,390977,Commissioning & Investment,Children's & Education Services,103,Supplies and Services,504,Equipment,5023,Revenue,03.GROCERIES & PROVISIONS
24-Jul-2017,7003713,6.60,REDBRIDGE PRODUCE & FLOWERS LTD T/A TOTAL PRODUCE,390977,Commissioning & Investment,Children's & Education Services,103,Supplies and Services,504,Equipment,5023,Revenue,03.GROCERIES & PROVISIONS
24-Jul-2017,7003713,77.44,REDBRIDGE PRODUCE & FLOWERS LTD T/A TOTAL PRODUCE,390977,Commissioning & Investment,Children's & Education Services,103,Supplies and Services,504,Equipment,5023,Revenue,03.GROCERIES & PROVISIONS
24-Jul-2017,7003713,10.92,REDBRIDGE PRODUCE & FLOWERS LTD T/A TOTAL PRODUCE,390977,Commissioning & Investment,Children's & Education Services,103,Supplies and Services,504,Equipment,5023,Revenue,03.GROCERIES & PROVISIONS
24-Jul-2017,7003713,120.15,REDBRIDGE PRODUCE & FLOWERS LTD T/A TOTAL PRODUCE,390977,Commissioning & Investment,Children's & Education Services,103,Supplies and Services,504,Equipment,5023,Revenue,03.GROCERIES & PROVISIONS
24-Jul-2017,7003713,1.56,REDBRIDGE PRODUCE & FLOWERS LTD T/A TOTAL PRODUCE,390977,Commissioning & Investment,Children's & Education Services,103,Supplies and Services,504,Equipment,5023,Revenue,03.GROCERIES & PROVISIONS
24-Jul-2017,7003713,4.40,REDBRIDGE PRODUCE & FLOWERS LTD T/A TOTAL PRODUCE,390977,Commissioning & Investment,Children's & Education Services,103,Supplies and Services,504,Equipment,5023,Revenue,03.GROCERIES & PROVISIONS
24-Jul-2017,7003713,11.54,REDBRIDGE PRODUCE & FLOWERS LTD T/A TOTAL PRODUCE,390977,"Environment, Housing & Leisure",Adult Social Care,101,Supplies and Services,504,Equipment,5023,Revenue,03.GROCERIES & PROVISIONS
24-Jul-2017,7003713,13.08,REDBRIDGE PRODUCE & FLOWERS LTD T/A TOTAL PRODUCE,390977,"Environment, Housing & Leisure",Adult Social Care,101,Supplies and Services,504,Equipment,5023,Revenue,03.GROCERIES & PROVISIONS
24-Jul-2017,7003713,0.78,REDBRIDGE PRODUCE & FLOWERS LTD T/A TOTAL PRODUCE,390977,Commissioning & Investment,Children's & Education Services,103,Supplies and Services,504,Equipment,5023,Revenue,03.GROCERIES & PROVISIONS
24-Jul-2017,7003713,2.10,REDBRIDGE PRODUCE & FLOWERS LTD T/A TOTAL PRODUCE,390977,Commissioning & Investment,Children's & Education Services,103,Supplies and Services,504,Equipment,5023,Revenue,03.GROCERIES & PROVISIONS
24-Jul-2017,7003713,0.98,REDBRIDGE PRODUCE & FLOWERS LTD T/A TOTAL PRODUCE,390977,Commissioning & Investment,Children's & Education Services,103,Supplies and Services,504,Equipment,5023,Revenue,03.GROCERIES & PROVISIONS
24-Jul-2017,7003713,0.78,REDBRIDGE PRODUCE & FLOWERS LTD T/A TOTAL PRODUCE,390977,Commissioning & Investment,Children's & Education Services,103,Supplies and Services,504,Equipment,5023,Revenue,03.GROCERIES & PROVISIONS
24-Jul-2017,7003713,4.40,REDBRIDGE PRODUCE & FLOWERS LTD T/A TOTAL PRODUCE,390977,Commissioning & Investment,Children's & Education Services,103,Supplies and Services,504,Equipment,5023,Revenue,03.GROCERIES & PROVISIONS
24-Jul-2017,7003713,-0.49,REDBRIDGE PRODUCE & FLOWERS LTD T/A TOTAL PRODUCE,390977,Commissioning & Investment,Children's & Education Services,103,Supplies and Services,504,Equipment,5023,Revenue,03.GROCERIES & PROVISIONS
24-Jul-2017,7003713,2.88,REDBRIDGE PRODUCE & FLOWERS LTD T/A TOTAL PRODUCE,390977,Commissioning & Investment,Children's & Education Services,103,Supplies and Services,504,Equipment,5023,Revenue,03.GROCERIES & PROVISIONS
24-Jul-2017,7003713,6.01,REDBRIDGE PRODUCE & FLOWERS LTD T/A TOTAL PRODUCE,390977,Commissioning & Investment,Children's & Education Services,103,Supplies and Services,504,Equipment,5023,Revenue,03.GROCERIES & PROVISIONS
24-Jul-2017,7003713,0.95,REDBRIDGE PRODUCE & FLOWERS LTD T/A TOTAL PRODUCE,390977,Commissioning & Investment,Children's & Education Services,103,Supplies and Services,504,Equipment,5023,Revenue,03.GROCERIES & PROVISIONS
24-Jul-2017,7003713,51.41,REDBRIDGE PRODUCE & FLOWERS LTD T/A TOTAL PRODUCE,390977,Commissioning & Investment,Children's & Education Services,103,Supplies and Services,504,Equipment,5023,Revenue,03.GROCERIES & PROVISIONS
24-Jul-2017,7003713,11.00,REDBRIDGE PRODUCE & FLOWERS LTD T/A TOTAL PRODUCE,390977,Commissioning & Investment,Children's & Education Services,103,Supplies and Services,504,Equipment,5023,Revenue,03.GROCERIES & PROVISIONS
24-Jul-2017,7003713,2.20,REDBRIDGE PRODUCE & FLOWERS LTD T/A TOTAL PRODUCE,390977,Commissioning & Investment,Children's & Education Services,103,Supplies and Services,504,Equipment,5023,Revenue,03.GROCERIES & PROVISIONS
24-Jul-2017,7003713,6.60,REDBRIDGE PRODUCE & FLOWERS LTD T/A TOTAL PRODUCE,390977,Commissioning & Investment,Children's & Education Services,103,Supplies and Services,504,Equipment,5023,Revenue,03.GROCERIES & PROVISIONS
24-Jul-2017,7003713,59.21,REDBRIDGE PRODUCE & FLOWERS LTD T/A TOTAL PRODUCE,390977,Commissioning & Investment,Children's & Education Services,103,Supplies and Services,504,Equipment,5023,Revenue,03.GROCERIES & PROVISIONS
24-Jul-2017,7003713,0.78,REDBRIDGE PRODUCE & FLOWERS LTD T/A TOTAL PRODUCE,390977,Commissioning & Investment,Children's & Education Services,103,Supplies and Services,504,Equipment,5023,Revenue,03.GROCERIES & PROVISIONS
24-Jul-2017,7003713,3.21,REDBRIDGE PRODUCE & FLOWERS LTD T/A TOTAL PRODUCE,390977,Commissioning & Investment,Children's & Education Services,103,Supplies and Services,504,Equipment,5023,Revenue,03.GROCERIES & PROVISIONS
24-Jul-2017,7003713,10.61,REDBRIDGE PRODUCE & FLOWERS LTD T/A TOTAL PRODUCE,390977,Commissioning & Investment,Children's & Education Services,103,Supplies and Services,504,Equipment,5023,Revenue,03.GROCERIES & PROVISIONS
24-Jul-2017,7003713,7.70,REDBRIDGE PRODUCE & FLOWERS LTD T/A TOTAL PRODUCE,390977,Commissioning & Investment,Children's & Education Services,103,Supplies and Services,504,Equipment,5023,Revenue,03.GROCERIES & PROVISIONS
24-Jul-2017,7003713,13.56,REDBRIDGE PRODUCE & FLOWERS LTD T/A TOTAL PRODUCE,390977,Commissioning & Investment,Children's & Education Services,103,Supplies and Services,504,Equipment,5023,Revenue,03.GROCERIES & PROVISIONS
24-Jul-2017,7003713,9.71,REDBRIDGE PRODUCE & FLOWERS LTD T/A TOTAL PRODUCE,390977,Commissioning & Investment,Children's & Education Services,103,Supplies and Services,504,Equipment,5023,Revenue,03.GROCERIES & PROVISIONS
24-Jul-2017,7003713,4.40,REDBRIDGE PRODUCE & FLOWERS LTD T/A TOTAL PRODUCE,390977,Commissioning & Investment,Children's & Education Services,103,Supplies and Services,504,Equipment,5023,Revenue,03.GROCERIES & PROVISIONS
24-Jul-2017,7003713,33.96,REDBRIDGE PRODUCE & FLOWERS LTD T/A TOTAL PRODUCE,390977,Commissioning & Investment,Children's & Education Services,103,Supplies and Services,504,Equipment,5023,Revenue,03.GROCERIES & PROVISIONS
24-Jul-2017,7003713,3.06,REDBRIDGE PRODUCE & FLOWERS LTD T/A TOTAL PRODUCE,390977,Commissioning & Investment,Children's & Education Services,103,Supplies and Services,504,Equipment,5023,Revenue,03.GROCERIES & PROVISIONS
24-Jul-2017,7003713,0.95,REDBRIDGE PRODUCE & FLOWERS LTD T/A TOTAL PRODUCE,390977,Commissioning & Investment,Children's & Education Services,103,Supplies and Services,504,Equipment,5023,Revenue,03.GROCERIES & PROVISIONS
24-Jul-2017,7003713,4.40,REDBRIDGE PRODUCE & FLOWERS LTD T/A TOTAL PRODUCE,390977,Commissioning & Investment,Children's & Education Services,103,Supplies and Services,504,Equipment,5023,Revenue,03.GROCERIES & PROVISIONS
24-Jul-2017,7003713,1.56,REDBRIDGE PRODUCE & FLOWERS LTD T/A TOTAL PRODUCE,390977,Commissioning & Investment,Children's & Education Services,103,Supplies and Services,504,Equipment,5023,Revenue,03.GROCERIES & PROVISIONS
24-Jul-2017,7003713,-2.15,REDBRIDGE PRODUCE & FLOWERS LTD T/A TOTAL PRODUCE,390977,Commissioning & Investment,Children's & Education Services,103,Supplies and Services,504,Equipment,5023,Revenue,03.GROCERIES & PROVISIONS
24-Jul-2017,7003713,70.26,REDBRIDGE PRODUCE & FLOWERS LTD T/A TOTAL PRODUCE,390977,Commissioning & Investment,Children's & Education Services,103,Supplies and Services,504,Equipment,5023,Revenue,03.GROCERIES & PROVISIONS
